Body Name,Transaction Number,Account Code Description,Expenses Type,Service Code,Service Area Categorisation,Supplier Name,Date,Amount
Bath & North East Somerset Council,10614078,LH2,Advertising,C06,Service Delivery,HEALTHWATCH GUIDE,23/05/2011,795.00
Bath & North East Somerset Council,10621220,HA4,Responsive Maintenance PCB,C02,Resources,WATER PURE SYSTEMS LIMITED,30/06/2011,2059.79
Bath & North East Somerset Council,21101399,LM8,Home Care,C03,Adult Social Services & Housing,SAFE & SOUND HOMECARE SERVICES,01/07/2011,4.00
Bath & North East Somerset Council,21101387,LM9,Day Care,C03,Adult Social Services & Housing,WILTSHIRE COUNTY COUNCIL,01/07/2011,15.19
Bath & North East Somerset Council,21101387,LM9,Day Care,C03,Adult Social Services & Housing,WILTSHIRE COUNTY COUNCIL,01/07/2011,15.19
Bath & North East Somerset Council,21101387,LM9,Day Care,C03,Adult Social Services & Housing,WILTSHIRE COUNTY COUNCIL,01/07/2011,15.19
Bath & North East Somerset Council,21101387,LM9,Day Care,C03,Adult Social Services & Housing,WILTSHIRE COUNTY COUNCIL,01/07/2011,15.19
Bath & North East Somerset Council,21101387,LM9,Day Care,C03,Adult Social Services & Housing,WILTSHIRE COUNTY COUNCIL,01/07/2011,15.19
Bath & North East Somerset Council,21101387,LM9,Day Care,C03,Adult Social Services & Housing,WILTSHIRE COUNTY COUNCIL,01/07/2011,15.19
Bath & North East Somerset Council,21101387,LM9,Day Care,C03,Adult Social Services & Housing,WILTSHIRE COUNTY COUNCIL,01/07/2011,15.19
Bath & North East Somerset Council,21101405,LM8,Home Care,C03,Adult Social Services & Housing,ROBERT SAGE LTD T/A PRESTIGE NURSING PAYROLL,01/07/2011,40.00
Bath & North East Somerset Council,21101405,LM8,Home Care,C03,Adult Social Services & Housing,ROBERT SAGE LTD T/A PRESTIGE NURSING PAYROLL,01/07/2011,117.88
Bath & North East Somerset Council,21101399,LM8,Home Care,C03,Adult Social Services & Housing,SAFE & SOUND HOMECARE SERVICES,01/07/2011,186.00
Bath & North East Somerset Council,21101399,LM8,Home Care,C03,Adult Social Services & Housing,SAFE & SOUND HOMECARE SERVICES,01/07/2011,186.00
Bath & North East Somerset Council,21101400,LM8,Home Care,C03,Adult Social Services & Housing,SAFE & SOUND HOMECARE SERVICES,01/07/2011,202.00
Bath & North East Somerset Council,21101400,LM8,Home Care,C03,Adult Social Services & Housing,SAFE & SOUND HOMECARE SERVICES,01/07/2011,202.00
Bath & North East Somerset Council,21101400,LM8,Home Care,C03,Adult Social Services & Housing,SAFE & SOUND HOMECARE SERVICES,01/07/2011,202.00
Bath & North East Somerset Council,21101400,LM8,Home Care,C03,Adult Social Services & Housing,SAFE & SOUND HOMECARE SERVICES,01/07/2011,202.00
Bath & North East Somerset Council,21101400,LM8,Home Care,C03,Adult Social Services & Housing,SAFE & SOUND HOMECARE SERVICES,01/07/2011,226.50
Bath & North East Somerset Council,21101400,LM8,Home Care,C03,Adult Social Services & Housing,SAFE & SOUND HOMECARE SERVICES,01/07/2011,405.00
Bath & North East Somerset Council,21101400,LM8,Home Care,C03,Adult Social Services & Housing,SAFE & SOUND HOMECARE SERVICES,01/07/2011,405.00
Bath & North East Somerset Council,21101400,LM8,Home Care,C03,Adult Social Services & Housing,SAFE & SOUND HOMECARE SERVICES,01/07/2011,405.00
Bath & North East Somerset Council,21101400,LM8,Home Care,C03,Adult Social Services & Housing,SAFE & SOUND HOMECARE SERVICES,01/07/2011,405.00
Bath & North East Somerset Council,21101405,LM8,Home Care,C03,Adult Social Services & Housing,ROBERT SAGE LTD T/A PRESTIGE NURSING PAYROLL,01/07/2011,418.32
Bath & North East Somerset Council,10617963,LA7,Purchases for Resale,C06,Service Delivery,FOREST PRODUCTS (UK) LTD,01/07/2011,459.00
Bath & North East Somerset Council,10615753,KA1,Repairs & Maintenance,C06,Service Delivery,MPS ROAD SWEEPERS LTD,01/07/2011,507.00
Bath & North East Somerset Council,10615753,KA1,Repairs & Maintenance,C06,Service Delivery,MPS ROAD SWEEPERS LTD,01/07/2011,507.00
Bath & North East Somerset Council,10615753,KA1,Repairs & Maintenance,C06,Service Delivery,MPS ROAD SWEEPERS LTD,01/07/2011,507.00
Bath & North East Somerset Council,10615753,KA1,Repairs & Maintenance,C06,Service Delivery,MPS ROAD SWEEPERS LTD,01/07/2011,507.00
Bath & North East Somerset Council,10617963,LA7,Purchases for Resale,C06,Service Delivery,FOREST PRODUCTS (UK) LTD,01/07/2011,573.00
Bath & North East Somerset Council,10617258,LC1,Provisions,C06,Service Delivery,WEST COUNTRY VENDING SERV. LTD,01/07/2011,583.98
Bath & North East Somerset Council,21101399,LM8,Home Care,C03,Adult Social Services & Housing,SAFE & SOUND HOMECARE SERVICES,01/07/2011,650.00
Bath & North East Somerset Council,21101399,LM8,Home Care,C03,Adult Social Services & Housing,SAFE & SOUND HOMECARE SERVICES,01/07/2011,650.00
Bath & North East Somerset Council,21101399,LM8,Home Care,C03,Adult Social Services & Housing,SAFE & SOUND HOMECARE SERVICES,01/07/2011,650.00
Bath & North East Somerset Council,21101399,LM8,Home Care,C03,Adult Social Services & Housing,SAFE & SOUND HOMECARE SERVICES,01/07/2011,650.00
Bath & North East Somerset Council,21101387,LM9,Day Care,C03,Adult Social Services & Housing,WILTSHIRE COUNTY COUNCIL,01/07/2011,661.31
Bath & North East Somerset Council,10618173,LA7,Purchases for Resale,C06,Service Delivery,GREEK CONNECTION 2000 LTD,01/07/2011,699.15
Bath & North East Somerset Council,10616191,LM9,Day Care,C03,Adult Social Services & Housing,CARE FUTURES,01/07/2011,712.50
Bath & North East Somerset Council,10616178,LL3,Supported Living,C03,Adult Social Services & Housing,DIMENSIONS (UK) LTD,01/07/2011,738.52
Bath & North East Somerset Council,10616192,LM9,Day Care,C03,Adult Social Services & Housing,CARE FUTURES,01/07/2011,769.50
Bath & North East Somerset Council,10616324,LL3,Supported Living,C03,Adult Social Services & Housing,DIMENSIONS (UK) LTD,01/07/2011,817.28
Bath & North East Somerset Council,10616323,LL3,Supported Living,C03,Adult Social Services & Housing,DIMENSIONS (UK) LTD,01/07/2011,824.37
Bath & North East Somerset Council,10618077,3G1,Grants/Advances,C03,Adult Social Services & Housing,A & R MILES LTD,01/07/2011,945.00
Bath & North East Somerset Council,10617609,LM6,Nursing Care,C03,Adult Social Services & Housing,SURECARE ENABLING (BATH & MENDIP),01/07/2011,948.50
Bath & North East Somerset Council,10616318,KE1,Clients & Service Users Public Transport,C03,Adult Social Services & Housing,REDACTED,01/07/2011,986.00
Bath & North East Somerset Council,10615754,KA1,Repairs & Maintenance,C06,Service Delivery,MPS ROAD SWEEPERS LTD,01/07/2011,1007.11
Bath & North East Somerset Council,10616177,LL3,Supported Living,C03,Adult Social Services & Housing,DIMENSIONS (UK) LTD,01/07/2011,1014.75
Bath & North East Somerset Council,10618080,3G1,Grants/Advances,C03,Adult Social Services & Housing,OASIS BATHROOM CENTRE,01/07/2011,1295.00
Bath & North East Somerset Council,10616193,LM9,Day Care,C03,Adult Social Services & Housing,CARE FUTURES,01/07/2011,1302.00
Bath & North East Somerset Council,10616194,LM9,Day Care,C03,Adult Social Services & Housing,CARE FUTURES,01/07/2011,1364.00
Bath & North East Somerset Council,10616316,LM6,Nursing Care,C03,Adult Social Services & Housing,SURECARE ENABLING (BATH & MENDIP),01/07/2011,1435.00
Bath & North East Somerset Council,10616179,LL3,Supported Living,C03,Adult Social Services & Housing,DIMENSIONS (UK) LTD,01/07/2011,1474.88
Bath & North East Somerset Council,10616180,LL3,Supported Living,C03,Adult Social Services & Housing,DIMENSIONS (UK) LTD,01/07/2011,1474.88
Bath & North East Somerset Council,10618036,LX1,Educational Activity,C03,Adult Social Services & Housing,PERCY COMMUNITY  CENTRE,01/07/2011,1534.08
Bath & North East Somerset Council,10615135,LM6,Nursing Care,C03,Adult Social Services & Housing,SURECARE ENABLING (BATH & MENDIP),01/07/2011,1560.00
Bath & North East Somerset Council,10615757,KB1,Hire of Vehicles,C06,Service Delivery,MPS ROAD SWEEPERS LTD,01/07/2011,1600.00
Bath & North East Somerset Council,10617565,LJ2,Legal Fees,C03,Adult Social Services & Housing,GLASS PROJECT MANAGEMENT LTD,01/07/2011,1677.50
Bath & North East Somerset Council,10615131,LM9,Day Care,C03,Adult Social Services & Housing,NATIONAL AUTISTIC SOCIETY,01/07/2011,1691.27
Bath & North East Somerset Council,10612746,LM9,Day Care,C03,Adult Social Services & Housing,NATIONAL AUTISTIC SOCIETY,01/07/2011,1747.65
Bath & North East Somerset Council,10616195,LM9,Day Care,C03,Adult Social Services & Housing,CARE FUTURES,01/07/2011,1827.00
Bath & North East Somerset Council,10616196,LM9,Day Care,C03,Adult Social Services & Housing,CARE FUTURES,01/07/2011,1914.00
Bath & North East Somerset Council,10617991,HE1,General Maintenance,C06,Service Delivery,E W HOBBS,01/07/2011,1934.00
Bath & North East Somerset Council,10616315,LL3,Supported Living,C03,Adult Social Services & Housing,THREE TREES COMMUNITY SUPPORT LTD,01/07/2011,2046.00
Bath & North East Somerset Council,10616339,LL3,Supported Living,C03,Adult Social Services & Housing,ROYAL MENCAP SOCIETY,01/07/2011,2178.86
Bath & North East Somerset Council,10615130,LL3,Supported Living,C03,Adult Social Services & Housing,ROYAL MENCAP SOCIETY,01/07/2011,2236.12
Bath & North East Somerset Council,10618087,3G1,Grants/Advances,C03,Adult Social Services & Housing,A J & M L SPRATLING,01/07/2011,2250.00
Bath & North East Somerset Council,10616330,LL3,Supported Living,C03,Adult Social Services & Housing,ROYAL MENCAP SOCIETY,01/07/2011,2259.56
Bath & North East Somerset Council,10618086,3G1,Grants/Advances,C03,Adult Social Services & Housing,P & J SHOWERS LTD,01/07/2011,2430.00
Bath & North East Somerset Council,10616188,LL3,Supported Living,C03,Adult Social Services & Housing,HFT (HF TRUST LIMITED),01/07/2011,2683.28
Bath & North East Somerset Council,10616189,LL3,Supported Living,C03,Adult Social Services & Housing,HFT (HF TRUST LIMITED),01/07/2011,2683.28
Bath & North East Somerset Council,10616190,LL3,Supported Living,C03,Adult Social Services & Housing,HFT (HF TRUST LIMITED),01/07/2011,2683.28
Bath & North East Somerset Council,10618083,3G1,Grants/Advances,C03,Adult Social Services & Housing,OASIS BATHROOM CENTRE,01/07/2011,2790.00
Bath & North East Somerset Council,10616395,LM2,Foster Carer Allowances,C05,Children's Services,CAPSTONE FOSTER CARE (SOUTH WEST)  LTD,01/07/2011,2866.26
Bath & North East Somerset Council,10616337,LL3,Supported Living,C03,Adult Social Services & Housing,ROYAL MENCAP SOCIETY,01/07/2011,2882.68
Bath & North East Somerset Council,10617324,DB1,Agency Staff,C06,Service Delivery,NJH TRANSPORT CONSULTANTS LTD,01/07/2011,3105.00
Bath & North East Somerset Council,10618084,3G1,Grants/Advances,C03,Adult Social Services & Housing,OASIS BATHROOM CENTRE,01/07/2011,3135.00
Bath & North East Somerset Council,10616408,LM2,Foster Carer Allowances,C05,Children's Services,CAPSTONE FOSTER CARE (SOUTH WEST)  LTD,01/07/2011,3370.63
Bath & North East Somerset Council,10616398,LM2,Foster Carer Allowances,C05,Children's Services,CAPSTONE FOSTER CARE (SOUTH WEST)  LTD,01/07/2011,3392.64
Bath & North East Somerset Council,10616399,LM2,Foster Carer Allowances,C05,Children's Services,CAPSTONE FOSTER CARE (SOUTH WEST)  LTD,01/07/2011,3392.64
Bath & North East Somerset Council,10616396,LM2,Foster Carer Allowances,C05,Children's Services,CAPSTONE FOSTER CARE (SOUTH WEST)  LTD,01/07/2011,3478.51
Bath & North East Somerset Council,10616397,LM2,Foster Carer Allowances,C05,Children's Services,CAPSTONE FOSTER CARE (SOUTH WEST)  LTD,01/07/2011,3478.51
Bath & North East Somerset Council,10616401,LM2,Foster Carer Allowances,C05,Children's Services,CAPSTONE FOSTER CARE (SOUTH WEST)  LTD,01/07/2011,3478.51
Bath & North East Somerset Council,10616412,LM2,Foster Carer Allowances,C05,Children's Services,CAPSTONE FOSTER CARE (SOUTH WEST)  LTD,01/07/2011,3478.51
Bath & North East Somerset Council,10616407,LM2,Foster Carer Allowances,C05,Children's Services,CAPSTONE FOSTER CARE (SOUTH WEST)  LTD,01/07/2011,3511.06
Bath & North East Somerset Council,10616338,LL3,Supported Living,C03,Adult Social Services & Housing,ROYAL MENCAP SOCIETY,01/07/2011,3533.30
Bath & North East Somerset Council,10616400,LM2,Foster Carer Allowances,C05,Children's Services,CAPSTONE FOSTER CARE (SOUTH WEST)  LTD,01/07/2011,3534.00
Bath & North East Somerset Council,10616406,LM2,Foster Carer Allowances,C05,Children's Services,CAPSTONE FOSTER CARE (SOUTH WEST)  LTD,01/07/2011,3534.00
Bath & North East Somerset Council,10616409,LM2,Foster Carer Allowances,C05,Children's Services,CAPSTONE FOSTER CARE (SOUTH WEST)  LTD,01/07/2011,3569.34
Bath & North East Somerset Council,10616410,LM2,Foster Carer Allowances,C05,Children's Services,CAPSTONE FOSTER CARE (SOUTH WEST)  LTD,01/07/2011,3569.34
Bath & North East Somerset Council,10615129,LL3,Supported Living,C03,Adult Social Services & Housing,ROYAL MENCAP SOCIETY,01/07/2011,3586.16
Bath & North East Somerset Council,10616332,LL3,Supported Living,C03,Adult Social Services & Housing,ROYAL MENCAP SOCIETY,01/07/2011,3664.16
Bath & North East Somerset Council,10618079,3G1,Grants/Advances,C03,Adult Social Services & Housing,ANDREW MAISEY,01/07/2011,3900.00
Bath & North East Somerset Council,10617899,LV1,Grants to Voluntary Bodies,C02,Resources,BATH & NES REC,01/07/2011,3958.00
Bath & North East Somerset Council,10616405,LM2,Foster Carer Allowances,C05,Children's Services,CAPSTONE FOSTER CARE (SOUTH WEST)  LTD,01/07/2011,3969.86
Bath & North East Somerset Council,10616411,LM2,Foster Carer Allowances,C05,Children's Services,CAPSTONE FOSTER CARE (SOUTH WEST)  LTD,01/07/2011,4118.66
Bath & North East Somerset Council,10616413,LM2,Foster Carer Allowances,C05,Children's Services,CAPSTONE FOSTER CARE (SOUTH WEST)  LTD,01/07/2011,4383.40
Bath & North East Somerset Council,10618112,LE1,Education Payment (independent school),C05,Children's Services,CALDER HOUSE SCHOOL,01/07/2011,4750.00
Bath & North East Somerset Council,10617901,3F7,PCB External Fees,C04,Development & Major Projects,ASHURST,01/07/2011,9212.00
Bath & North East Somerset Council,10618316,LH1,Liability Insurance,Z99,Outside Revenue Accounts,THOMPSONS SOLICITORS,01/07/2011,13250.00
Bath & North East Somerset Council,10616936,ED4,Pensions Increase Act Payments,C02,Resources,SOMERSET COUNTY COUNCIL PENSION FUND,01/07/2011,14895.91
Bath & North East Somerset Council,10618201,EC9,Other Employee Expenses,C02,Resources,OCCUPATIONAL HEALTH CARE LTD,01/07/2011,16450.75
Bath & North East Somerset Council,10618114,LE1,Education Payment (independent school),C05,Children's Services,FARLEIGH COLLEGE PRIORY,01/07/2011,31440.00
Bath & North East Somerset Council,10618113,LE1,Education Payment (independent school),C05,Children's Services,FARLEIGH COLLEGE PRIORY,01/07/2011,32483.79
Bath & North East Somerset Council,10618152,3N7,PCB Misc. Costs,C06,Service Delivery,AVON FIRE SYSTEMS LTD,01/07/2011,33100.00
Bath & North East Somerset Council,10618116,LE1,Education Payment (independent school),C05,Children's Services,NORTH HILL HOUSE PRIORY,01/07/2011,33713.84
Bath & North East Somerset Council,10618135,LK1,Fees,C06,Service Delivery,DAVID MESSUM FINE ART LTD,01/07/2011,61162.46
Bath & North East Somerset Council,21101464,PG1,Rent Allowances,C02,Resources,SOMER COMMUNITY HOUSING TRUST,01/07/2011,112018.98
Bath & North East Somerset Council,10616886,3C4,PCB Building Works,C05,Children's Services,M D BUILDING SERVICES LTD,01/07/2011,132021.97
Bath & North East Somerset Council,21101446,PG1,Rent Allowances,C02,Resources,SOMER COMMUNITY HOUSING TRUST,01/07/2011,1430590.40
Bath & North East Somerset Council,10618372,LW1,Rechargeable Works/Expenses,C03,Adult Social Services & Housing,BNES-LEWIS HOUSE IMPREST A/C,04/07/2011,2.08
Bath & North East Somerset Council,21101747,LM8,Home Care,C03,Adult Social Services & Housing,CARE & CONTINUITY,04/07/2011,7.00
Bath & North East Somerset Council,21101956,LM6,Nursing Care,C03,Adult Social Services & Housing,BARCHESTER HEALTHCARE HOMES LTD,04/07/2011,7.15
Bath & North East Somerset Council,10618184,LA4,Equipment Hire/Rent,C06,Service Delivery,PITNEY BOWES LTD,04/07/2011,9.00
Bath & North East Somerset Council,21101956,LM6,Nursing Care,C03,Adult Social Services & Housing,BARCHESTER HEALTHCARE HOMES LTD,04/07/2011,10.00
Bath & North East Somerset Council,21101956,LM6,Nursing Care,C03,Adult Social Services & Housing,BARCHESTER HEALTHCARE HOMES LTD,04/07/2011,10.00
Bath & North East Somerset Council,21101956,LM6,Nursing Care,C03,Adult Social Services & Housing,BARCHESTER HEALTHCARE HOMES LTD,04/07/2011,10.00
Bath & North East Somerset Council,21101956,LM6,Nursing Care,C03,Adult Social Services & Housing,BARCHESTER HEALTHCARE HOMES LTD,04/07/2011,10.00
Bath & North East Somerset Council,21101747,LM8,Home Care,C03,Adult Social Services & Housing,CARE & CONTINUITY,04/07/2011,18.02
Bath & North East Somerset Council,21101747,LM8,Home Care,C03,Adult Social Services & Housing,CARE & CONTINUITY,04/07/2011,22.00
Bath & North East Somerset Council,21101747,LM8,Home Care,C03,Adult Social Services & Housing,CARE & CONTINUITY,04/07/2011,28.25
Bath & North East Somerset Council,10618375,LA5,Materials,C03,Adult Social Services & Housing,THE CONSORTIUM,04/07/2011,31.95
Bath & North East Somerset Council,21101747,LM8,Home Care,C03,Adult Social Services & Housing,CARE & CONTINUITY,04/07/2011,34.50
Bath & North East Somerset Council,10617818,LC1,Provisions,C03,Adult Social Services & Housing,L & F JONES HOLDINGS LTD,04/07/2011,52.56
Bath & North East Somerset Council,10614992,LA7,Purchases for Resale,C06,Service Delivery,CHRIS ANDREWS PUBLICATIONS LTD,04/07/2011,90.00
Bath & North East Somerset Council,21101799,LL3,Supported Living,C03,Adult Social Services & Housing,OPTIONS FOR LIVING LTD,04/07/2011,101.52
Bath & North East Somerset Council,21101799,LL3,Supported Living,C03,Adult Social Services & Housing,OPTIONS FOR LIVING LTD,04/07/2011,101.52
Bath & North East Somerset Council,21101747,LM8,Home Care,C03,Adult Social Services & Housing,CARE & CONTINUITY,04/07/2011,108.00
Bath & North East Somerset Council,21101747,LM8,Home Care,C03,Adult Social Services & Housing,CARE & CONTINUITY,04/07/2011,108.00
Bath & North East Somerset Council,21101747,LM8,Home Care,C03,Adult Social Services & Housing,CARE & CONTINUITY,04/07/2011,131.00
Bath & North East Somerset Council,21101747,LM8,Home Care,C03,Adult Social Services & Housing,CARE & CONTINUITY,04/07/2011,131.00
Bath & North East Somerset Council,21101941,LL8,Individualised Budget,C03,Adult Social Services & Housing,REDACTED,04/07/2011,139.62
Bath & North East Somerset Council,21101941,LL8,Individualised Budget,C03,Adult Social Services & Housing,REDACTED,04/07/2011,139.62
Bath & North East Somerset Council,21101941,LL8,Individualised Budget,C03,Adult Social Services & Housing,REDACTED,04/07/2011,139.62
Bath & North East Somerset Council,21101945,LM6,Nursing Care,C03,Adult Social Services & Housing,CHOLWELL HOUSE NURSING HOME,04/07/2011,156.00
Bath & North East Somerset Council,21101945,LM6,Nursing Care,C03,Adult Social Services & Housing,CHOLWELL HOUSE NURSING HOME,04/07/2011,156.00
Bath & North East Somerset Council,21101747,LM8,Home Care,C03,Adult Social Services & Housing,CARE & CONTINUITY,04/07/2011,161.48
Bath & North East Somerset Council,21101747,LM8,Home Care,C03,Adult Social Services & Housing,CARE & CONTINUITY,04/07/2011,161.48
Bath & North East Somerset Council,10618325,LN1,Telephones,Z99,Outside Revenue Accounts,BRITISH TELECOM,04/07/2011,177.64
Bath & North East Somerset Council,21101978,LM6,Nursing Care,C03,Adult Social Services & Housing,BARKER CHEMICALS LTD T/A ST TERESA'S NH,04/07/2011,185.71
Bath & North East Somerset Council,10618359,DB1,Agency Staff,C06,Service Delivery,ROAD RUNNER TAXI BUSES,04/07/2011,196.00
Bath & North East Somerset Council,21101799,LL3,Supported Living,C03,Adult Social Services & Housing,OPTIONS FOR LIVING LTD,04/07/2011,206.80
Bath & North East Somerset Council,21101799,LL3,Supported Living,C03,Adult Social Services & Housing,OPTIONS FOR LIVING LTD,04/07/2011,206.80
Bath & North East Somerset Council,21101819,LM3,Residential Care,C03,Adult Social Services & Housing,CEDAR CARE HOMES LTD,04/07/2011,257.14
Bath & North East Somerset Council,21101799,LL3,Supported Living,C03,Adult Social Services & Housing,OPTIONS FOR LIVING LTD,04/07/2011,264.74
Bath & North East Somerset Council,21101799,LL3,Supported Living,C03,Adult Social Services & Housing,OPTIONS FOR LIVING LTD,04/07/2011,264.74
Bath & North East Somerset Council,21101799,LL3,Supported Living,C03,Adult Social Services & Housing,OPTIONS FOR LIVING LTD,04/07/2011,264.74
Bath & North East Somerset Council,21101799,LL3,Supported Living,C03,Adult Social Services & Housing,OPTIONS FOR LIVING LTD,04/07/2011,264.74
Bath & North East Somerset Council,21101799,LL3,Supported Living,C03,Adult Social Services & Housing,OPTIONS FOR LIVING LTD,04/07/2011,264.74
Bath & North East Somerset Council,21101799,LL3,Supported Living,C03,Adult Social Services & Housing,OPTIONS FOR LIVING LTD,04/07/2011,264.74
Bath & North East Somerset Council,21101956,LM6,Nursing Care,C03,Adult Social Services & Housing,BARCHESTER HEALTHCARE HOMES LTD,04/07/2011,278.57
Bath & North East Somerset Council,21101978,LM6,Nursing Care,C03,Adult Social Services & Housing,BARKER CHEMICALS LTD T/A ST TERESA'S NH,04/07/2011,278.57
Bath & North East Somerset Council,21101978,LM6,Nursing Care,C03,Adult Social Services & Housing,BARKER CHEMICALS LTD T/A ST TERESA'S NH,04/07/2011,278.57
Bath & North East Somerset Council,21101984,LM6,Nursing Care,C03,Adult Social Services & Housing,CEDAR CARE HOMES LTD,04/07/2011,278.57
Bath & North East Somerset Council,21101799,LL3,Supported Living,C03,Adult Social Services & Housing,OPTIONS FOR LIVING LTD,04/07/2011,338.40
Bath & North East Somerset Council,21101799,LL3,Supported Living,C03,Adult Social Services & Housing,OPTIONS FOR LIVING LTD,04/07/2011,338.40
Bath & North East Somerset Council,21101819,LM3,Residential Care,C03,Adult Social Services & Housing,CEDAR CARE HOMES LTD,04/07/2011,342.86
Bath & North East Somerset Council,21101956,LM6,Nursing Care,C03,Adult Social Services & Housing,BARCHESTER HEALTHCARE HOMES LTD,04/07/2011,371.43
Bath & North East Somerset Council,21101617,LM4,Respite Care,C03,Adult Social Services & Housing,REDACTED,04/07/2011,403.85
Bath & North East Somerset Council,21101617,LM4,Respite Care,C03,Adult Social Services & Housing,REDACTED,04/07/2011,403.85
Bath & North East Somerset Council,10618189,LH3,Publicity,C06,Service Delivery,NORTHCLIFFE MEDIA LTD,04/07/2011,424.50
Bath & North East Somerset Council,10617004,HA3,Planned Maintenance,C06,Service Delivery,HORDERS,04/07/2011,425.71
Bath & North East Somerset Council,10617005,HA3,Planned Maintenance,C06,Service Delivery,HORDERS,04/07/2011,425.71
Bath & North East Somerset Council,10617006,HA3,Planned Maintenance,C06,Service Delivery,HORDERS,04/07/2011,425.71
Bath & North East Somerset Council,10618338,LJ4,Contracts,C06,Service Delivery,BERKELEY COACH & TRAVEL LTD,04/07/2011,460.00
Bath & North East Somerset Council,10618230,LA7,Purchases for Resale,C06,Service Delivery,STERLING COLLECTIONS,04/07/2011,468.00
Bath & North East Somerset Council,10616274,HK1,Highway Maintenance,C06,Service Delivery,JACKSONS FINE FENCING,04/07/2011,474.88
Bath & North East Somerset Council,10618132,LK1,Fees,C06,Service Delivery,JOE HOBBS & YVONNE HELLIN HOBBS LTD,04/07/2011,480.00
Bath & North East Somerset Council,10617007,HA3,Planned Maintenance,C06,Service Delivery,HORDERS,04/07/2011,485.71
Bath & North East Somerset Council,10617008,HA3,Planned Maintenance,C06,Service Delivery,HORDERS,04/07/2011,485.71
Bath & North East Somerset Council,10617009,HA3,Planned Maintenance,C06,Service Delivery,HORDERS,04/07/2011,485.71
Bath & North East Somerset Council,10617010,HA3,Planned Maintenance,C06,Service Delivery,HORDERS,04/07/2011,485.71
Bath & North East Somerset Council,10618375,HV4,Cleaning Materials,C03,Adult Social Services & Housing,THE CONSORTIUM,04/07/2011,499.32
Bath & North East Somerset Council,21101943,LL8,Individualised Budget,C03,Adult Social Services & Housing,REDACTED,04/07/2011,500.00
Bath & North East Somerset Council,21101992,LM6,Nursing Care,C03,Adult Social Services & Housing,NEWBRIDGE TOWERS RESIDENTIAL CARE HOME,04/07/2011,501.00
Bath & North East Somerset Council,21101992,LM6,Nursing Care,C03,Adult Social Services & Housing,NEWBRIDGE TOWERS RESIDENTIAL CARE HOME,04/07/2011,501.00
Bath & North East Somerset Council,21101759,LL8,Individualised Budget,C03,Adult Social Services & Housing,REDACTED,04/07/2011,504.12
Bath & North East Somerset Council,21101759,LL8,Individualised Budget,C03,Adult Social Services & Housing,REDACTED,04/07/2011,504.12
Bath & North East Somerset Council,10615379,LA1,Equipment Purchase,C03,Adult Social Services & Housing,HOMECRAFT ROLYAN LTD,04/07/2011,512.00
Bath & North East Somerset Council,21101747,LM8,Home Care,C03,Adult Social Services & Housing,CARE & CONTINUITY,04/07/2011,514.48
Bath & North East Somerset Council,21101747,LM8,Home Care,C03,Adult Social Services & Housing,CARE & CONTINUITY,04/07/2011,514.48
Bath & North East Somerset Council,10618337,LJ4,Contracts,C06,Service Delivery,ARLEEN COACH & HIRE SERVICES L,04/07/2011,515.00
Bath & North East Somerset Council,21101967,LM6,Nursing Care,C03,Adult Social Services & Housing,EUROPEAN CARE SW LTD - REDACTED AC,04/07/2011,519.92
Bath & North East Somerset Council,21101967,LM6,Nursing Care,C03,Adult Social Services & Housing,EUROPEAN CARE SW LTD - REDACTED AC,04/07/2011,519.92
Bath & North East Somerset Council,10615874,HA4,Responsive Maintenance PCB,C02,Resources,AVON FIRE SYSTEMS LTD,04/07/2011,525.00
Bath & North East Somerset Council,10616538,LJ2,Legal Fees,C02,Resources,MOGERS SOLICITORS,04/07/2011,540.50
Bath & North East Somerset Council,21101617,LM4,Respite Care,C03,Adult Social Services & Housing,REDACTED,04/07/2011,550.00
Bath & North East Somerset Council,21101617,LM4,Respite Care,C03,Adult Social Services & Housing,REDACTED,04/07/2011,550.00
Bath & North East Somerset Council,21101621,LM4,Respite Care,C03,Adult Social Services & Housing,REDACTED,04/07/2011,550.00
Bath & North East Somerset Council,21101621,LM4,Respite Care,C03,Adult Social Services & Housing,REDACTED,04/07/2011,550.00
Bath & North East Somerset Council,21101871,LL8,Individualised Budget,C03,Adult Social Services & Housing,REDACTED,04/07/2011,552.02
Bath & North East Somerset Council,21101871,LL8,Individualised Budget,C03,Adult Social Services & Housing,REDACTED,04/07/2011,552.02
Bath & North East Somerset Council,21101961,LM6,Nursing Care,C03,Adult Social Services & Housing,SHAW HOMES HOUSING ASSOC LTD,04/07/2011,553.84
Bath & North East Somerset Council,21101961,LM6,Nursing Care,C03,Adult Social Services & Housing,SHAW HOMES HOUSING ASSOC LTD,04/07/2011,553.84
Bath & North East Somerset Council,21101956,LM6,Nursing Care,C03,Adult Social Services & Housing,BARCHESTER HEALTHCARE HOMES LTD,04/07/2011,557.14
Bath & North East Somerset Council,21101956,LM6,Nursing Care,C03,Adult Social Services & Housing,BARCHESTER HEALTHCARE HOMES LTD,04/07/2011,557.14
Bath & North East Somerset Council,21101958,LM6,Nursing Care,C03,Adult Social Services & Housing,EUROPEAN CARE (UK) LTD - REDACTED A/C,04/07/2011,557.14
Bath & North East Somerset Council,21101978,LM6,Nursing Care,C03,Adult Social Services & Housing,BARKER CHEMICALS LTD T/A ST TERESA'S NH,04/07/2011,557.14
Bath & North East Somerset Council,21101961,LM6,Nursing Care,C03,Adult Social Services & Housing,SHAW HOMES HOUSING ASSOC LTD,04/07/2011,558.30
Bath & North East Somerset Council,21101961,LM6,Nursing Care,C03,Adult Social Services & Housing,SHAW HOMES HOUSING ASSOC LTD,04/07/2011,558.30
Bath & North East Somerset Council,10618401,HE1,General Maintenance,C06,Service Delivery,SN SCAFFOLDS (BATH),04/07/2011,560.00
Bath & North East Somerset Council,21101760,LL8,Individualised Budget,C03,Adult Social Services & Housing,ILSA,04/07/2011,567.49
Bath & North East Somerset Council,21101760,LL8,Individualised Budget,C03,Adult Social Services & Housing,ILSA,04/07/2011,567.49
Bath & North East Somerset Council,21101945,LM6,Nursing Care,C03,Adult Social Services & Housing,CHOLWELL HOUSE NURSING HOME,04/07/2011,569.00
Bath & North East Somerset Council,21101945,LM6,Nursing Care,C03,Adult Social Services & Housing,CHOLWELL HOUSE NURSING HOME,04/07/2011,569.00
Bath & North East Somerset Council,10618356,LJ4,Contracts,C06,Service Delivery,MR P S MATTHEWS T/A NORAD TAXIS,04/07/2011,576.00
Bath & North East Somerset Council,21101643,LL4,Direct Payments,C03,Adult Social Services & Housing,REDACTED,04/07/2011,595.54
Bath & North East Somerset Council,21101643,LL4,Direct Payments,C03,Adult Social Services & Housing,REDACTED,04/07/2011,595.54
Bath & North East Somerset Council,21101819,LM3,Residential Care,C03,Adult Social Services & Housing,CEDAR CARE HOMES LTD,04/07/2011,600.00
Bath & North East Somerset Council,21101819,LM3,Residential Care,C03,Adult Social Services & Housing,CEDAR CARE HOMES LTD,04/07/2011,600.00
Bath & North East Somerset Council,21101819,LM3,Residential Care,C03,Adult Social Services & Housing,CEDAR CARE HOMES LTD,04/07/2011,600.00
Bath & North East Somerset Council,21101954,LM6,Nursing Care,C03,Adult Social Services & Housing,CULVERHAY NURSING HOME,04/07/2011,600.00
Bath & North East Somerset Council,21101954,LM6,Nursing Care,C03,Adult Social Services & Housing,CULVERHAY NURSING HOME,04/07/2011,600.00
Bath & North East Somerset Council,21101954,LM6,Nursing Care,C03,Adult Social Services & Housing,CULVERHAY NURSING HOME,04/07/2011,600.00
Bath & North East Somerset Council,21101954,LM6,Nursing Care,C03,Adult Social Services & Housing,CULVERHAY NURSING HOME,04/07/2011,600.00
Bath & North East Somerset Council,21101979,LM6,Nursing Care,C03,Adult Social Services & Housing,GROVE CARE LTD T/A ORIEL LODGE,04/07/2011,600.00
Bath & North East Somerset Council,21101979,LM6,Nursing Care,C03,Adult Social Services & Housing,GROVE CARE LTD T/A ORIEL LODGE,04/07/2011,600.00
Bath & North East Somerset Council,21101799,LL3,Supported Living,C03,Adult Social Services & Housing,OPTIONS FOR LIVING LTD,04/07/2011,603.14
Bath & North East Somerset Council,21101799,LL3,Supported Living,C03,Adult Social Services & Housing,OPTIONS FOR LIVING LTD,04/07/2011,603.14
Bath & North East Somerset Council,21101949,LM6,Nursing Care,C03,Adult Social Services & Housing,WESTCROFT NURSING HOME,04/07/2011,610.20
Bath & North East Somerset Council,21101949,LM6,Nursing Care,C03,Adult Social Services & Housing,WESTCROFT NURSING HOME,04/07/2011,610.20
Bath & North East Somerset Council,21101960,LM6,Nursing Care,C03,Adult Social Services & Housing,BRISTOL AGE CARE,04/07/2011,620.00
Bath & North East Somerset Council,21101960,LM6,Nursing Care,C03,Adult Social Services & Housing,BRISTOL AGE CARE,04/07/2011,620.00
Bath & North East Somerset Council,10618049,DB1,Agency Staff,C06,Service Delivery,M WIDDOWSON LTD,04/07/2011,635.40
Bath & North East Somerset Council,10616799,HA4,Responsive Maintenance PCB,C02,Resources,A W PARRY LIFTS LTD,04/07/2011,640.00
Bath & North East Somerset Council,21101967,LM6,Nursing Care,C03,Adult Social Services & Housing,EUROPEAN CARE SW LTD - REDACTED AC,04/07/2011,641.22
Bath & North East Somerset Council,21101967,LM6,Nursing Care,C03,Adult Social Services & Housing,EUROPEAN CARE SW LTD - REDACTED AC,04/07/2011,641.22
Bath & North East Somerset Council,21101632,LL4,Direct Payments,C03,Adult Social Services & Housing,REDACTED,04/07/2011,641.69
Bath & North East Somerset Council,21101632,LL4,Direct Payments,C03,Adult Social Services & Housing,REDACTED,04/07/2011,641.69
Bath & North East Somerset Council,21101945,LM6,Nursing Care,C03,Adult Social Services & Housing,CHOLWELL HOUSE NURSING HOME,04/07/2011,646.60
Bath & North East Somerset Council,21101945,LM6,Nursing Care,C03,Adult Social Services & Housing,CHOLWELL HOUSE NURSING HOME,04/07/2011,646.60
Bath & North East Somerset Council,21101945,LM6,Nursing Care,C03,Adult Social Services & Housing,CHOLWELL HOUSE NURSING HOME,04/07/2011,650.00
Bath & North East Somerset Council,21101945,LM6,Nursing Care,C03,Adult Social Services & Housing,CHOLWELL HOUSE NURSING HOME,04/07/2011,650.00
Bath & North East Somerset Council,21101947,LM6,Nursing Care,C03,Adult Social Services & Housing,BRIDGE CARE LTD,04/07/2011,650.00
Bath & North East Somerset Council,21101947,LM6,Nursing Care,C03,Adult Social Services & Housing,BRIDGE CARE LTD,04/07/2011,650.00
Bath & North East Somerset Council,21101948,LM6,Nursing Care,C03,Adult Social Services & Housing,STANTON COURT,04/07/2011,650.00
Bath & North East Somerset Council,21101948,LM6,Nursing Care,C03,Adult Social Services & Housing,STANTON COURT,04/07/2011,650.00
Bath & North East Somerset Council,21101948,LM6,Nursing Care,C03,Adult Social Services & Housing,STANTON COURT,04/07/2011,650.00
Bath & North East Somerset Council,21101948,LM6,Nursing Care,C03,Adult Social Services & Housing,STANTON COURT,04/07/2011,650.00
Bath & North East Somerset Council,21101949,LM6,Nursing Care,C03,Adult Social Services & Housing,WESTCROFT NURSING HOME,04/07/2011,650.00
Bath & North East Somerset Council,21101949,LM6,Nursing Care,C03,Adult Social Services & Housing,WESTCROFT NURSING HOME,04/07/2011,650.00
Bath & North East Somerset Council,21101952,LM6,Nursing Care,C03,Adult Social Services & Housing,PARK STREET HOME,04/07/2011,650.00
Bath & North East Somerset Council,21101952,LM6,Nursing Care,C03,Adult Social Services & Housing,PARK STREET HOME,04/07/2011,650.00
Bath & North East Somerset Council,21101954,LM6,Nursing Care,C03,Adult Social Services & Housing,CULVERHAY NURSING HOME,04/07/2011,650.00
Bath & North East Somerset Council,21101954,LM6,Nursing Care,C03,Adult Social Services & Housing,CULVERHAY NURSING HOME,04/07/2011,650.00
Bath & North East Somerset Council,21101954,LM6,Nursing Care,C03,Adult Social Services & Housing,CULVERHAY NURSING HOME,04/07/2011,650.00
Bath & North East Somerset Council,21101954,LM6,Nursing Care,C03,Adult Social Services & Housing,CULVERHAY NURSING HOME,04/07/2011,650.00
Bath & North East Somerset Council,21101954,LM6,Nursing Care,C03,Adult Social Services & Housing,CULVERHAY NURSING HOME,04/07/2011,650.00
Bath & North East Somerset Council,21101954,LM6,Nursing Care,C03,Adult Social Services & Housing,CULVERHAY NURSING HOME,04/07/2011,650.00
Bath & North East Somerset Council,21101954,LM6,Nursing Care,C03,Adult Social Services & Housing,CULVERHAY NURSING HOME,04/07/2011,650.00
Bath & North East Somerset Council,21101954,LM6,Nursing Care,C03,Adult Social Services & Housing,CULVERHAY NURSING HOME,04/07/2011,650.00
Bath & North East Somerset Council,21101954,LM6,Nursing Care,C03,Adult Social Services & Housing,CULVERHAY NURSING HOME,04/07/2011,650.00
Bath & North East Somerset Council,21101954,LM6,Nursing Care,C03,Adult Social Services & Housing,CULVERHAY NURSING HOME,04/07/2011,650.00
Bath & North East Somerset Council,21101955,LM6,Nursing Care,C03,Adult Social Services & Housing,OAKFIELD,04/07/2011,650.00
Bath & North East Somerset Council,21101955,LM6,Nursing Care,C03,Adult Social Services & Housing,OAKFIELD,04/07/2011,650.00
Bath & North East Somerset Council,21101956,LM6,Nursing Care,C03,Adult Social Services & Housing,BARCHESTER HEALTHCARE HOMES LTD,04/07/2011,650.00
Bath & North East Somerset Council,21101956,LM6,Nursing Care,C03,Adult Social Services & Housing,BARCHESTER HEALTHCARE HOMES LTD,04/07/2011,650.00
Bath & North East Somerset Council,21101956,LM6,Nursing Care,C03,Adult Social Services & Housing,BARCHESTER HEALTHCARE HOMES LTD,04/07/2011,650.00
Bath & North East Somerset Council,21101956,LM6,Nursing Care,C03,Adult Social Services & Housing,BARCHESTER HEALTHCARE HOMES LTD,04/07/2011,650.00
Bath & North East Somerset Council,21101956,LM6,Nursing Care,C03,Adult Social Services & Housing,BARCHESTER HEALTHCARE HOMES LTD,04/07/2011,650.00
Bath & North East Somerset Council,21101956,LM6,Nursing Care,C03,Adult Social Services & Housing,BARCHESTER HEALTHCARE HOMES LTD,04/07/2011,650.00
Bath & North East Somerset Council,21101956,LM6,Nursing Care,C03,Adult Social Services & Housing,BARCHESTER HEALTHCARE HOMES LTD,04/07/2011,650.00
Bath & North East Somerset Council,21101956,LM6,Nursing Care,C03,Adult Social Services & Housing,BARCHESTER HEALTHCARE HOMES LTD,04/07/2011,650.00
Bath & North East Somerset Council,21101956,LM6,Nursing Care,C03,Adult Social Services & Housing,BARCHESTER HEALTHCARE HOMES LTD,04/07/2011,650.00
Bath & North East Somerset Council,21101956,LM6,Nursing Care,C03,Adult Social Services & Housing,BARCHESTER HEALTHCARE HOMES LTD,04/07/2011,650.00
Bath & North East Somerset Council,21101956,LM6,Nursing Care,C03,Adult Social Services & Housing,BARCHESTER HEALTHCARE HOMES LTD,04/07/2011,650.00
Bath & North East Somerset Council,21101956,LM6,Nursing Care,C03,Adult Social Services & Housing,BARCHESTER HEALTHCARE HOMES LTD,04/07/2011,650.00
Bath & North East Somerset Council,21101956,LM6,Nursing Care,C03,Adult Social Services & Housing,BARCHESTER HEALTHCARE HOMES LTD,04/07/2011,650.00
Bath & North East Somerset Council,21101956,LM6,Nursing Care,C03,Adult Social Services & Housing,BARCHESTER HEALTHCARE HOMES LTD,04/07/2011,650.00
Bath & North East Somerset Council,21101956,LM6,Nursing Care,C03,Adult Social Services & Housing,BARCHESTER HEALTHCARE HOMES LTD,04/07/2011,650.00
Bath & North East Somerset Council,21101956,LM6,Nursing Care,C03,Adult Social Services & Housing,BARCHESTER HEALTHCARE HOMES LTD,04/07/2011,650.00
Bath & North East Somerset Council,21101956,LM6,Nursing Care,C03,Adult Social Services & Housing,BARCHESTER HEALTHCARE HOMES LTD,04/07/2011,650.00
Bath & North East Somerset Council,21101956,LM6,Nursing Care,C03,Adult Social Services & Housing,BARCHESTER HEALTHCARE HOMES LTD,04/07/2011,650.00
Bath & North East Somerset Council,21101956,LM6,Nursing Care,C03,Adult Social Services & Housing,BARCHESTER HEALTHCARE HOMES LTD,04/07/2011,650.00
Bath & North East Somerset Council,21101956,LM6,Nursing Care,C03,Adult Social Services & Housing,BARCHESTER HEALTHCARE HOMES LTD,04/07/2011,650.00
Bath & North East Somerset Council,21101956,LM6,Nursing Care,C03,Adult Social Services & Housing,BARCHESTER HEALTHCARE HOMES LTD,04/07/2011,650.00
Bath & North East Somerset Council,21101956,LM6,Nursing Care,C03,Adult Social Services & Housing,BARCHESTER HEALTHCARE HOMES LTD,04/07/2011,650.00
Bath & North East Somerset Council,21101956,LM6,Nursing Care,C03,Adult Social Services & Housing,BARCHESTER HEALTHCARE HOMES LTD,04/07/2011,650.00
Bath & North East Somerset Council,21101956,LM6,Nursing Care,C03,Adult Social Services & Housing,BARCHESTER HEALTHCARE HOMES LTD,04/07/2011,650.00
Bath & North East Somerset Council,21101956,LM6,Nursing Care,C03,Adult Social Services & Housing,BARCHESTER HEALTHCARE HOMES LTD,04/07/2011,650.00
Bath & North East Somerset Council,21101956,LM6,Nursing Care,C03,Adult Social Services & Housing,BARCHESTER HEALTHCARE HOMES LTD,04/07/2011,650.00
Bath & North East Somerset Council,21101956,LM6,Nursing Care,C03,Adult Social Services & Housing,BARCHESTER HEALTHCARE HOMES LTD,04/07/2011,650.00
Bath & North East Somerset Council,21101956,LM6,Nursing Care,C03,Adult Social Services & Housing,BARCHESTER HEALTHCARE HOMES LTD,04/07/2011,650.00
Bath & North East Somerset Council,21101956,LM6,Nursing Care,C03,Adult Social Services & Housing,BARCHESTER HEALTHCARE HOMES LTD,04/07/2011,650.00
Bath & North East Somerset Council,21101956,LM6,Nursing Care,C03,Adult Social Services & Housing,BARCHESTER HEALTHCARE HOMES LTD,04/07/2011,650.00
Bath & North East Somerset Council,21101956,LM6,Nursing Care,C03,Adult Social Services & Housing,BARCHESTER HEALTHCARE HOMES LTD,04/07/2011,650.00
Bath & North East Somerset Council,21101956,LM6,Nursing Care,C03,Adult Social Services & Housing,BARCHESTER HEALTHCARE HOMES LTD,04/07/2011,650.00
Bath & North East Somerset Council,21101958,LM6,Nursing Care,C03,Adult Social Services & Housing,EUROPEAN CARE (UK) LTD - REDACTED A/C,04/07/2011,650.00
Bath & North East Somerset Council,21101958,LM6,Nursing Care,C03,Adult Social Services & Housing,EUROPEAN CARE (UK) LTD - REDACTED A/C,04/07/2011,650.00
Bath & North East Somerset Council,21101958,LM6,Nursing Care,C03,Adult Social Services & Housing,EUROPEAN CARE (UK) LTD - REDACTED A/C,04/07/2011,650.00
Bath & North East Somerset Council,21101962,LM6,Nursing Care,C03,Adult Social Services & Housing,CARE FIRST CARE HOMES LTD,04/07/2011,650.00
Bath & North East Somerset Council,21101962,LM6,Nursing Care,C03,Adult Social Services & Housing,CARE FIRST CARE HOMES LTD,04/07/2011,650.00
Bath & North East Somerset Council,21101962,LM6,Nursing Care,C03,Adult Social Services & Housing,CARE FIRST CARE HOMES LTD,04/07/2011,650.00
Bath & North East Somerset Council,21101962,LM6,Nursing Care,C03,Adult Social Services & Housing,CARE FIRST CARE HOMES LTD,04/07/2011,650.00
Bath & North East Somerset Council,21101963,LM6,Nursing Care,C03,Adult Social Services & Housing,SOUTHERN CROSS (REDACTED),04/07/2011,650.00
Bath & North East Somerset Council,21101963,LM6,Nursing Care,C03,Adult Social Services & Housing,SOUTHERN CROSS (REDACTED),04/07/2011,650.00
Bath & North East Somerset Council,21101964,LM6,Nursing Care,C03,Adult Social Services & Housing,SOUTHERN CROSS (REDACTED),04/07/2011,650.00
Bath & North East Somerset Council,21101964,LM6,Nursing Care,C03,Adult Social Services & Housing,SOUTHERN CROSS (REDACTED),04/07/2011,650.00
Bath & North East Somerset Council,21101964,LM6,Nursing Care,C03,Adult Social Services & Housing,SOUTHERN CROSS (REDACTED),04/07/2011,650.00
Bath & North East Somerset Council,21101964,LM6,Nursing Care,C03,Adult Social Services & Housing,SOUTHERN CROSS (REDACTED),04/07/2011,650.00
Bath & North East Somerset Council,21101978,LM6,Nursing Care,C03,Adult Social Services & Housing,BARKER CHEMICALS LTD T/A ST TERESA'S NH,04/07/2011,650.00
Bath & North East Somerset Council,21101978,LM6,Nursing Care,C03,Adult Social Services & Housing,BARKER CHEMICALS LTD T/A ST TERESA'S NH,04/07/2011,650.00
Bath & North East Somerset Council,21101978,LM6,Nursing Care,C03,Adult Social Services & Housing,BARKER CHEMICALS LTD T/A ST TERESA'S NH,04/07/2011,650.00
Bath & North East Somerset Council,21101978,LM6,Nursing Care,C03,Adult Social Services & Housing,BARKER CHEMICALS LTD T/A ST TERESA'S NH,04/07/2011,650.00
Bath & North East Somerset Council,21101978,LM6,Nursing Care,C03,Adult Social Services & Housing,BARKER CHEMICALS LTD T/A ST TERESA'S NH,04/07/2011,650.00
Bath & North East Somerset Council,21101978,LM6,Nursing Care,C03,Adult Social Services & Housing,BARKER CHEMICALS LTD T/A ST TERESA'S NH,04/07/2011,650.00
Bath & North East Somerset Council,21101978,LM6,Nursing Care,C03,Adult Social Services & Housing,BARKER CHEMICALS LTD T/A ST TERESA'S NH,04/07/2011,650.00
Bath & North East Somerset Council,21101978,LM6,Nursing Care,C03,Adult Social Services & Housing,BARKER CHEMICALS LTD T/A ST TERESA'S NH,04/07/2011,650.00
Bath & North East Somerset Council,21101978,LM6,Nursing Care,C03,Adult Social Services & Housing,BARKER CHEMICALS LTD T/A ST TERESA'S NH,04/07/2011,650.00
Bath & North East Somerset Council,21101978,LM6,Nursing Care,C03,Adult Social Services & Housing,BARKER CHEMICALS LTD T/A ST TERESA'S NH,04/07/2011,650.00
Bath & North East Somerset Council,21101978,LM6,Nursing Care,C03,Adult Social Services & Housing,BARKER CHEMICALS LTD T/A ST TERESA'S NH,04/07/2011,650.00
Bath & North East Somerset Council,21101978,LM6,Nursing Care,C03,Adult Social Services & Housing,BARKER CHEMICALS LTD T/A ST TERESA'S NH,04/07/2011,650.00
Bath & North East Somerset Council,21101978,LM6,Nursing Care,C03,Adult Social Services & Housing,BARKER CHEMICALS LTD T/A ST TERESA'S NH,04/07/2011,650.00
Bath & North East Somerset Council,21101982,LM6,Nursing Care,C03,Adult Social Services & Housing,CARE FIRST CARE HOMES LTD,04/07/2011,650.00
Bath & North East Somerset Council,21101982,LM6,Nursing Care,C03,Adult Social Services & Housing,CARE FIRST CARE HOMES LTD,04/07/2011,650.00
Bath & North East Somerset Council,21101984,LM6,Nursing Care,C03,Adult Social Services & Housing,CEDAR CARE HOMES LTD,04/07/2011,650.00
Bath & North East Somerset Council,21101984,LM6,Nursing Care,C03,Adult Social Services & Housing,CEDAR CARE HOMES LTD,04/07/2011,650.00
Bath & North East Somerset Council,21101984,LM6,Nursing Care,C03,Adult Social Services & Housing,CEDAR CARE HOMES LTD,04/07/2011,650.00
Bath & North East Somerset Council,21101984,LM6,Nursing Care,C03,Adult Social Services & Housing,CEDAR CARE HOMES LTD,04/07/2011,650.00
Bath & North East Somerset Council,21101984,LM6,Nursing Care,C03,Adult Social Services & Housing,CEDAR CARE HOMES LTD,04/07/2011,650.00
Bath & North East Somerset Council,21101984,LM6,Nursing Care,C03,Adult Social Services & Housing,CEDAR CARE HOMES LTD,04/07/2011,650.00
Bath & North East Somerset Council,21101984,LM6,Nursing Care,C03,Adult Social Services & Housing,CEDAR CARE HOMES LTD,04/07/2011,650.00
Bath & North East Somerset Council,21101984,LM6,Nursing Care,C03,Adult Social Services & Housing,CEDAR CARE HOMES LTD,04/07/2011,650.00
Bath & North East Somerset Council,21101984,LM6,Nursing Care,C03,Adult Social Services & Housing,CEDAR CARE HOMES LTD,04/07/2011,650.00
Bath & North East Somerset Council,21101984,LM6,Nursing Care,C03,Adult Social Services & Housing,CEDAR CARE HOMES LTD,04/07/2011,650.00
Bath & North East Somerset Council,21101984,LM6,Nursing Care,C03,Adult Social Services & Housing,CEDAR CARE HOMES LTD,04/07/2011,650.00
Bath & North East Somerset Council,21101984,LM6,Nursing Care,C03,Adult Social Services & Housing,CEDAR CARE HOMES LTD,04/07/2011,650.00
Bath & North East Somerset Council,21101984,LM6,Nursing Care,C03,Adult Social Services & Housing,CEDAR CARE HOMES LTD,04/07/2011,650.00
Bath & North East Somerset Council,21101984,LM6,Nursing Care,C03,Adult Social Services & Housing,CEDAR CARE HOMES LTD,04/07/2011,650.00
Bath & North East Somerset Council,21101984,LM6,Nursing Care,C03,Adult Social Services & Housing,CEDAR CARE HOMES LTD,04/07/2011,650.00
Bath & North East Somerset Council,21101984,LM6,Nursing Care,C03,Adult Social Services & Housing,CEDAR CARE HOMES LTD,04/07/2011,650.00
Bath & North East Somerset Council,10617886,LL1,Services to Clients,C03,Adult Social Services & Housing,SWAN ADVICE NETWORK,04/07/2011,658.60
Bath & North East Somerset Council,21101971,LM6,Nursing Care,C03,Adult Social Services & Housing,ROSEVILLE CARE HOMES MELKSHAM,04/07/2011,665.00
Bath & North East Somerset Council,21101971,LM6,Nursing Care,C03,Adult Social Services & Housing,ROSEVILLE CARE HOMES MELKSHAM,04/07/2011,665.00
Bath & North East Somerset Council,21101828,LL8,Individualised Budget,C03,Adult Social Services & Housing,REDACTED,04/07/2011,667.25
Bath & North East Somerset Council,21101828,LL8,Individualised Budget,C03,Adult Social Services & Housing,REDACTED,04/07/2011,667.25
Bath & North East Somerset Council,10618090,LL1,Services to Clients,C03,Adult Social Services & Housing,MARIE HILLCOAT,04/07/2011,672.25
Bath & North East Somerset Council,10615440,LC1,Provisions,C02,Resources,APETITO LTD,04/07/2011,674.64
Bath & North East Somerset Council,21101977,LM6,Nursing Care,C03,Adult Social Services & Housing,T C CAREHOME LTD,04/07/2011,675.00
Bath & North East Somerset Council,21101977,LM6,Nursing Care,C03,Adult Social Services & Housing,T C CAREHOME LTD,04/07/2011,675.00
Bath & North East Somerset Council,21101956,LM6,Nursing Care,C03,Adult Social Services & Housing,BARCHESTER HEALTHCARE HOMES LTD,04/07/2011,675.61
Bath & North East Somerset Council,21101956,LM6,Nursing Care,C03,Adult Social Services & Housing,BARCHESTER HEALTHCARE HOMES LTD,04/07/2011,675.61
Bath & North East Somerset Council,21101722,LL3,Supported Living,C03,Adult Social Services & Housing,S.W.A.L.L.O.W. LTD,04/07/2011,675.91
Bath & North East Somerset Council,21101722,LL3,Supported Living,C03,Adult Social Services & Housing,S.W.A.L.L.O.W. LTD,04/07/2011,675.91
Bath & North East Somerset Council,21101722,LL3,Supported Living,C03,Adult Social Services & Housing,S.W.A.L.L.O.W. LTD,04/07/2011,675.91
Bath & North East Somerset Council,21101722,LL3,Supported Living,C03,Adult Social Services & Housing,S.W.A.L.L.O.W. LTD,04/07/2011,675.91
Bath & North East Somerset Council,21101722,LL3,Supported Living,C03,Adult Social Services & Housing,S.W.A.L.L.O.W. LTD,04/07/2011,675.91
Bath & North East Somerset Council,21101722,LL3,Supported Living,C03,Adult Social Services & Housing,S.W.A.L.L.O.W. LTD,04/07/2011,675.91
Bath & North East Somerset Council,21101713,LL3,Supported Living,C03,Adult Social Services & Housing,NATIONAL AUTISTIC SOCIETY,04/07/2011,680.75
Bath & North East Somerset Council,21101713,LL3,Supported Living,C03,Adult Social Services & Housing,NATIONAL AUTISTIC SOCIETY,04/07/2011,680.75
Bath & North East Somerset Council,21101713,LL3,Supported Living,C03,Adult Social Services & Housing,NATIONAL AUTISTIC SOCIETY,04/07/2011,680.75
Bath & North East Somerset Council,21101713,LL3,Supported Living,C03,Adult Social Services & Housing,NATIONAL AUTISTIC SOCIETY,04/07/2011,680.75
Bath & North East Somerset Council,21101956,LM6,Nursing Care,C03,Adult Social Services & Housing,BARCHESTER HEALTHCARE HOMES LTD,04/07/2011,691.00
Bath & North East Somerset Council,21101956,LM6,Nursing Care,C03,Adult Social Services & Housing,BARCHESTER HEALTHCARE HOMES LTD,04/07/2011,691.00
Bath & North East Somerset Council,21101956,LM6,Nursing Care,C03,Adult Social Services & Housing,BARCHESTER HEALTHCARE HOMES LTD,04/07/2011,691.00
Bath & North East Somerset Council,21101956,LM6,Nursing Care,C03,Adult Social Services & Housing,BARCHESTER HEALTHCARE HOMES LTD,04/07/2011,691.00
Bath & North East Somerset Council,21101956,LM6,Nursing Care,C03,Adult Social Services & Housing,BARCHESTER HEALTHCARE HOMES LTD,04/07/2011,691.00
Bath & North East Somerset Council,21101956,LM6,Nursing Care,C03,Adult Social Services & Housing,BARCHESTER HEALTHCARE HOMES LTD,04/07/2011,691.00
Bath & North East Somerset Council,21101956,LM6,Nursing Care,C03,Adult Social Services & Housing,BARCHESTER HEALTHCARE HOMES LTD,04/07/2011,691.00
Bath & North East Somerset Council,21101956,LM6,Nursing Care,C03,Adult Social Services & Housing,BARCHESTER HEALTHCARE HOMES LTD,04/07/2011,691.00
Bath & North East Somerset Council,21101956,LM6,Nursing Care,C03,Adult Social Services & Housing,BARCHESTER HEALTHCARE HOMES LTD,04/07/2011,691.00
Bath & North East Somerset Council,10618073,PB4,Payments to Private Contractors,C06,Service Delivery,M J CHURCH PLANT HIRE LTD,04/07/2011,697.44
Bath & North East Somerset Council,21101954,LM6,Nursing Care,C03,Adult Social Services & Housing,CULVERHAY NURSING HOME,04/07/2011,700.00
Bath & North East Somerset Council,21101954,LM6,Nursing Care,C03,Adult Social Services & Housing,CULVERHAY NURSING HOME,04/07/2011,700.00
Bath & North East Somerset Council,21101954,LM6,Nursing Care,C03,Adult Social Services & Housing,CULVERHAY NURSING HOME,04/07/2011,700.00
Bath & North East Somerset Council,21101954,LM6,Nursing Care,C03,Adult Social Services & Housing,CULVERHAY NURSING HOME,04/07/2011,700.00
Bath & North East Somerset Council,21101954,LM6,Nursing Care,C03,Adult Social Services & Housing,CULVERHAY NURSING HOME,04/07/2011,700.00
Bath & North East Somerset Council,21101954,LM6,Nursing Care,C03,Adult Social Services & Housing,CULVERHAY NURSING HOME,04/07/2011,700.00
Bath & North East Somerset Council,21101954,LM6,Nursing Care,C03,Adult Social Services & Housing,CULVERHAY NURSING HOME,04/07/2011,700.00
Bath & North East Somerset Council,21101954,LM6,Nursing Care,C03,Adult Social Services & Housing,CULVERHAY NURSING HOME,04/07/2011,700.00
Bath & North East Somerset Council,21101978,LM6,Nursing Care,C03,Adult Social Services & Housing,BARKER CHEMICALS LTD T/A ST TERESA'S NH,04/07/2011,700.00
Bath & North East Somerset Council,21101978,LM6,Nursing Care,C03,Adult Social Services & Housing,BARKER CHEMICALS LTD T/A ST TERESA'S NH,04/07/2011,700.00
Bath & North East Somerset Council,10616360,KF2,Insurance Excess Payments,C06,Service Delivery,AVON ACCIDENT AUTO REPAIR CENTRE,04/07/2011,709.25
Bath & North East Somerset Council,10617818,LC1,Provisions,C03,Adult Social Services & Housing,L & F JONES HOLDINGS LTD,04/07/2011,711.44
Bath & North East Somerset Council,21101945,LM6,Nursing Care,C03,Adult Social Services & Housing,CHOLWELL HOUSE NURSING HOME,04/07/2011,711.90
Bath & North East Somerset Council,21101945,LM6,Nursing Care,C03,Adult Social Services & Housing,CHOLWELL HOUSE NURSING HOME,04/07/2011,711.90
Bath & North East Somerset Council,21101945,LM6,Nursing Care,C03,Adult Social Services & Housing,CHOLWELL HOUSE NURSING HOME,04/07/2011,711.90
Bath & North East Somerset Council,21101945,LM6,Nursing Care,C03,Adult Social Services & Housing,CHOLWELL HOUSE NURSING HOME,04/07/2011,711.90
Bath & North East Somerset Council,21101949,LM6,Nursing Care,C03,Adult Social Services & Housing,WESTCROFT NURSING HOME,04/07/2011,711.90
Bath & North East Somerset Council,21101949,LM6,Nursing Care,C03,Adult Social Services & Housing,WESTCROFT NURSING HOME,04/07/2011,711.90
Bath & North East Somerset Council,10616274,HK1,Highway Maintenance,C06,Service Delivery,JACKSONS FINE FENCING,04/07/2011,712.32
Bath & North East Somerset Council,10618345,LJ4,Contracts,C06,Service Delivery,M M PALMER,04/07/2011,720.00
Bath & North East Somerset Council,21101941,LL8,Individualised Budget,C03,Adult Social Services & Housing,REDACTED,04/07/2011,720.00
Bath & North East Somerset Council,21101945,LM6,Nursing Care,C03,Adult Social Services & Housing,CHOLWELL HOUSE NURSING HOME,04/07/2011,725.00
Bath & North East Somerset Council,21101945,LM6,Nursing Care,C03,Adult Social Services & Housing,CHOLWELL HOUSE NURSING HOME,04/07/2011,725.00
Bath & North East Somerset Council,21101945,LM6,Nursing Care,C03,Adult Social Services & Housing,CHOLWELL HOUSE NURSING HOME,04/07/2011,725.00
Bath & North East Somerset Council,21101945,LM6,Nursing Care,C03,Adult Social Services & Housing,CHOLWELL HOUSE NURSING HOME,04/07/2011,725.00
Bath & North East Somerset Council,21101951,LM6,Nursing Care,C03,Adult Social Services & Housing,CEDAR PARK NURSING HOME,04/07/2011,725.00
Bath & North East Somerset Council,21101951,LM6,Nursing Care,C03,Adult Social Services & Housing,CEDAR PARK NURSING HOME,04/07/2011,725.00
Bath & North East Somerset Council,21101954,LM6,Nursing Care,C03,Adult Social Services & Housing,CULVERHAY NURSING HOME,04/07/2011,725.00
Bath & North East Somerset Council,21101954,LM6,Nursing Care,C03,Adult Social Services & Housing,CULVERHAY NURSING HOME,04/07/2011,725.00
Bath & North East Somerset Council,21101956,LM6,Nursing Care,C03,Adult Social Services & Housing,BARCHESTER HEALTHCARE HOMES LTD,04/07/2011,725.00
Bath & North East Somerset Council,21101956,LM6,Nursing Care,C03,Adult Social Services & Housing,BARCHESTER HEALTHCARE HOMES LTD,04/07/2011,725.00
Bath & North East Somerset Council,21101978,LM6,Nursing Care,C03,Adult Social Services & Housing,BARKER CHEMICALS LTD T/A ST TERESA'S NH,04/07/2011,725.00
Bath & North East Somerset Council,21101978,LM6,Nursing Care,C03,Adult Social Services & Housing,BARKER CHEMICALS LTD T/A ST TERESA'S NH,04/07/2011,725.00
Bath & North East Somerset Council,21101958,LM6,Nursing Care,C03,Adult Social Services & Housing,EUROPEAN CARE (UK) LTD - REDACTED A/C,04/07/2011,739.87
Bath & North East Somerset Council,21101958,LM6,Nursing Care,C03,Adult Social Services & Housing,EUROPEAN CARE (UK) LTD - REDACTED A/C,04/07/2011,739.87
Bath & North East Somerset Council,21101983,LM6,Nursing Care,C03,Adult Social Services & Housing,MILLENNIUM CARE HOMES LTD,04/07/2011,745.00
Bath & North East Somerset Council,21101983,LM6,Nursing Care,C03,Adult Social Services & Housing,MILLENNIUM CARE HOMES LTD,04/07/2011,745.00
Bath & North East Somerset Council,21101947,LM6,Nursing Care,C03,Adult Social Services & Housing,BRIDGE CARE LTD,04/07/2011,750.00
Bath & North East Somerset Council,21101947,LM6,Nursing Care,C03,Adult Social Services & Housing,BRIDGE CARE LTD,04/07/2011,750.00
Bath & North East Somerset Council,21101948,LM6,Nursing Care,C03,Adult Social Services & Housing,STANTON COURT,04/07/2011,750.00
Bath & North East Somerset Council,21101948,LM6,Nursing Care,C03,Adult Social Services & Housing,STANTON COURT,04/07/2011,750.00
Bath & North East Somerset Council,21101953,LM6,Nursing Care,C03,Adult Social Services & Housing,BYBROOK HOUSE,04/07/2011,750.00
Bath & North East Somerset Council,21101953,LM6,Nursing Care,C03,Adult Social Services & Housing,BYBROOK HOUSE,04/07/2011,750.00
Bath & North East Somerset Council,21101954,LM6,Nursing Care,C03,Adult Social Services & Housing,CULVERHAY NURSING HOME,04/07/2011,750.00
Bath & North East Somerset Council,21101954,LM6,Nursing Care,C03,Adult Social Services & Housing,CULVERHAY NURSING HOME,04/07/2011,750.00
Bath & North East Somerset Council,21101954,LM6,Nursing Care,C03,Adult Social Services & Housing,CULVERHAY NURSING HOME,04/07/2011,750.00
Bath & North East Somerset Council,21101954,LM6,Nursing Care,C03,Adult Social Services & Housing,CULVERHAY NURSING HOME,04/07/2011,750.00
Bath & North East Somerset Council,21101954,LM6,Nursing Care,C03,Adult Social Services & Housing,CULVERHAY NURSING HOME,04/07/2011,750.00
Bath & North East Somerset Council,21101954,LM6,Nursing Care,C03,Adult Social Services & Housing,CULVERHAY NURSING HOME,04/07/2011,750.00
Bath & North East Somerset Council,21101954,LM6,Nursing Care,C03,Adult Social Services & Housing,CULVERHAY NURSING HOME,04/07/2011,750.00
Bath & North East Somerset Council,21101954,LM6,Nursing Care,C03,Adult Social Services & Housing,CULVERHAY NURSING HOME,04/07/2011,750.00
Bath & North East Somerset Council,21101954,LM6,Nursing Care,C03,Adult Social Services & Housing,CULVERHAY NURSING HOME,04/07/2011,750.00
Bath & North East Somerset Council,21101954,LM6,Nursing Care,C03,Adult Social Services & Housing,CULVERHAY NURSING HOME,04/07/2011,750.00
Bath & North East Somerset Council,21101954,LM6,Nursing Care,C03,Adult Social Services & Housing,CULVERHAY NURSING HOME,04/07/2011,750.00
Bath & North East Somerset Council,21101954,LM6,Nursing Care,C03,Adult Social Services & Housing,CULVERHAY NURSING HOME,04/07/2011,750.00
Bath & North East Somerset Council,21101956,LM6,Nursing Care,C03,Adult Social Services & Housing,BARCHESTER HEALTHCARE HOMES LTD,04/07/2011,750.00
Bath & North East Somerset Council,21101956,LM6,Nursing Care,C03,Adult Social Services & Housing,BARCHESTER HEALTHCARE HOMES LTD,04/07/2011,750.00
Bath & North East Somerset Council,21101987,LM6,Nursing Care,C03,Adult Social Services & Housing,BUPA CARE SERVICES BACS RECEIPTS,04/07/2011,750.00
Bath & North East Somerset Council,21101987,LM6,Nursing Care,C03,Adult Social Services & Housing,BUPA CARE SERVICES BACS RECEIPTS,04/07/2011,750.00
Bath & North East Somerset Council,21101982,LM6,Nursing Care,C03,Adult Social Services & Housing,CARE FIRST CARE HOMES LTD,04/07/2011,754.61
Bath & North East Somerset Council,21101982,LM6,Nursing Care,C03,Adult Social Services & Housing,CARE FIRST CARE HOMES LTD,04/07/2011,754.61
Bath & North East Somerset Council,21101956,LM6,Nursing Care,C03,Adult Social Services & Housing,BARCHESTER HEALTHCARE HOMES LTD,04/07/2011,755.00
Bath & North East Somerset Council,21101956,LM6,Nursing Care,C03,Adult Social Services & Housing,BARCHESTER HEALTHCARE HOMES LTD,04/07/2011,755.00
Bath & North East Somerset Council,10618355,LJ4,Contracts,C06,Service Delivery,MARIAN CALINOIU,04/07/2011,756.00
Bath & North East Somerset Council,21101708,LL3,Supported Living,C03,Adult Social Services & Housing,NATIONAL AUTISTIC SOCIETY,04/07/2011,759.05
Bath & North East Somerset Council,21101708,LL3,Supported Living,C03,Adult Social Services & Housing,NATIONAL AUTISTIC SOCIETY,04/07/2011,759.05
Bath & North East Somerset Council,21101708,LL3,Supported Living,C03,Adult Social Services & Housing,NATIONAL AUTISTIC SOCIETY,04/07/2011,759.05
Bath & North East Somerset Council,21101708,LL3,Supported Living,C03,Adult Social Services & Housing,NATIONAL AUTISTIC SOCIETY,04/07/2011,759.05
Bath & North East Somerset Council,21101956,LM6,Nursing Care,C03,Adult Social Services & Housing,BARCHESTER HEALTHCARE HOMES LTD,04/07/2011,762.75
Bath & North East Somerset Council,21101956,LM6,Nursing Care,C03,Adult Social Services & Housing,BARCHESTER HEALTHCARE HOMES LTD,04/07/2011,762.75
Bath & North East Somerset Council,21101956,LM6,Nursing Care,C03,Adult Social Services & Housing,BARCHESTER HEALTHCARE HOMES LTD,04/07/2011,762.75
Bath & North East Somerset Council,21101956,LM6,Nursing Care,C03,Adult Social Services & Housing,BARCHESTER HEALTHCARE HOMES LTD,04/07/2011,762.75
Bath & North East Somerset Council,21101956,LM6,Nursing Care,C03,Adult Social Services & Housing,BARCHESTER HEALTHCARE HOMES LTD,04/07/2011,762.75
Bath & North East Somerset Council,21101956,LM6,Nursing Care,C03,Adult Social Services & Housing,BARCHESTER HEALTHCARE HOMES LTD,04/07/2011,762.75
Bath & North East Somerset Council,21101970,LM6,Nursing Care,C03,Adult Social Services & Housing,EXTRAFRIEND LTD,04/07/2011,762.75
Bath & North East Somerset Council,21101970,LM6,Nursing Care,C03,Adult Social Services & Housing,EXTRAFRIEND LTD,04/07/2011,762.75
Bath & North East Somerset Council,10614994,LA7,Purchases for Resale,C06,Service Delivery,EMBLEM PRINT PRODUCTS LTD,04/07/2011,765.38
Bath & North East Somerset Council,21101981,LM6,Nursing Care,C03,Adult Social Services & Housing,LIFESTYLE CARE (2005) PLC,04/07/2011,775.00
Bath & North East Somerset Council,21101981,LM6,Nursing Care,C03,Adult Social Services & Housing,LIFESTYLE CARE (2005) PLC,04/07/2011,775.00
Bath & North East Somerset Council,21101709,LL3,Supported Living,C03,Adult Social Services & Housing,NATIONAL AUTISTIC SOCIETY,04/07/2011,776.45
Bath & North East Somerset Council,21101709,LL3,Supported Living,C03,Adult Social Services & Housing,NATIONAL AUTISTIC SOCIETY,04/07/2011,776.45
Bath & North East Somerset Council,21101709,LL3,Supported Living,C03,Adult Social Services & Housing,NATIONAL AUTISTIC SOCIETY,04/07/2011,776.45
Bath & North East Somerset Council,21101709,LL3,Supported Living,C03,Adult Social Services & Housing,NATIONAL AUTISTIC SOCIETY,04/07/2011,776.45
Bath & North East Somerset Council,10615053,EA1,Training,C02,Resources,EVERSHEDS LLP,04/07/2011,783.75
Bath & North East Somerset Council,21101986,LM6,Nursing Care,C03,Adult Social Services & Housing,REDACTED,04/07/2011,787.00
Bath & North East Somerset Council,21101986,LM6,Nursing Care,C03,Adult Social Services & Housing,REDACTED,04/07/2011,787.00
Bath & North East Somerset Council,21101956,LM6,Nursing Care,C03,Adult Social Services & Housing,BARCHESTER HEALTHCARE HOMES LTD,04/07/2011,795.86
Bath & North East Somerset Council,21101956,LM6,Nursing Care,C03,Adult Social Services & Housing,BARCHESTER HEALTHCARE HOMES LTD,04/07/2011,798.35
Bath & North East Somerset Council,21101956,LM6,Nursing Care,C03,Adult Social Services & Housing,BARCHESTER HEALTHCARE HOMES LTD,04/07/2011,798.35
Bath & North East Somerset Council,21101954,LM6,Nursing Care,C03,Adult Social Services & Housing,CULVERHAY NURSING HOME,04/07/2011,800.00
Bath & North East Somerset Council,21101954,LM6,Nursing Care,C03,Adult Social Services & Housing,CULVERHAY NURSING HOME,04/07/2011,800.00
Bath & North East Somerset Council,21101978,LM6,Nursing Care,C03,Adult Social Services & Housing,BARKER CHEMICALS LTD T/A ST TERESA'S NH,04/07/2011,800.00
Bath & North East Somerset Council,21101978,LM6,Nursing Care,C03,Adult Social Services & Housing,BARKER CHEMICALS LTD T/A ST TERESA'S NH,04/07/2011,800.00
Bath & North East Somerset Council,21101984,LM6,Nursing Care,C03,Adult Social Services & Housing,CEDAR CARE HOMES LTD,04/07/2011,800.00
Bath & North East Somerset Council,21101984,LM6,Nursing Care,C03,Adult Social Services & Housing,CEDAR CARE HOMES LTD,04/07/2011,800.00
Bath & North East Somerset Council,21101984,LM6,Nursing Care,C03,Adult Social Services & Housing,CEDAR CARE HOMES LTD,04/07/2011,800.00
Bath & North East Somerset Council,21101984,LM6,Nursing Care,C03,Adult Social Services & Housing,CEDAR CARE HOMES LTD,04/07/2011,800.00
Bath & North East Somerset Council,21101710,LL3,Supported Living,C03,Adult Social Services & Housing,NATIONAL AUTISTIC SOCIETY,04/07/2011,811.25
Bath & North East Somerset Council,21101710,LL3,Supported Living,C03,Adult Social Services & Housing,NATIONAL AUTISTIC SOCIETY,04/07/2011,811.25
Bath & North East Somerset Council,21101710,LL3,Supported Living,C03,Adult Social Services & Housing,NATIONAL AUTISTIC SOCIETY,04/07/2011,811.25
Bath & North East Somerset Council,21101710,LL3,Supported Living,C03,Adult Social Services & Housing,NATIONAL AUTISTIC SOCIETY,04/07/2011,811.25
Bath & North East Somerset Council,10614797,LK1,Fees,C06,Service Delivery,WRITHLINGTON SPORTS CENTRE,04/07/2011,816.00
Bath & North East Somerset Council,21101743,LL3,Supported Living,C03,Adult Social Services & Housing,MOVING ON,04/07/2011,826.98
Bath & North East Somerset Council,21101743,LL3,Supported Living,C03,Adult Social Services & Housing,MOVING ON,04/07/2011,826.98
Bath & North East Somerset Council,21101743,LL3,Supported Living,C03,Adult Social Services & Housing,MOVING ON,04/07/2011,826.98
Bath & North East Somerset Council,21101743,LL3,Supported Living,C03,Adult Social Services & Housing,MOVING ON,04/07/2011,826.98
Bath & North East Somerset Council,21101948,LM6,Nursing Care,C03,Adult Social Services & Housing,STANTON COURT,04/07/2011,836.80
Bath & North East Somerset Council,21101948,LM6,Nursing Care,C03,Adult Social Services & Housing,STANTON COURT,04/07/2011,836.80
Bath & North East Somerset Council,21101956,LM6,Nursing Care,C03,Adult Social Services & Housing,BARCHESTER HEALTHCARE HOMES LTD,04/07/2011,839.03
Bath & North East Somerset Council,21101956,LM6,Nursing Care,C03,Adult Social Services & Housing,BARCHESTER HEALTHCARE HOMES LTD,04/07/2011,839.03
Bath & North East Somerset Council,21101948,LM6,Nursing Care,C03,Adult Social Services & Housing,STANTON COURT,04/07/2011,843.09
Bath & North East Somerset Council,21101948,LM6,Nursing Care,C03,Adult Social Services & Housing,STANTON COURT,04/07/2011,843.09
Bath & North East Somerset Council,21101721,LL3,Supported Living,C03,Adult Social Services & Housing,S.W.A.L.L.O.W. LTD,04/07/2011,846.60
Bath & North East Somerset Council,21101721,LL3,Supported Living,C03,Adult Social Services & Housing,S.W.A.L.L.O.W. LTD,04/07/2011,846.60
Bath & North East Somerset Council,21101721,LL3,Supported Living,C03,Adult Social Services & Housing,S.W.A.L.L.O.W. LTD,04/07/2011,846.60
Bath & North East Somerset Council,21101721,LL3,Supported Living,C03,Adult Social Services & Housing,S.W.A.L.L.O.W. LTD,04/07/2011,846.60
Bath & North East Somerset Council,21101721,LL3,Supported Living,C03,Adult Social Services & Housing,S.W.A.L.L.O.W. LTD,04/07/2011,846.60
Bath & North East Somerset Council,21101721,LL3,Supported Living,C03,Adult Social Services & Housing,S.W.A.L.L.O.W. LTD,04/07/2011,846.60
Bath & North East Somerset Council,10618275,LJ1,Consultants Fees,C03,Adult Social Services & Housing,AVRIL MENDEL,04/07/2011,852.48
Bath & North East Somerset Council,10618095,LJ4,Contracts,C05,Children's Services,FIRST RESPONSE TRAINING & CONSULTANC,04/07/2011,852.50
Bath & North East Somerset Council,10618348,LJ4,Contracts,C06,Service Delivery,R E & V P JEFFRIES,04/07/2011,868.32
Bath & North East Somerset Council,10616348,LA7,Purchases for Resale,C06,Service Delivery,ROMAN VISION LTD,04/07/2011,880.00
Bath & North East Somerset Council,10618238,LW9,Other Expenses,C05,Children's Services,BATH & NORTH EAST SOMERSET COUNCIL - OFFICE SERVIC,04/07/2011,889.25
Bath & North East Somerset Council,21101982,LM6,Nursing Care,C03,Adult Social Services & Housing,CARE FIRST CARE HOMES LTD,04/07/2011,894.96
Bath & North East Somerset Council,21101982,LM6,Nursing Care,C03,Adult Social Services & Housing,CARE FIRST CARE HOMES LTD,04/07/2011,894.96
Bath & North East Somerset Council,21101982,LM6,Nursing Care,C03,Adult Social Services & Housing,CARE FIRST CARE HOMES LTD,04/07/2011,894.96
Bath & North East Somerset Council,21101982,LM6,Nursing Care,C03,Adult Social Services & Housing,CARE FIRST CARE HOMES LTD,04/07/2011,894.96
Bath & North East Somerset Council,21101982,LM6,Nursing Care,C03,Adult Social Services & Housing,CARE FIRST CARE HOMES LTD,04/07/2011,894.96
Bath & North East Somerset Council,21101982,LM6,Nursing Care,C03,Adult Social Services & Housing,CARE FIRST CARE HOMES LTD,04/07/2011,894.96
Bath & North East Somerset Council,21101982,LM6,Nursing Care,C03,Adult Social Services & Housing,CARE FIRST CARE HOMES LTD,04/07/2011,894.96
Bath & North East Somerset Council,21101982,LM6,Nursing Care,C03,Adult Social Services & Housing,CARE FIRST CARE HOMES LTD,04/07/2011,894.96
Bath & North East Somerset Council,21101968,LM6,Nursing Care,C03,Adult Social Services & Housing,BARCHESTER HEALTHCARE,04/07/2011,915.30
Bath & North East Somerset Council,21101968,LM6,Nursing Care,C03,Adult Social Services & Housing,BARCHESTER HEALTHCARE,04/07/2011,915.30
Bath & North East Somerset Council,21101712,LL3,Supported Living,C03,Adult Social Services & Housing,NATIONAL AUTISTIC SOCIETY,04/07/2011,915.65
Bath & North East Somerset Council,21101712,LL3,Supported Living,C03,Adult Social Services & Housing,NATIONAL AUTISTIC SOCIETY,04/07/2011,915.65
Bath & North East Somerset Council,21101712,LL3,Supported Living,C03,Adult Social Services & Housing,NATIONAL AUTISTIC SOCIETY,04/07/2011,915.65
Bath & North East Somerset Council,21101712,LL3,Supported Living,C03,Adult Social Services & Housing,NATIONAL AUTISTIC SOCIETY,04/07/2011,915.65
Bath & North East Somerset Council,21101967,LM6,Nursing Care,C03,Adult Social Services & Housing,EUROPEAN CARE SW LTD - REDACTED AC,04/07/2011,937.17
Bath & North East Somerset Council,21101967,LM6,Nursing Care,C03,Adult Social Services & Housing,EUROPEAN CARE SW LTD - REDACTED AC,04/07/2011,937.17
Bath & North East Somerset Council,21101445,PG1,Rent Allowances,C02,Resources,REDACTED,04/07/2011,942.48
Bath & North East Somerset Council,21101767,LL8,Individualised Budget,C03,Adult Social Services & Housing,REDACTED,04/07/2011,951.82
Bath & North East Somerset Council,21101767,LL8,Individualised Budget,C03,Adult Social Services & Housing,REDACTED,04/07/2011,951.82
Bath & North East Somerset Council,21101969,LM6,Nursing Care,C03,Adult Social Services & Housing,LEONARD CHESHIRE FOUNDATION,04/07/2011,955.21
Bath & North East Somerset Council,21101969,LM6,Nursing Care,C03,Adult Social Services & Housing,LEONARD CHESHIRE FOUNDATION,04/07/2011,955.21
Bath & North East Somerset Council,21101980,LM6,Nursing Care,C03,Adult Social Services & Housing,WESTMINSTER HEALTHCARE LTD,04/07/2011,966.15
Bath & North East Somerset Council,21101980,LM6,Nursing Care,C03,Adult Social Services & Housing,WESTMINSTER HEALTHCARE LTD,04/07/2011,966.15
Bath & North East Somerset Council,10615228,LF6,Subscriptions,C06,Service Delivery,BRITISH PARKING ASSOCIATION,04/07/2011,980.00
Bath & North East Somerset Council,21101798,LL8,Individualised Budget,C03,Adult Social Services & Housing,REDACTED,04/07/2011,992.07
Bath & North East Somerset Council,21101798,LL8,Individualised Budget,C03,Adult Social Services & Housing,REDACTED,04/07/2011,992.07
Bath & North East Somerset Council,10618184,LA4,Equipment Hire/Rent,C06,Service Delivery,PITNEY BOWES LTD,04/07/2011,1000.00
Bath & North East Somerset Council,21101969,LM6,Nursing Care,C03,Adult Social Services & Housing,LEONARD CHESHIRE FOUNDATION,04/07/2011,1013.81
Bath & North East Somerset Council,21101969,LM6,Nursing Care,C03,Adult Social Services & Housing,LEONARD CHESHIRE FOUNDATION,04/07/2011,1013.81
Bath & North East Somerset Council,21101986,LM6,Nursing Care,C03,Adult Social Services & Housing,REDACTED,04/07/2011,1015.00
Bath & North East Somerset Council,21101986,LM6,Nursing Care,C03,Adult Social Services & Housing,REDACTED,04/07/2011,1015.00
Bath & North East Somerset Council,21101972,LM6,Nursing Care,C03,Adult Social Services & Housing,DORSET LODGE LTD,04/07/2011,1060.81
Bath & North East Somerset Council,21101972,LM6,Nursing Care,C03,Adult Social Services & Housing,DORSET LODGE LTD,04/07/2011,1060.81
Bath & North East Somerset Council,10618335,LJ4,Contracts,C06,Service Delivery,MR M L BRACEY T/A A B M MINIBUSES,04/07/2011,1064.00
Bath & North East Somerset Council,21101969,LM6,Nursing Care,C03,Adult Social Services & Housing,LEONARD CHESHIRE FOUNDATION,04/07/2011,1086.00
Bath & North East Somerset Council,21101969,LM6,Nursing Care,C03,Adult Social Services & Housing,LEONARD CHESHIRE FOUNDATION,04/07/2011,1086.00
Bath & North East Somerset Council,21101991,LM6,Nursing Care,C03,Adult Social Services & Housing,MIRAMAR (OPERATIONS) LTD,04/07/2011,1087.50
Bath & North East Somerset Council,21101991,LM6,Nursing Care,C03,Adult Social Services & Housing,MIRAMAR (OPERATIONS) LTD,04/07/2011,1087.50
Bath & North East Somerset Council,10615054,KB2,Vehicle Leasing,C06,Service Delivery,BANK OF SCOTLAND,04/07/2011,1107.20
Bath & North East Somerset Council,10615315,3J2,PCB Consultants,C02,Resources,MANN WILLIAMS LTD,04/07/2011,1112.50
Bath & North East Somerset Council,10618054,LJ4,Contracts,C06,Service Delivery,CENTURION TRAVEL LTD,04/07/2011,1125.00
Bath & North East Somerset Council,10618097,LJ4,Contracts,C06,Service Delivery,STEPHEN WARREN,04/07/2011,1126.25
Bath & North East Somerset Council,10618306,EA1,Training,C03,Adult Social Services & Housing,HEALTHCARE TRAINING & CONSULTANCY,04/07/2011,1170.00
Bath & North East Somerset Council,21101969,LM6,Nursing Care,C03,Adult Social Services & Housing,LEONARD CHESHIRE FOUNDATION,04/07/2011,1176.50
Bath & North East Somerset Council,21101969,LM6,Nursing Care,C03,Adult Social Services & Housing,LEONARD CHESHIRE FOUNDATION,04/07/2011,1176.50
Bath & North East Somerset Council,10614992,LA7,Purchases for Resale,C06,Service Delivery,CHRIS ANDREWS PUBLICATIONS LTD,04/07/2011,1180.00
Bath & North East Somerset Council,21101969,LM6,Nursing Care,C03,Adult Social Services & Housing,LEONARD CHESHIRE FOUNDATION,04/07/2011,1194.83
Bath & North East Somerset Council,21101969,LM6,Nursing Care,C03,Adult Social Services & Housing,LEONARD CHESHIRE FOUNDATION,04/07/2011,1194.83
Bath & North East Somerset Council,10616540,LJ2,Legal Fees,C02,Resources,MOGERS SOLICITORS,04/07/2011,1200.00
Bath & North East Somerset Council,21095970,LM8,Home Care,C03,Adult Social Services & Housing,ACTIVE ASSISTANCE,04/07/2011,1200.00
Bath & North East Somerset Council,21101761,LL8,Individualised Budget,C03,Adult Social Services & Housing,REDACTED,04/07/2011,1223.25
Bath & North East Somerset Council,21101761,LL8,Individualised Budget,C03,Adult Social Services & Housing,REDACTED,04/07/2011,1223.25
Bath & North East Somerset Council,10618299,HV5,Refuse Collection,C03,Adult Social Services & Housing,PHS GROUP LTD,04/07/2011,1225.41
Bath & North East Somerset Council,21101756,LL8,Individualised Budget,C03,Adult Social Services & Housing,REDACTED CARE ACCOUNT,04/07/2011,1267.30
Bath & North East Somerset Council,21101756,LL8,Individualised Budget,C03,Adult Social Services & Housing,REDACTED CARE ACCOUNT,04/07/2011,1267.30
Bath & North East Somerset Council,21101965,LM6,Nursing Care,C03,Adult Social Services & Housing,REDACTED,04/07/2011,1277.50
Bath & North East Somerset Council,21101965,LM6,Nursing Care,C03,Adult Social Services & Housing,REDACTED,04/07/2011,1277.50
Bath & North East Somerset Council,21101626,LL4,Direct Payments,C03,Adult Social Services & Housing,REDACTED,04/07/2011,1293.48
Bath & North East Somerset Council,21101626,LL4,Direct Payments,C03,Adult Social Services & Housing,REDACTED,04/07/2011,1293.48
Bath & North East Somerset Council,21095971,LM8,Home Care,C03,Adult Social Services & Housing,ACTIVE ASSISTANCE,04/07/2011,1300.00
Bath & North East Somerset Council,21101969,LM6,Nursing Care,C03,Adult Social Services & Housing,LEONARD CHESHIRE FOUNDATION,04/07/2011,1321.05
Bath & North East Somerset Council,21101969,LM6,Nursing Care,C03,Adult Social Services & Housing,LEONARD CHESHIRE FOUNDATION,04/07/2011,1321.05
Bath & North East Somerset Council,21101866,LL8,Individualised Budget,C03,Adult Social Services & Housing,REDACTED,04/07/2011,1333.47
Bath & North East Somerset Council,21101866,LL8,Individualised Budget,C03,Adult Social Services & Housing,REDACTED,04/07/2011,1333.47
Bath & North East Somerset Council,10618050,DB1,Agency Staff,C06,Service Delivery,C R DAWSON LTD,04/07/2011,1352.27
Bath & North East Somerset Council,21101946,LM6,Nursing Care,C03,Adult Social Services & Housing,SHERWOOD LODGE,04/07/2011,1361.76
Bath & North East Somerset Council,21101946,LM6,Nursing Care,C03,Adult Social Services & Housing,SHERWOOD LODGE,04/07/2011,1361.76
Bath & North East Somerset Council,10618352,LJ4,Contracts,C06,Service Delivery,MR C A HIGGS T/A LIBRA TRAVEL,04/07/2011,1388.14
Bath & North East Somerset Council,10617091,LA7,Purchases for Resale,C06,Service Delivery,UNEX DESIGNS LTD,04/07/2011,1392.10
Bath & North East Somerset Council,21101985,LM6,Nursing Care,C03,Adult Social Services & Housing,THE SUSSEX BEACON,04/07/2011,1400.00
Bath & North East Somerset Council,21101985,LM6,Nursing Care,C03,Adult Social Services & Housing,THE SUSSEX BEACON,04/07/2011,1400.00
Bath & North East Somerset Council,21101975,LM6,Nursing Care,C03,Adult Social Services & Housing,GLENSIDE MANOR HEALTHCARE SERVICES LTD,04/07/2011,1401.43
Bath & North East Somerset Council,21101975,LM6,Nursing Care,C03,Adult Social Services & Housing,GLENSIDE MANOR HEALTHCARE SERVICES LTD,04/07/2011,1401.43
Bath & North East Somerset Council,21101954,LM6,Nursing Care,C03,Adult Social Services & Housing,CULVERHAY NURSING HOME,04/07/2011,1409.00
Bath & North East Somerset Council,21101954,LM6,Nursing Care,C03,Adult Social Services & Housing,CULVERHAY NURSING HOME,04/07/2011,1409.00
Bath & North East Somerset Council,21101886,LL8,Individualised Budget,C03,Adult Social Services & Housing,REDACTED,04/07/2011,1415.92
Bath & North East Somerset Council,21101886,LL8,Individualised Budget,C03,Adult Social Services & Housing,REDACTED,04/07/2011,1415.92
Bath & North East Somerset Council,10618333,LJ4,Contracts,C06,Service Delivery,MR M L BRACEY T/A A B M MINIBUSES,04/07/2011,1429.18
Bath & North East Somerset Council,10616567,HK2,Street Lighting Maintenance,C06,Service Delivery,WESTERN POWER DISTRIBUTION (SO,04/07/2011,1471.52
Bath & North East Somerset Council,21101910,LL8,Individualised Budget,C03,Adult Social Services & Housing,REDACTED,04/07/2011,1472.72
Bath & North East Somerset Council,21101910,LL8,Individualised Budget,C03,Adult Social Services & Housing,REDACTED,04/07/2011,1472.72
Bath & North East Somerset Council,21101975,LM6,Nursing Care,C03,Adult Social Services & Housing,GLENSIDE MANOR HEALTHCARE SERVICES LTD,04/07/2011,1511.26
Bath & North East Somerset Council,21101975,LM6,Nursing Care,C03,Adult Social Services & Housing,GLENSIDE MANOR HEALTHCARE SERVICES LTD,04/07/2011,1511.26
Bath & North East Somerset Council,10618350,LJ4,Contracts,C06,Service Delivery,MR C A HIGGS T/A LIBRA TRAVEL,04/07/2011,1520.00
Bath & North East Somerset Council,21101976,LM6,Nursing Care,C03,Adult Social Services & Housing,GLENSIDE MANOR HEALTHCARE SERVICES LTD,04/07/2011,1528.55
Bath & North East Somerset Council,21101976,LM6,Nursing Care,C03,Adult Social Services & Housing,GLENSIDE MANOR HEALTHCARE SERVICES LTD,04/07/2011,1528.55
Bath & North East Somerset Council,21101973,LM6,Nursing Care,C03,Adult Social Services & Housing,COMMUNITY OF ST ANTONY & ST ELIAS & REV FR BGPR &,04/07/2011,1586.06
Bath & North East Somerset Council,21101973,LM6,Nursing Care,C03,Adult Social Services & Housing,COMMUNITY OF ST ANTONY & ST ELIAS & REV FR BGPR &,04/07/2011,1586.06
Bath & North East Somerset Council,21101973,LM6,Nursing Care,C03,Adult Social Services & Housing,COMMUNITY OF ST ANTONY & ST ELIAS & REV FR BGPR &,04/07/2011,1586.66
Bath & North East Somerset Council,21101973,LM6,Nursing Care,C03,Adult Social Services & Housing,COMMUNITY OF ST ANTONY & ST ELIAS & REV FR BGPR &,04/07/2011,1586.66
Bath & North East Somerset Council,10618206,PB4,Payments to Private Contractors,C06,Service Delivery,SRCL LIMITED,04/07/2011,1634.46
Bath & North East Somerset Council,10618353,LJ4,Contracts,C06,Service Delivery,MR C A HIGGS T/A LIBRA TRAVEL,04/07/2011,1671.12
Bath & North East Somerset Council,21101859,LL8,Individualised Budget,C03,Adult Social Services & Housing,REDACTED,04/07/2011,1679.63
Bath & North East Somerset Council,21101859,LL8,Individualised Budget,C03,Adult Social Services & Housing,REDACTED,04/07/2011,1679.63
Bath & North East Somerset Council,10618343,LJ4,Contracts,C06,Service Delivery,CENTURION TRAVEL,04/07/2011,1750.00
Bath & North East Somerset Council,21101956,LM6,Nursing Care,C03,Adult Social Services & Housing,BARCHESTER HEALTHCARE HOMES LTD,04/07/2011,1857.00
Bath & North East Somerset Council,21101740,LL3,Supported Living,C03,Adult Social Services & Housing,SURECARE ENABLING (BATH & MENDIP),04/07/2011,1868.00
Bath & North East Somerset Council,21101740,LL3,Supported Living,C03,Adult Social Services & Housing,SURECARE ENABLING (BATH & MENDIP),04/07/2011,1868.00
Bath & North East Somerset Council,21101742,LL3,Supported Living,C03,Adult Social Services & Housing,SURECARE ENABLING (BATH & MENDIP),04/07/2011,1868.00
Bath & North East Somerset Council,21101742,LL3,Supported Living,C03,Adult Social Services & Housing,SURECARE ENABLING (BATH & MENDIP),04/07/2011,1868.00
Bath & North East Somerset Council,10618349,LJ4,Contracts,C06,Service Delivery,TOMMY JUKES,04/07/2011,1890.90
Bath & North East Somerset Council,21101758,LL8,Individualised Budget,C03,Adult Social Services & Housing,REDACTED,04/07/2011,1893.13
Bath & North East Somerset Council,21101758,LL8,Individualised Budget,C03,Adult Social Services & Housing,REDACTED,04/07/2011,1893.13
Bath & North East Somerset Council,21101966,LM6,Nursing Care,C03,Adult Social Services & Housing,REDACTED,04/07/2011,1947.52
Bath & North East Somerset Council,21101966,LM6,Nursing Care,C03,Adult Social Services & Housing,REDACTED,04/07/2011,1947.52
Bath & North East Somerset Council,21101711,LL3,Supported Living,C03,Adult Social Services & Housing,NATIONAL AUTISTIC SOCIETY,04/07/2011,2037.95
Bath & North East Somerset Council,21101711,LL3,Supported Living,C03,Adult Social Services & Housing,NATIONAL AUTISTIC SOCIETY,04/07/2011,2037.95
Bath & North East Somerset Council,21101711,LL3,Supported Living,C03,Adult Social Services & Housing,NATIONAL AUTISTIC SOCIETY,04/07/2011,2037.95
Bath & North East Somerset Council,21101711,LL3,Supported Living,C03,Adult Social Services & Housing,NATIONAL AUTISTIC SOCIETY,04/07/2011,2037.95
Bath & North East Somerset Council,10618387,LA1,Equipment Purchase,C06,Service Delivery,JOHN NIELSEN,04/07/2011,2040.00
Bath & North East Somerset Council,21101946,LM6,Nursing Care,C03,Adult Social Services & Housing,SHERWOOD LODGE,04/07/2011,2095.02
Bath & North East Somerset Council,21101946,LM6,Nursing Care,C03,Adult Social Services & Housing,SHERWOOD LODGE,04/07/2011,2095.02
Bath & North East Somerset Council,10618351,LJ4,Contracts,C06,Service Delivery,MR C A HIGGS T/A LIBRA TRAVEL,04/07/2011,2116.22
Bath & North East Somerset Council,21101988,LM6,Nursing Care,C03,Adult Social Services & Housing,HAVENMERE HEALTHCARE LTD,04/07/2011,2269.25
Bath & North East Somerset Council,21101988,LM6,Nursing Care,C03,Adult Social Services & Housing,HAVENMERE HEALTHCARE LTD,04/07/2011,2269.25
Bath & North East Somerset Council,10615703,HA4,Responsive Maintenance PCB,C02,Resources,BIDDLE AIR SYSTEMS LIMITED,04/07/2011,2288.00
Bath & North East Somerset Council,21101728,LL3,Supported Living,C03,Adult Social Services & Housing,PRESTIGE NURSING HEALTHCARE,04/07/2011,2464.30
Bath & North East Somerset Council,21101730,LL3,Supported Living,C03,Adult Social Services & Housing,PRESTIGE NURSING HEALTHCARE,04/07/2011,2464.30
Bath & North East Somerset Council,10618358,LJ4,Contracts,C06,Service Delivery,RIVERSIDE TAXIS,04/07/2011,2565.50
Bath & North East Somerset Council,10616539,LJ2,Legal Fees,C02,Resources,MOGERS SOLICITORS,04/07/2011,2572.00
Bath & North East Somerset Council,10618354,LJ4,Contracts,C06,Service Delivery,MR C A HIGGS T/A LIBRA TRAVEL,04/07/2011,2584.00
Bath & North East Somerset Council,10618356,LJ4,Contracts,C06,Service Delivery,MR P S MATTHEWS T/A NORAD TAXIS,04/07/2011,2789.00
Bath & North East Somerset Council,10618209,PB4,Payments to Private Contractors,C06,Service Delivery,WILTSHIRE WASTE RECYCLING LTD,04/07/2011,2798.00
Bath & North East Somerset Council,21101990,LM6,Nursing Care,C03,Adult Social Services & Housing,TRU REHABILITATION UNIT LTD,04/07/2011,2870.00
Bath & North East Somerset Council,21101990,LM6,Nursing Care,C03,Adult Social Services & Housing,TRU REHABILITATION UNIT LTD,04/07/2011,2870.00
Bath & North East Somerset Council,10616866,3C4,PCB Building Works,C05,Children's Services,H MEALING & SONS LTD,04/07/2011,3051.59
Bath & North East Somerset Council,10618356,LJ4,Contracts,C06,Service Delivery,MR P S MATTHEWS T/A NORAD TAXIS,04/07/2011,3145.83
Bath & North East Somerset Council,10615925,LM2,Foster Carer Allowances,C05,Children's Services,PATHWAY CARE (BRISTOL) LTD,04/07/2011,3170.27
Bath & North East Somerset Council,10616320,LM3,Residential Care,C03,Adult Social Services & Housing,SOUTH GLOUCESTERSHIRE COUNCIL,04/07/2011,3246.40
Bath & North East Somerset Council,10615926,LM2,Foster Carer Allowances,C05,Children's Services,PATHWAY CARE (BRISTOL) LTD,04/07/2011,3360.00
Bath & North East Somerset Council,10615927,LM2,Foster Carer Allowances,C05,Children's Services,PATHWAY CARE (BRISTOL) LTD,04/07/2011,3360.00
Bath & North East Somerset Council,10615932,LM2,Foster Carer Allowances,C05,Children's Services,PATHWAY CARE (BRISTOL) LTD,04/07/2011,3360.00
Bath & North East Somerset Council,10615933,LM2,Foster Carer Allowances,C05,Children's Services,PATHWAY CARE (BRISTOL) LTD,04/07/2011,3428.57
Bath & North East Somerset Council,10615934,LM2,Foster Carer Allowances,C05,Children's Services,PATHWAY CARE (BRISTOL) LTD,04/07/2011,3428.57
Bath & North East Somerset Council,10615499,LM3,Residential Care,C03,Adult Social Services & Housing,PARADISE HOUSE ASSOCIATION LTD,04/07/2011,3647.10
Bath & North East Somerset Council,10618407,3N7,PCB Misc. Costs,C06,Service Delivery,LIFTSHARE.COM LTD,04/07/2011,4131.72
Bath & North East Somerset Council,10618372,LW1,Rechargeable Works/Expenses,C03,Adult Social Services & Housing,BNES-LEWIS HOUSE IMPREST A/C,04/07/2011,4187.17
Bath & North East Somerset Council,10617931,LJ4,Contracts,C05,Children's Services,BANES RE FOSSE WAY SCHOOL,04/07/2011,4707.34
Bath & North East Somerset Council,10616489,HA4,Responsive Maintenance PCB,C02,Resources,A G GRIBBLE LTD,04/07/2011,4994.00
Bath & North East Somerset Council,10618202,HP1,Rent Payable,C06,Service Delivery,FREIGHTLINER HEAVY HAUL LTD,04/07/2011,5000.00
Bath & North East Somerset Council,10618357,LJ4,Contracts,C06,Service Delivery,RADSTOCK TAXIS,04/07/2011,5120.88
Bath & North East Somerset Council,10618359,LJ4,Contracts,C06,Service Delivery,ROAD RUNNER TAXI BUSES,04/07/2011,5373.46
Bath & North East Somerset Council,10618347,LJ4,Contracts,C06,Service Delivery,S. J. & J M MUNDEN T/A GUYAN MINI BUSES,04/07/2011,5653.45
Bath & North East Somerset Council,10618069,PB4,Payments to Private Contractors,C06,Service Delivery,NEW EARTH SOLUTIONS (GLOS) LTD,04/07/2011,7040.00
Bath & North East Somerset Council,10618067,PB4,Payments to Private Contractors,C06,Service Delivery,CORY ENVIRONMENTAL (GLOUCS) LT,04/07/2011,7704.09
Bath & North East Somerset Council,10618097,LJ4,Contracts,C06,Service Delivery,STEPHEN WARREN,04/07/2011,14903.64
Bath & North East Somerset Council,10618330,KX9,Other Transport Related,C05,Children's Services,WILTSHIRE COUNCIL,04/07/2011,14913.86
Bath & North East Somerset Council,10618069,PB4,Payments to Private Contractors,C06,Service Delivery,NEW EARTH SOLUTIONS (GLOS) LTD,04/07/2011,14942.11
Bath & North East Somerset Council,10618067,LW6,Tax,C06,Service Delivery,CORY ENVIRONMENTAL (GLOUCS) LT,04/07/2011,15659.84
Bath & North East Somerset Council,10618338,LJ4,Contracts,C06,Service Delivery,BERKELEY COACH & TRAVEL LTD,04/07/2011,24645.70
Bath & North East Somerset Council,10618325,LN1,Telephones,Z99,Outside Revenue Accounts,BRITISH TELECOM,04/07/2011,25322.94
Bath & North East Somerset Council,10616262,PB4,Payments to Private Contractors,C06,Service Delivery,MAY GURNEY,04/07/2011,217636.82
Bath & North East Somerset Council,21095954,LM8,Home Care,C03,Adult Social Services & Housing,ROBERT SAGE LTD T/A PRESTIGE NURSING PAYROLL,05/07/2011,14.60
Bath & North East Somerset Council,21095939,LM8,Home Care,C03,Adult Social Services & Housing,ROBERT SAGE LTD T/A PRESTIGE NURSING PAYROLL,05/07/2011,21.52
Bath & North East Somerset Council,21102200,LM2,Foster Carer Allowances,C05,Children's Services,REDACTED,05/07/2011,27.10
Bath & North East Somerset Council,21095939,LM8,Home Care,C03,Adult Social Services & Housing,ROBERT SAGE LTD T/A PRESTIGE NURSING PAYROLL,05/07/2011,27.51
Bath & North East Somerset Council,10618546,LJ4,Contracts,C06,Service Delivery,CT COACHES,05/07/2011,35.00
Bath & North East Somerset Council,10615656,LK1,Fees,C06,Service Delivery,UNIVERSITY OF BATH,05/07/2011,39.84
Bath & North East Somerset Council,21095954,LM8,Home Care,C03,Adult Social Services & Housing,ROBERT SAGE LTD T/A PRESTIGE NURSING PAYROLL,05/07/2011,50.00
Bath & North East Somerset Council,21095940,LM8,Home Care,C03,Adult Social Services & Housing,ROBERT SAGE LTD T/A PRESTIGE NURSING PAYROLL,05/07/2011,56.00
Bath & North East Somerset Council,21095940,LM8,Home Care,C03,Adult Social Services & Housing,ROBERT SAGE LTD T/A PRESTIGE NURSING PAYROLL,05/07/2011,66.52
Bath & North East Somerset Council,10618490,LJ4,Contracts,C06,Service Delivery,HIGHWAY TAXIS & TRAVEL,05/07/2011,104.76
Bath & North East Somerset Council,21095940,LM8,Home Care,C03,Adult Social Services & Housing,ROBERT SAGE LTD T/A PRESTIGE NURSING PAYROLL,05/07/2011,121.28
Bath & North East Somerset Council,10618619,LK6,Photography/Artworks/Graphics,C06,Service Delivery,MC PUBLISHING LTD,05/07/2011,150.00
Bath & North East Somerset Council,10618884,HA4,Responsive Maintenance PCB,C02,Resources,TPM (SOUTH WEST) LTD,05/07/2011,172.20
Bath & North East Somerset Council,21102171,LM2,Foster Carer Allowances,C05,Children's Services,REDACTED,05/07/2011,186.43
Bath & North East Somerset Council,10618884,HA4,Responsive Maintenance PCB,C02,Resources,TPM (SOUTH WEST) LTD,05/07/2011,258.30
Bath & North East Somerset Council,10618618,LK6,Photography/Artworks/Graphics,C06,Service Delivery,MC PUBLISHING LTD,05/07/2011,300.00
Bath & North East Somerset Council,10618618,LH5,Marketing,C06,Service Delivery,MC PUBLISHING LTD,05/07/2011,325.00
Bath & North East Somerset Council,10618619,LH5,Marketing,C06,Service Delivery,MC PUBLISHING LTD,05/07/2011,325.00
Bath & North East Somerset Council,21102200,LM2,Foster Carer Allowances,C05,Children's Services,REDACTED,05/07/2011,372.86
Bath & North East Somerset Council,10618874,HA4,Responsive Maintenance PCB,C02,Resources,TPM (SOUTH WEST) LTD,05/07/2011,385.00
Bath & North East Somerset Council,10618546,LJ4,Contracts,C06,Service Delivery,CT COACHES,05/07/2011,387.80
Bath & North East Somerset Council,21095940,LM8,Home Care,C03,Adult Social Services & Housing,ROBERT SAGE LTD T/A PRESTIGE NURSING PAYROLL,05/07/2011,418.32
Bath & North East Somerset Council,10618554,LH3,Publicity,C06,Service Delivery,NORTHCLIFFE MEDIA LTD,05/07/2011,419.02
Bath & North East Somerset Council,10618831,HA4,Responsive Maintenance PCB,C02,Resources,LFC DESPATCH LINE,05/07/2011,419.98
Bath & North East Somerset Council,10618577,LE1,Education Payment (independent school),C05,Children's Services,MID NORTON SCH PART RE SOMERVALE  SCH,05/07/2011,429.00
Bath & North East Somerset Council,10618806,LV3,Commissioned Services,C06,Service Delivery,BATH TOURISM PLUS,05/07/2011,450.00
Bath & North East Somerset Council,10618871,HA4,Responsive Maintenance PCB,C02,Resources,TPM (SOUTH WEST) LTD,05/07/2011,485.41
Bath & North East Somerset Council,21102171,LM2,Foster Carer Allowances,C05,Children's Services,REDACTED,05/07/2011,494.94
Bath & North East Somerset Council,10618489,LJ4,Contracts,C06,Service Delivery,NEED TO GET HOME? TAXI COMPANY,05/07/2011,531.00
Bath & North East Somerset Council,10618868,LJ1,Consultants Fees,C06,Service Delivery,KEITH WOODHEAD,05/07/2011,548.60
Bath & North East Somerset Council,10614791,DB1,Agency Staff,C02,Resources,RITA E STEWART,05/07/2011,553.33
Bath & North East Somerset Council,10618481,LJ4,Contracts,C06,Service Delivery,KEYNSHAM CARS,05/07/2011,590.00
Bath & North East Somerset Council,21102142,LK4,Nursery/Childcare Vouchers,C05,Children's Services,SUNFLOWERS NURSERY LTD,05/07/2011,593.13
Bath & North East Somerset Council,21102154,LK4,Nursery/Childcare Vouchers,C05,Children's Services,TEDDIES @ CGM,05/07/2011,593.13
Bath & North East Somerset Council,10618874,HA4,Responsive Maintenance PCB,C02,Resources,TPM (SOUTH WEST) LTD,05/07/2011,594.50
Bath & North East Somerset Council,21102143,LK4,Nursery/Childcare Vouchers,C05,Children's Services,SUNSHINE PRE SCHOOL,05/07/2011,603.50
Bath & North East Somerset Council,10618470,LJ4,Contracts,C06,Service Delivery,KEYNSHAM CARS,05/07/2011,608.00
Bath & North East Somerset Council,21102158,LK4,Nursery/Childcare Vouchers,C05,Children's Services,NEXT STEPS NURSERY,05/07/2011,616.85
Bath & North East Somerset Council,10618622,LK6,Photography/Artworks/Graphics,C06,Service Delivery,NINE POINT,05/07/2011,630.00
Bath & North East Somerset Council,21102127,LK4,Nursery/Childcare Vouchers,C05,Children's Services,KING EDWARDS PRE PREP SCHOOL,05/07/2011,630.13
Bath & North East Somerset Council,10618712,LA7,Purchases for Resale,C06,Service Delivery,T H WHITE LTD,05/07/2011,654.43
Bath & North East Somerset Council,10618487,LJ4,Contracts,C06,Service Delivery,KEYNSHAM CARS,05/07/2011,660.00
Bath & North East Somerset Council,10618615,LA7,Purchases for Resale,C06,Service Delivery,ONE HOUSE GROUP LTD,05/07/2011,688.95
Bath & North East Somerset Council,10614750,LX1,Educational Activity,C05,Children's Services,C J & H M HARTNELL,05/07/2011,700.00
Bath & North East Somerset Council,10618482,LJ4,Contracts,C06,Service Delivery,STEPHEN WARREN,05/07/2011,700.60
Bath & North East Somerset Council,10618574,LE1,Education Payment (independent school),C05,Children's Services,MID NORTON SCH PART RE NORTON HILL,05/07/2011,715.00
Bath & North East Somerset Council,10617642,LA7,Purchases for Resale,C06,Service Delivery,MACMILLAN DISTRIBUTION LTD,05/07/2011,720.91
Bath & North East Somerset Council,10616730,HA5,Service Contract PCB,C02,Resources,ORONA LTD,05/07/2011,725.00
Bath & North East Somerset Council,21102247,LM2,Foster Carer Allowances,C05,Children's Services,REDACTED,05/07/2011,733.00
Bath & North East Somerset Council,21102156,LK4,Nursery/Childcare Vouchers,C05,Children's Services,SNAPDRAGONS NURSERY,05/07/2011,735.48
Bath & North East Somerset Council,21102211,LM2,Foster Carer Allowances,C05,Children's Services,REDACTED,05/07/2011,742.84
Bath & North East Somerset Council,21102211,LM2,Foster Carer Allowances,C05,Children's Services,REDACTED,05/07/2011,742.84
Bath & North East Somerset Council,10618574,LE1,Education Payment (independent school),C05,Children's Services,MID NORTON SCH PART RE NORTON HILL,05/07/2011,750.00
Bath & North East Somerset Council,21102241,LM2,Foster Carer Allowances,C05,Children's Services,REDACTED,05/07/2011,750.00
Bath & North East Somerset Council,21102215,LM2,Foster Carer Allowances,C05,Children's Services,REDACTED,05/07/2011,771.98
Bath & North East Somerset Council,21102215,LM2,Foster Carer Allowances,C05,Children's Services,REDACTED,05/07/2011,771.98
Bath & North East Somerset Council,21102216,LM2,Foster Carer Allowances,C05,Children's Services,REDACTED,05/07/2011,771.98
Bath & North East Somerset Council,21102216,LM2,Foster Carer Allowances,C05,Children's Services,REDACTED,05/07/2011,771.98
Bath & North East Somerset Council,21102207,LM2,Foster Carer Allowances,C05,Children's Services,REDACTED,05/07/2011,772.20
Bath & North East Somerset Council,10616124,LA1,Equipment Purchase,C03,Adult Social Services & Housing,DRIVE MEDICAL LTD,05/07/2011,778.10
Bath & North East Somerset Council,21102171,LM2,Foster Carer Allowances,C05,Children's Services,REDACTED,05/07/2011,782.92
Bath & North East Somerset Council,21102213,LM2,Foster Carer Allowances,C05,Children's Services,REDACTED,05/07/2011,790.70
Bath & North East Somerset Council,21102213,LM2,Foster Carer Allowances,C05,Children's Services,REDACTED,05/07/2011,790.70
Bath & North East Somerset Council,21102213,LM2,Foster Carer Allowances,C05,Children's Services,REDACTED,05/07/2011,790.70
Bath & North East Somerset Council,21102218,LM2,Foster Carer Allowances,C05,Children's Services,REDACTED,05/07/2011,790.70
Bath & North East Somerset Council,21102218,LM2,Foster Carer Allowances,C05,Children's Services,REDACTED,05/07/2011,790.70
Bath & North East Somerset Council,10618475,LJ4,Contracts,C06,Service Delivery,KEYNSHAM CARS,05/07/2011,792.00
Bath & North East Somerset Council,10618485,LJ4,Contracts,C06,Service Delivery,KEYNSHAM CARS,05/07/2011,792.00
Bath & North East Somerset Council,21102161,LM2,Foster Carer Allowances,C05,Children's Services,REDACTED,05/07/2011,794.86
Bath & North East Somerset Council,21102161,LM2,Foster Carer Allowances,C05,Children's Services,REDACTED,05/07/2011,794.86
Bath & North East Somerset Council,21102139,LK4,Nursery/Childcare Vouchers,C05,Children's Services,SNAPDRAGONS NURSERY,05/07/2011,799.35
Bath & North East Somerset Council,21102240,LM2,Foster Carer Allowances,C05,Children's Services,REDACTED,05/07/2011,800.00
Bath & North East Somerset Council,21102240,LM2,Foster Carer Allowances,C05,Children's Services,REDACTED,05/07/2011,800.00
Bath & North East Somerset Council,21102241,LM2,Foster Carer Allowances,C05,Children's Services,REDACTED,05/07/2011,800.00
Bath & North East Somerset Council,10617257,HV1,Contract Cleaning,C06,Service Delivery,MINSTER CLEANING SERVICES,05/07/2011,801.08
Bath & North East Somerset Council,21102250,LM2,Foster Carer Allowances,C05,Children's Services,REDACTED,05/07/2011,806.00
Bath & North East Somerset Council,21102198,LM2,Foster Carer Allowances,C05,Children's Services,REDACTED,05/07/2011,807.36
Bath & North East Somerset Council,21102198,LM2,Foster Carer Allowances,C05,Children's Services,REDACTED,05/07/2011,807.36
Bath & North East Somerset Council,21102201,LM2,Foster Carer Allowances,C05,Children's Services,REDACTED,05/07/2011,807.36
Bath & North East Somerset Council,21102201,LM2,Foster Carer Allowances,C05,Children's Services,REDACTED,05/07/2011,807.36
Bath & North East Somerset Council,21102212,LM2,Foster Carer Allowances,C05,Children's Services,REDACTED,05/07/2011,807.36
Bath & North East Somerset Council,21102212,LM2,Foster Carer Allowances,C05,Children's Services,REDACTED,05/07/2011,807.36
Bath & North East Somerset Council,21102212,LM2,Foster Carer Allowances,C05,Children's Services,REDACTED,05/07/2011,807.36
Bath & North East Somerset Council,21102233,LM2,Foster Carer Allowances,C05,Children's Services,REDACTED,05/07/2011,809.88
Bath & North East Somerset Council,21102233,LM2,Foster Carer Allowances,C05,Children's Services,REDACTED,05/07/2011,809.88
Bath & North East Somerset Council,21102237,LM2,Foster Carer Allowances,C05,Children's Services,REDACTED,05/07/2011,812.00
Bath & North East Somerset Council,21102237,LM2,Foster Carer Allowances,C05,Children's Services,REDACTED,05/07/2011,812.00
Bath & North East Somerset Council,21102237,LM2,Foster Carer Allowances,C05,Children's Services,REDACTED,05/07/2011,812.00
Bath & North East Somerset Council,21102230,LM2,Foster Carer Allowances,C05,Children's Services,REDACTED,05/07/2011,816.00
Bath & North East Somerset Council,21102230,LM2,Foster Carer Allowances,C05,Children's Services,REDACTED,05/07/2011,816.00
Bath & North East Somerset Council,21102230,LM2,Foster Carer Allowances,C05,Children's Services,REDACTED,05/07/2011,816.00
Bath & North East Somerset Council,10618484,LJ4,Contracts,C06,Service Delivery,KEYNSHAM CARS,05/07/2011,822.00
Bath & North East Somerset Council,21095939,LM8,Home Care,C03,Adult Social Services & Housing,ROBERT SAGE LTD T/A PRESTIGE NURSING PAYROLL,05/07/2011,871.56
Bath & North East Somerset Council,10616138,LL1,Services to Clients,C03,Adult Social Services & Housing,CONNOLLY & CALLAGHAN LTD,05/07/2011,880.00
Bath & North East Somerset Council,10618473,LJ4,Contracts,C06,Service Delivery,KEYNSHAM CARS,05/07/2011,936.00
Bath & North East Somerset Council,10615727,LJ1,Consultants Fees,C06,Service Delivery,SLR CONSULTING,05/07/2011,945.00
Bath & North East Somerset Council,10617904,3N7,PCB Misc. Costs,C02,Resources,BERRY YATES LTD,05/07/2011,950.00
Bath & North East Somerset Council,10618576,LE3,Statementing Payments to B&NES schools,C05,Children's Services,BEECHEN CLIFF SCHOOL,05/07/2011,984.50
Bath & North East Somerset Council,21102200,LM2,Foster Carer Allowances,C05,Children's Services,REDACTED,05/07/2011,1033.24
Bath & North East Somerset Council,10618870,HA6,Planned Maintenance PCB,C02,Resources,TPM (SOUTH WEST) LTD,05/07/2011,1053.50
Bath & North East Somerset Council,10618490,LJ4,Contracts,C06,Service Delivery,HIGHWAY TAXIS & TRAVEL,05/07/2011,1061.72
Bath & North East Somerset Council,10618479,LJ4,Contracts,C06,Service Delivery,KEYNSHAM CARS,05/07/2011,1064.00
Bath & North East Somerset Council,10616860,HE1,General Maintenance,C06,Service Delivery,SCAN COIN LTD,05/07/2011,1100.00
Bath & North East Somerset Council,10615506,LA1,Equipment Purchase,C02,Resources,LIONEL SAUNDERS & CO (BRISTOL),05/07/2011,1120.00
Bath & North East Somerset Council,10618702,LA5,Materials,C06,Service Delivery,A P BROWN,05/07/2011,1136.05
Bath & North East Somerset Council,21102137,LK4,Nursery/Childcare Vouchers,C05,Children's Services,PETER PAN PLAYGROUP,05/07/2011,1141.33
Bath & North East Somerset Council,10616517,EA1,Training,C03,Adult Social Services & Housing,ACORN HEALTH & SAFETY LIMITED,05/07/2011,1179.00
Bath & North East Somerset Council,10618598,KD1,Employees Public Transport,C03,Adult Social Services & Housing,ATOS ORIGIN IT SERVICES (UK) LTD,05/07/2011,1194.10
Bath & North East Somerset Council,10618621,LH5,Marketing,C06,Service Delivery,NINE POINT,05/07/2011,1248.00
Bath & North East Somerset Council,21102141,LK4,Nursery/Childcare Vouchers,C05,Children's Services,STANTON DREW & PENSFORD PRESCH,05/07/2011,1272.72
Bath & North East Somerset Council,10618574,LE3,Statementing Payments to B&NES schools,C05,Children's Services,MID NORTON SCH PART RE NORTON HILL,05/07/2011,1274.72
Bath & North East Somerset Council,10618478,LJ4,Contracts,C06,Service Delivery,KEYNSHAM CARS,05/07/2011,1296.00
Bath & North East Somerset Council,10618276,PA2,Payments to Other Local Authorities,C03,Adult Social Services & Housing,WILTSHIRE COUNTY COUNCIL,05/07/2011,1350.00
Bath & North East Somerset Council,10616354,HP3,Room Hire Charges,C05,Children's Services,THE WILTSHIRE MUSIC CENTRE TRUST LTD,05/07/2011,1402.90
Bath & North East Somerset Council,21102126,LK4,Nursery/Childcare Vouchers,C05,Children's Services,BRIGHT HORIZONS FAMILY SOLUTIONS,05/07/2011,1423.50
Bath & North East Somerset Council,10618871,HA4,Responsive Maintenance PCB,C02,Resources,TPM (SOUTH WEST) LTD,05/07/2011,1445.50
Bath & North East Somerset Council,10618638,LK1,Fees,C06,Service Delivery,JOE HOBBS & YVONNE HELLIN HOBBS LTD,05/07/2011,1470.00
Bath & North East Somerset Council,10618489,LJ4,Contracts,C06,Service Delivery,NEED TO GET HOME? TAXI COMPANY,05/07/2011,1482.87
Bath & North East Somerset Council,10618546,LJ4,Contracts,C06,Service Delivery,CT COACHES,05/07/2011,1486.44
Bath & North East Somerset Council,21095954,LM8,Home Care,C03,Adult Social Services & Housing,ROBERT SAGE LTD T/A PRESTIGE NURSING PAYROLL,05/07/2011,1560.60
Bath & North East Somerset Council,10618488,LJ4,Contracts,C06,Service Delivery,WELTON CABS,05/07/2011,1597.10
Bath & North East Somerset Council,10615756,LA3,Equipment Maintenance,C06,Service Delivery,BRUEL & KJAER UK LTD,05/07/2011,1710.00
Bath & North East Somerset Council,10618556,LA3,Equipment Maintenance,C06,Service Delivery,SOUTHERN ELECTRIC CONTRACTING LTD,05/07/2011,1800.00
Bath & North East Somerset Council,10618488,LJ4,Contracts,C06,Service Delivery,WELTON CABS,05/07/2011,1859.73
Bath & North East Somerset Council,10616616,LJ1,Consultants Fees,C03,Adult Social Services & Housing,ROBIN COWEN CONSULTANCY LTD,05/07/2011,1881.90
Bath & North East Somerset Council,10617025,HN3,Heating Oil,C03,Adult Social Services & Housing,PACE FUELCARE LTD,05/07/2011,1928.70
Bath & North East Somerset Council,10618491,LX6,Bus Revenue Support,C06,Service Delivery,EUROTAXIS (BRISTOL) LTD,05/07/2011,2021.98
Bath & North East Somerset Council,21102293,LL3,Supported Living,C03,Adult Social Services & Housing,CONSENSUS,05/07/2011,2164.18
Bath & North East Somerset Council,21102294,LL3,Supported Living,C03,Adult Social Services & Housing,CONSENSUS,05/07/2011,2164.18
Bath & North East Somerset Council,21102294,LL3,Supported Living,C03,Adult Social Services & Housing,CONSENSUS,05/07/2011,2164.18
Bath & North East Somerset Council,21102294,LL3,Supported Living,C03,Adult Social Services & Housing,CONSENSUS,05/07/2011,2164.18
Bath & North East Somerset Council,21102294,LL3,Supported Living,C03,Adult Social Services & Housing,CONSENSUS,05/07/2011,2164.18
Bath & North East Somerset Council,21102295,LL3,Supported Living,C03,Adult Social Services & Housing,CONSENSUS,05/07/2011,2164.18
Bath & North East Somerset Council,21102295,LL3,Supported Living,C03,Adult Social Services & Housing,CONSENSUS,05/07/2011,2164.18
Bath & North East Somerset Council,21102295,LL3,Supported Living,C03,Adult Social Services & Housing,CONSENSUS,05/07/2011,2164.18
Bath & North East Somerset Council,21102295,LL3,Supported Living,C03,Adult Social Services & Housing,CONSENSUS,05/07/2011,2164.18
Bath & North East Somerset Council,21102296,LL3,Supported Living,C03,Adult Social Services & Housing,CONSENSUS,05/07/2011,2164.18
Bath & North East Somerset Council,21102296,LL3,Supported Living,C03,Adult Social Services & Housing,CONSENSUS,05/07/2011,2164.18
Bath & North East Somerset Council,21102296,LL3,Supported Living,C03,Adult Social Services & Housing,CONSENSUS,05/07/2011,2164.18
Bath & North East Somerset Council,21102296,LL3,Supported Living,C03,Adult Social Services & Housing,CONSENSUS,05/07/2011,2164.18
Bath & North East Somerset Council,21102297,LL3,Supported Living,C03,Adult Social Services & Housing,CONSENSUS,05/07/2011,2164.18
Bath & North East Somerset Council,21102297,LL3,Supported Living,C03,Adult Social Services & Housing,CONSENSUS,05/07/2011,2164.18
Bath & North East Somerset Council,21102297,LL3,Supported Living,C03,Adult Social Services & Housing,CONSENSUS,05/07/2011,2164.18
Bath & North East Somerset Council,21102297,LL3,Supported Living,C03,Adult Social Services & Housing,CONSENSUS,05/07/2011,2164.18
Bath & North East Somerset Council,10618546,LJ4,Contracts,C06,Service Delivery,CT COACHES,05/07/2011,2306.75
Bath & North East Somerset Council,10618319,LV1,Grants to Voluntary Bodies,C02,Resources,EACH LTD,05/07/2011,2375.00
Bath & North East Somerset Council,10618979,EG3,Recruitment Advertising,C04,Development & Major Projects,TMP (UK) LTD,05/07/2011,2518.00
Bath & North East Somerset Council,21102144,LK4,Nursery/Childcare Vouchers,C05,Children's Services,THE PARAGON SCHOOL,05/07/2011,2524.05
Bath & North East Somerset Council,10617087,LA7,Purchases for Resale,C06,Service Delivery,SOMERSET TOILETRY COMPANY LTD,05/07/2011,2626.25
Bath & North East Somerset Council,10618576,LE1,Education Payment (independent school),C05,Children's Services,BEECHEN CLIFF SCHOOL,05/07/2011,2762.00
Bath & North East Somerset Council,10618546,LJ4,Contracts,C06,Service Delivery,CT COACHES,05/07/2011,2883.10
Bath & North East Somerset Council,10618578,LE3,Statementing Payments to B&NES schools,C05,Children's Services,TRINITY C OF E ACADEMY TRUST,05/07/2011,2978.71
Bath & North East Somerset Council,10618575,LE1,Education Payment (independent school),C05,Children's Services,OLDFIELD SCHOOL MAIN BANK A/C,05/07/2011,3338.00
Bath & North East Somerset Council,10615656,LK1,Fees,C06,Service Delivery,UNIVERSITY OF BATH,05/07/2011,3506.64
Bath & North East Somerset Council,10618575,LE3,Statementing Payments to B&NES schools,C05,Children's Services,OLDFIELD SCHOOL MAIN BANK A/C,05/07/2011,3609.80
Bath & North East Somerset Council,10618490,LJ4,Contracts,C06,Service Delivery,HIGHWAY TAXIS & TRAVEL,05/07/2011,3792.42
Bath & North East Somerset Council,10618576,LE1,Education Payment (independent school),C05,Children's Services,BEECHEN CLIFF SCHOOL,05/07/2011,4067.00
Bath & North East Somerset Council,10618575,LE1,Education Payment (independent school),C05,Children's Services,OLDFIELD SCHOOL MAIN BANK A/C,05/07/2011,4939.00
Bath & North East Somerset Council,10618714,HA6,Planned Maintenance PCB,C02,Resources,A G GRIBBLE LTD,05/07/2011,5059.00
Bath & North East Somerset Council,10617905,3F7,PCB External Fees,C06,Service Delivery,DAVIS LANGDON,05/07/2011,5453.00
Bath & North East Somerset Council,10618274,LM3,Residential Care,C03,Adult Social Services & Housing,THE WESSEX AUTISTIC SOCIETY,05/07/2011,5477.04
Bath & North East Somerset Council,10618557,LA3,Equipment Maintenance,C06,Service Delivery,WPS UNITED KINGDOM LTD,05/07/2011,5481.12
Bath & North East Somerset Council,10618649,LJ1,Consultants Fees,C02,Resources,MENDIP SURVEY & DESIGN LTD,05/07/2011,6690.00
Bath & North East Somerset Council,10618577,LE1,Education Payment (independent school),C05,Children's Services,MID NORTON SCH PART RE SOMERVALE  SCH,05/07/2011,7408.00
Bath & North East Somerset Council,21102286,PG1,Rent Allowances,C02,Resources,SOMER COMMUNITY HOUSING TRUST,05/07/2011,7565.44
Bath & North East Somerset Council,10618334,3F7,PCB External Fees,C02,Resources,CAPITA SYMONDS LTD,05/07/2011,7580.00
Bath & North East Somerset Council,10616884,YF2,Fees & Charges,C06,Service Delivery,PATHWAY CARE [BRISTOL] LTD,05/07/2011,8521.29
Bath & North East Somerset Council,10618823,3F7,PCB External Fees,C06,Service Delivery,MOTT MACDONALD LIMITED,05/07/2011,8549.55
Bath & North East Somerset Council,10618361,PB4,Payments to Private Contractors,C06,Service Delivery,HILLS WASTE SOLUTIONS LTD,05/07/2011,9613.26
Bath & North East Somerset Council,10616868,LE1,Education Payment (independent school),C05,Children's Services,MARY HARE SCHOOLS,05/07/2011,9998.00
Bath & North East Somerset Council,10618503,LJ4,Contracts,C06,Service Delivery,SOMERSET TRANSPORT SERVICES LTD,05/07/2011,10539.66
Bath & North East Somerset Council,10618292,LM3,Residential Care,C03,Adult Social Services & Housing,REDACTED,05/07/2011,12290.93
Bath & North East Somerset Council,10615552,LM6,Nursing Care,C03,Adult Social Services & Housing,CASTLEBECK CARE (TEESDALE) LTD,05/07/2011,13064.29
Bath & North East Somerset Council,10618574,LE1,Education Payment (independent school),C05,Children's Services,MID NORTON SCH PART RE NORTON HILL,05/07/2011,15397.00
Bath & North East Somerset Council,10618575,LE3,Statementing Payments to B&NES schools,C05,Children's Services,OLDFIELD SCHOOL MAIN BANK A/C,05/07/2011,16546.99
Bath & North East Somerset Council,10618577,LE3,Statementing Payments to B&NES schools,C05,Children's Services,MID NORTON SCH PART RE SOMERVALE  SCH,05/07/2011,18572.81
Bath & North East Somerset Council,10618574,LE3,Statementing Payments to B&NES schools,C05,Children's Services,MID NORTON SCH PART RE NORTON HILL,05/07/2011,19973.79
Bath & North East Somerset Council,10617903,3N7,PCB Misc. Costs,C02,Resources,HYDROCK BYWAYS & HIGHWAYS LTD,05/07/2011,23975.00
Bath & North East Somerset Council,10618336,LJ4,Contracts,C06,Service Delivery,ARLEEN COACH & HIRE SERVICES L,05/07/2011,25439.90
Bath & North East Somerset Council,10618576,LE3,Statementing Payments to B&NES schools,C05,Children's Services,BEECHEN CLIFF SCHOOL,05/07/2011,26221.52
Bath & North East Somerset Council,10618361,PB4,Payments to Private Contractors,C06,Service Delivery,HILLS WASTE SOLUTIONS LTD,05/07/2011,32634.13
Bath & North East Somerset Council,10618648,7F1,Rent,,,SOMER COMMUNITY HOUSING TRUST,05/07/2011,45374.11
Bath & North East Somerset Council,21102279,PG1,Rent Allowances,C02,Resources,SOMER COMMUNITY HOUSING TRUST,05/07/2011,109689.50
Bath & North East Somerset Council,10618742,3V1,Vehicle Purchase,C06,Service Delivery,LONDONDERRY GARAGE,05/07/2011,113060.00
Bath & North East Somerset Council,10618361,LW6,Tax,C06,Service Delivery,HILLS WASTE SOLUTIONS LTD,05/07/2011,163934.40
Bath & North East Somerset Council,10619010,LJ1,Consultants Fees,C06,Service Delivery,URBAN AND RURAL PLANNING ASSOCIATES LTD,06/07/2011,13.67
Bath & North East Somerset Council,10618845,LJ4,Contracts,C06,Service Delivery,ABBEY TAXIS LIMITED,06/07/2011,13.96
Bath & North East Somerset Council,21101406,LM8,Home Care,C03,Adult Social Services & Housing,ROBERT SAGE LTD T/A PRESTIGE NURSING PAYROLL,06/07/2011,16.52
Bath & North East Somerset Council,10619216,LJ4,Contracts,C06,Service Delivery,BATH TAXIS (UK) LTD,06/07/2011,19.60
Bath & North East Somerset Council,10618847,LJ4,Contracts,C06,Service Delivery,BATH TAXIS (UK) LTD,06/07/2011,20.00
Bath & North East Somerset Council,21102336,YF2,Fees & Charges,C03,Adult Social Services & Housing,LARKHALL SPRINGS NURSING HOME,06/07/2011,23.51
Bath & North East Somerset Council,10618849,LJ4,Contracts,C06,Service Delivery,EAST HARPTREE COUNTRY CABS,06/07/2011,30.00
Bath & North East Somerset Council,10618332,3N7,PCB Misc. Costs,C04,Development & Major Projects,ASHURST,06/07/2011,40.00
Bath & North East Somerset Council,10618845,LJ4,Contracts,C06,Service Delivery,ABBEY TAXIS LIMITED,06/07/2011,40.00
Bath & North East Somerset Council,10617250,LN4,Mobile Phones,C02,Resources,ORANGE PERSONAL COMMUNICATION,06/07/2011,40.57
Bath & North East Somerset Council,10616577,HK1,Highway Maintenance,C06,Service Delivery,M JENNINGS,06/07/2011,53.00
Bath & North East Somerset Council,10618385,HA1,Responsive Maintenance,C06,Service Delivery,THEMEJOB LTD,06/07/2011,80.00
Bath & North East Somerset Council,10615377,LA1,Equipment Purchase,C03,Adult Social Services & Housing,AKW MEDI-CARE LIMITED,06/07/2011,90.50
Bath & North East Somerset Council,21101402,LM8,Home Care,C03,Adult Social Services & Housing,SAFE & SOUND HOMECARE SERVICES,06/07/2011,98.50
Bath & North East Somerset Council,10618849,LJ4,Contracts,C06,Service Delivery,EAST HARPTREE COUNTRY CABS,06/07/2011,100.00
Bath & North East Somerset Council,10619004,LJ1,Consultants Fees,C06,Service Delivery,KINETICUS LIMITED,06/07/2011,145.20
Bath & North East Somerset Council,10619161,3F7,PCB External Fees,C05,Children's Services,CONSTRUCTION PLANNING ASSOCIATES,06/07/2011,150.00
Bath & North East Somerset Council,21102458,LL3,Supported Living,C03,Adult Social Services & Housing,OPTIONS FOR LIVING LTD,06/07/2011,150.40
Bath & North East Somerset Council,21102458,LL3,Supported Living,C03,Adult Social Services & Housing,OPTIONS FOR LIVING LTD,06/07/2011,150.40
Bath & North East Somerset Council,21102336,YF2,Fees & Charges,C03,Adult Social Services & Housing,LARKHALL SPRINGS NURSING HOME,06/07/2011,164.60
Bath & North East Somerset Council,21102336,YF2,Fees & Charges,C03,Adult Social Services & Housing,LARKHALL SPRINGS NURSING HOME,06/07/2011,164.60
Bath & North East Somerset Council,21102336,YF2,Fees & Charges,C03,Adult Social Services & Housing,LARKHALL SPRINGS NURSING HOME,06/07/2011,164.60
Bath & North East Somerset Council,21102458,LL3,Supported Living,C03,Adult Social Services & Housing,OPTIONS FOR LIVING LTD,06/07/2011,169.20
Bath & North East Somerset Council,21102458,LL3,Supported Living,C03,Adult Social Services & Housing,OPTIONS FOR LIVING LTD,06/07/2011,169.20
Bath & North East Somerset Council,21101401,LM8,Home Care,C03,Adult Social Services & Housing,SAFE & SOUND HOMECARE SERVICES,06/07/2011,196.46
Bath & North East Somerset Council,21101402,LM8,Home Care,C03,Adult Social Services & Housing,SAFE & SOUND HOMECARE SERVICES,06/07/2011,202.00
Bath & North East Somerset Council,21101402,LM8,Home Care,C03,Adult Social Services & Housing,SAFE & SOUND HOMECARE SERVICES,06/07/2011,202.00
Bath & North East Somerset Council,21101402,LM8,Home Care,C03,Adult Social Services & Housing,SAFE & SOUND HOMECARE SERVICES,06/07/2011,202.00
Bath & North East Somerset Council,21101402,LM8,Home Care,C03,Adult Social Services & Housing,SAFE & SOUND HOMECARE SERVICES,06/07/2011,202.00
Bath & North East Somerset Council,10618858,DB1,Agency Staff,C06,Service Delivery,MINIBUS TRAVEL,06/07/2011,210.00
Bath & North East Somerset Council,10619216,LJ4,Contracts,C06,Service Delivery,BATH TAXIS (UK) LTD,06/07/2011,223.88
Bath & North East Somerset Council,21102341,LM6,Nursing Care,C03,Adult Social Services & Housing,MIMOSA HEALTHCARE,06/07/2011,229.71
Bath & North East Somerset Council,21102341,LM6,Nursing Care,C03,Adult Social Services & Housing,MIMOSA HEALTHCARE,06/07/2011,229.71
Bath & North East Somerset Council,21102341,LM6,Nursing Care,C03,Adult Social Services & Housing,MIMOSA HEALTHCARE,06/07/2011,229.71
Bath & North East Somerset Council,21102440,LM6,Nursing Care,C03,Adult Social Services & Housing,T C CAREHOME LTD,06/07/2011,229.71
Bath & North East Somerset Council,10618791,LK1,Fees,C03,Adult Social Services & Housing,ALLEN RESIDENTIAL,06/07/2011,230.00
Bath & North East Somerset Council,21102444,LM3,Residential Care,C03,Adult Social Services & Housing,GROVE CARE LTD T/A ORIEL LODGE,06/07/2011,234.69
Bath & North East Somerset Council,21102444,LM3,Residential Care,C03,Adult Social Services & Housing,GROVE CARE LTD T/A ORIEL LODGE,06/07/2011,234.69
Bath & North East Somerset Council,10619216,LJ4,Contracts,C06,Service Delivery,BATH TAXIS (UK) LTD,06/07/2011,262.80
Bath & North East Somerset Council,10619213,LJ4,Contracts,C06,Service Delivery,ABBEY TAXIS LIMITED,06/07/2011,265.62
Bath & North East Somerset Council,10619161,3F7,PCB External Fees,C02,Resources,CONSTRUCTION PLANNING ASSOCIATES,06/07/2011,300.00
Bath & North East Somerset Council,10618845,LJ4,Contracts,C06,Service Delivery,ABBEY TAXIS LIMITED,06/07/2011,335.67
Bath & North East Somerset Council,21102303,LL3,Supported Living,C03,Adult Social Services & Housing,SWALLOW LTD,06/07/2011,337.53
Bath & North East Somerset Council,21102303,LL3,Supported Living,C03,Adult Social Services & Housing,SWALLOW LTD,06/07/2011,337.53
Bath & North East Somerset Council,10619004,LJ1,Consultants Fees,C06,Service Delivery,KINETICUS LIMITED,06/07/2011,342.41
Bath & North East Somerset Council,10618593,KA2,Running Costs,C06,Service Delivery,N.A. BROWN LIMITED,06/07/2011,355.00
Bath & North East Somerset Council,10618593,KA2,Running Costs,C06,Service Delivery,N.A. BROWN LIMITED,06/07/2011,355.00
Bath & North East Somerset Council,10618593,KA2,Running Costs,C06,Service Delivery,N.A. BROWN LIMITED,06/07/2011,355.00
Bath & North East Somerset Council,10619219,LJ4,Contracts,C06,Service Delivery,REDACTED,06/07/2011,360.00
Bath & North East Somerset Council,10619128,HA3,Planned Maintenance,C06,Service Delivery,WESSEX WATER ENTERPRISES,06/07/2011,362.04
Bath & North East Somerset Council,10619214,LJ4,Contracts,C06,Service Delivery,ABBEY TAXIS LIMITED,06/07/2011,368.41
Bath & North East Somerset Council,10616425,HE5,Security of Premises,C06,Service Delivery,MITIE SECURITY LTD,06/07/2011,394.21
Bath & North East Somerset Council,10618385,HA1,Responsive Maintenance,C06,Service Delivery,THEMEJOB LTD,06/07/2011,400.00
Bath & North East Somerset Council,10618399,HA3,Planned Maintenance,C06,Service Delivery,ASHTON AIR CONDITIONING SERVICES LIMITED,06/07/2011,400.00
Bath & North East Somerset Council,21101402,LM8,Home Care,C03,Adult Social Services & Housing,SAFE & SOUND HOMECARE SERVICES,06/07/2011,405.00
Bath & North East Somerset Council,21101402,LM8,Home Care,C03,Adult Social Services & Housing,SAFE & SOUND HOMECARE SERVICES,06/07/2011,405.00
Bath & North East Somerset Council,21101402,LM8,Home Care,C03,Adult Social Services & Housing,SAFE & SOUND HOMECARE SERVICES,06/07/2011,405.00
Bath & North East Somerset Council,21101402,LM8,Home Care,C03,Adult Social Services & Housing,SAFE & SOUND HOMECARE SERVICES,06/07/2011,405.00
Bath & North East Somerset Council,21102341,LM3,Residential Care,C03,Adult Social Services & Housing,MIMOSA HEALTHCARE,06/07/2011,413.00
Bath & North East Somerset Council,21102341,LM3,Residential Care,C03,Adult Social Services & Housing,MIMOSA HEALTHCARE,06/07/2011,413.00
Bath & North East Somerset Council,21102341,LM3,Residential Care,C03,Adult Social Services & Housing,MIMOSA HEALTHCARE,06/07/2011,413.00
Bath & North East Somerset Council,21102341,LM3,Residential Care,C03,Adult Social Services & Housing,MIMOSA HEALTHCARE,06/07/2011,413.00
Bath & North East Somerset Council,21102341,LM3,Residential Care,C03,Adult Social Services & Housing,MIMOSA HEALTHCARE,06/07/2011,413.00
Bath & North East Somerset Council,21102341,LM3,Residential Care,C03,Adult Social Services & Housing,MIMOSA HEALTHCARE,06/07/2011,413.00
Bath & North East Somerset Council,21102341,LM3,Residential Care,C03,Adult Social Services & Housing,MIMOSA HEALTHCARE,06/07/2011,413.00
Bath & North East Somerset Council,21102341,LM3,Residential Care,C03,Adult Social Services & Housing,MIMOSA HEALTHCARE,06/07/2011,413.00
Bath & North East Somerset Council,21102444,LM3,Residential Care,C03,Adult Social Services & Housing,GROVE CARE LTD T/A ORIEL LODGE,06/07/2011,413.00
Bath & North East Somerset Council,21102444,LM3,Residential Care,C03,Adult Social Services & Housing,GROVE CARE LTD T/A ORIEL LODGE,06/07/2011,413.00
Bath & North East Somerset Council,10617327,EA1,Training,C06,Service Delivery,PRISTINE CONDITION LTD,06/07/2011,424.12
Bath & North East Somerset Council,21102458,LL3,Supported Living,C03,Adult Social Services & Housing,OPTIONS FOR LIVING LTD,06/07/2011,425.52
Bath & North East Somerset Council,21102458,LL3,Supported Living,C03,Adult Social Services & Housing,OPTIONS FOR LIVING LTD,06/07/2011,425.52
Bath & North East Somerset Council,21102444,LM3,Residential Care,C03,Adult Social Services & Housing,GROVE CARE LTD T/A ORIEL LODGE,06/07/2011,428.57
Bath & North East Somerset Council,10618383,LA1,Equipment Purchase,C06,Service Delivery,PANEL SYSTEMS,06/07/2011,431.00
Bath & North East Somerset Council,10615955,3N7,PCB Misc. Costs,C04,Development & Major Projects,TMP (UK) LTD,06/07/2011,432.64
Bath & North East Somerset Council,21102303,LL3,Supported Living,C03,Adult Social Services & Housing,SWALLOW LTD,06/07/2011,434.51
Bath & North East Somerset Council,21102303,LL3,Supported Living,C03,Adult Social Services & Housing,SWALLOW LTD,06/07/2011,434.51
Bath & North East Somerset Council,10616813,HA4,Responsive Maintenance PCB,C02,Resources,K P WILTON & SON LTD,06/07/2011,439.03
Bath & North East Somerset Council,10619201,LH2,Advertising,C03,Adult Social Services & Housing,NORTHCLIFFE MEDIA LTD,06/07/2011,444.44
Bath & North East Somerset Council,10618922,HE5,Security of Premises,C02,Resources,SECURIT WORLD LTD,06/07/2011,444.50
Bath & North East Somerset Council,10616577,HK1,Highway Maintenance,C06,Service Delivery,M JENNINGS,06/07/2011,447.00
Bath & North East Somerset Council,10615641,HA3,Planned Maintenance,C06,Service Delivery,KAISER & KRAFT LTD,06/07/2011,450.00
Bath & North East Somerset Council,10619173,LA1,Equipment Purchase,C06,Service Delivery,ENVIRO TECHNOLOGY SERVICES PLC,06/07/2011,450.00
Bath & North East Somerset Council,21102341,LM3,Residential Care,C03,Adult Social Services & Housing,MIMOSA HEALTHCARE,06/07/2011,452.00
Bath & North East Somerset Council,21102341,LM3,Residential Care,C03,Adult Social Services & Housing,MIMOSA HEALTHCARE,06/07/2011,452.00
Bath & North East Somerset Council,21102341,LM3,Residential Care,C03,Adult Social Services & Housing,MIMOSA HEALTHCARE,06/07/2011,452.00
Bath & North East Somerset Council,21102341,LM3,Residential Care,C03,Adult Social Services & Housing,MIMOSA HEALTHCARE,06/07/2011,452.00
Bath & North East Somerset Council,21102444,LM3,Residential Care,C03,Adult Social Services & Housing,GROVE CARE LTD T/A ORIEL LODGE,06/07/2011,452.00
Bath & North East Somerset Council,21102444,LM3,Residential Care,C03,Adult Social Services & Housing,GROVE CARE LTD T/A ORIEL LODGE,06/07/2011,452.00
Bath & North East Somerset Council,21102444,LM3,Residential Care,C03,Adult Social Services & Housing,GROVE CARE LTD T/A ORIEL LODGE,06/07/2011,452.00
Bath & North East Somerset Council,21102444,LM3,Residential Care,C03,Adult Social Services & Housing,GROVE CARE LTD T/A ORIEL LODGE,06/07/2011,452.00
Bath & North East Somerset Council,21102489,LM3,Residential Care,C03,Adult Social Services & Housing,SPRINGFIELD BATH LTD,06/07/2011,452.00
Bath & North East Somerset Council,21102489,LM3,Residential Care,C03,Adult Social Services & Housing,SPRINGFIELD BATH LTD,06/07/2011,452.00
Bath & North East Somerset Council,21102489,LM3,Residential Care,C03,Adult Social Services & Housing,SPRINGFIELD BATH LTD,06/07/2011,452.00
Bath & North East Somerset Council,21102489,LM3,Residential Care,C03,Adult Social Services & Housing,SPRINGFIELD BATH LTD,06/07/2011,452.00
Bath & North East Somerset Council,21102489,LM3,Residential Care,C03,Adult Social Services & Housing,SPRINGFIELD BATH LTD,06/07/2011,452.00
Bath & North East Somerset Council,21102489,LM3,Residential Care,C03,Adult Social Services & Housing,SPRINGFIELD BATH LTD,06/07/2011,452.00
Bath & North East Somerset Council,21102489,LM3,Residential Care,C03,Adult Social Services & Housing,SPRINGFIELD BATH LTD,06/07/2011,452.00
Bath & North East Somerset Council,21102489,LM3,Residential Care,C03,Adult Social Services & Housing,SPRINGFIELD BATH LTD,06/07/2011,452.00
Bath & North East Somerset Council,10619306,HK1,Highway Maintenance,C06,Service Delivery,CENTREWIRE,06/07/2011,456.26
Bath & North East Somerset Council,10616017,LF2,Photocopying,Z98,West of England Partnership,PORTRAYAL LTD,06/07/2011,456.56
Bath & North East Somerset Council,10617151,EA1,Training,C02,Resources,EQUALITY ACADEMY,06/07/2011,459.50
Bath & North East Somerset Council,10615794,HA4,Responsive Maintenance PCB,C02,Resources,ALFRED BAGNALL & SONS LTD,06/07/2011,460.00
Bath & North East Somerset Council,10617977,LA7,Purchases for Resale,C06,Service Delivery,WINNING MOVES UK LTD,06/07/2011,468.00
Bath & North East Somerset Council,10618715,HA4,Responsive Maintenance PCB,C02,Resources,K P WILTON & SON LTD,06/07/2011,469.00
Bath & North East Somerset Council,10617873,LN4,Mobile Phones,C02,Resources,ORANGE PCS,06/07/2011,470.00
Bath & North East Somerset Council,10615415,EA1,Training,C02,Resources,EMERGENCY PLANNING SOCIETY,06/07/2011,485.00
Bath & North East Somerset Council,10617635,LA7,Purchases for Resale,C06,Service Delivery,THE CHARMS OF LONDON,06/07/2011,488.75
Bath & North East Somerset Council,10619155,LT4,Conferences,C04,Development & Major Projects,LONDON DEVELOPMENT EVENTS LTD,06/07/2011,499.00
Bath & North East Somerset Council,10617964,LA7,Purchases for Resale,C06,Service Delivery,HANDMADE NORFOLK SOAPS,06/07/2011,499.20
Bath & North East Somerset Council,10617086,LA7,Purchases for Resale,C06,Service Delivery,OPAL CRAFTS LTD,06/07/2011,500.00
Bath & North East Somerset Council,10618068,LJ2,Legal Fees,C03,Adult Social Services & Housing,LANDMARK CHAMBERS LTD,06/07/2011,500.00
Bath & North East Somerset Council,21102489,LM3,Residential Care,C03,Adult Social Services & Housing,SPRINGFIELD BATH LTD,06/07/2011,500.00
Bath & North East Somerset Council,21102489,LM3,Residential Care,C03,Adult Social Services & Housing,SPRINGFIELD BATH LTD,06/07/2011,500.00
Bath & North East Somerset Council,21102458,LL3,Supported Living,C03,Adult Social Services & Housing,OPTIONS FOR LIVING LTD,06/07/2011,502.04
Bath & North East Somerset Council,21102458,LL3,Supported Living,C03,Adult Social Services & Housing,OPTIONS FOR LIVING LTD,06/07/2011,502.04
Bath & North East Somerset Council,10615829,HA4,Responsive Maintenance PCB,C02,Resources,MANNINGS FACILITIES MANAGEMENT LTD,06/07/2011,502.64
Bath & North East Somerset Council,21104127,PG1,Rent Allowances,C02,Resources,REDACTED,06/07/2011,507.70
Bath & North East Somerset Council,10616392,LW9,Other Expenses,C05,Children's Services,E MARTINS,06/07/2011,508.55
Bath & North East Somerset Council,10619170,LJ2,Legal Fees,C05,Children's Services,MISS ALICE DARIAN,06/07/2011,510.00
Bath & North East Somerset Council,10617191,LA1,Equipment Purchase,C03,Adult Social Services & Housing,FERRET INFORMATION SYSTEMS LTD,06/07/2011,513.00
Bath & North East Somerset Council,21102470,LM3,Residential Care,C03,Adult Social Services & Housing,LILLIPUT HOUSE REST HOME,06/07/2011,513.00
Bath & North East Somerset Council,21102470,LM3,Residential Care,C03,Adult Social Services & Housing,LILLIPUT HOUSE REST HOME,06/07/2011,513.00
Bath & North East Somerset Council,10618883,HA4,Responsive Maintenance PCB,C02,Resources,TPM (SOUTH WEST) LTD,06/07/2011,513.98
Bath & North East Somerset Council,10619214,LJ4,Contracts,C06,Service Delivery,ABBEY TAXIS LIMITED,06/07/2011,515.85
Bath & North East Somerset Council,21105249,LL2,Personal Needs of Clients,C05,Children's Services,REDACTED,06/07/2011,516.64
Bath & North East Somerset Council,21102458,LL3,Supported Living,C03,Adult Social Services & Housing,OPTIONS FOR LIVING LTD,06/07/2011,518.36
Bath & North East Somerset Council,10616076,LK1,Fees,C05,Children's Services,INDIGO PROMOTIONS LIMITED,06/07/2011,520.00
Bath & North East Somerset Council,10616750,LA5,Materials,C06,Service Delivery,KILLGERM CHEMICALS LIMITED,06/07/2011,520.62
Bath & North East Somerset Council,10618623,LW8,Conservation,C06,Service Delivery,CONSERVATION BY DESIGN LTD,06/07/2011,520.90
Bath & North East Somerset Council,10619303,LB3,PCB Rechargeable Subcontractors,C02,Resources,UNITED KINGDOM SECURITY,06/07/2011,525.00
Bath & North East Somerset Council,21102444,LM3,Residential Care,C03,Adult Social Services & Housing,GROVE CARE LTD T/A ORIEL LODGE,06/07/2011,525.00
Bath & North East Somerset Council,21102444,LM3,Residential Care,C03,Adult Social Services & Housing,GROVE CARE LTD T/A ORIEL LODGE,06/07/2011,525.00
Bath & North East Somerset Council,10617641,LA7,Purchases for Resale,C06,Service Delivery,JONES THE THIMBLE LTD,06/07/2011,530.00
Bath & North East Somerset Council,21103064,PG1,Rent Allowances,C02,Resources,REDACTED,06/07/2011,533.92
Bath & North East Somerset Council,21104188,PG1,Rent Allowances,C02,Resources,REDACTED,06/07/2011,533.92
Bath & North East Somerset Council,10618506,LX4,Parish Sweepers,C06,Service Delivery,BATHEASTON PARISH COUNCIL,06/07/2011,534.04
Bath & North East Somerset Council,21102330,LM6,Nursing Care,C03,Adult Social Services & Housing,OAKFIELD,06/07/2011,536.00
Bath & North East Somerset Council,21102330,LM6,Nursing Care,C03,Adult Social Services & Housing,OAKFIELD,06/07/2011,536.00
Bath & North East Somerset Council,21102330,LM6,Nursing Care,C03,Adult Social Services & Housing,OAKFIELD,06/07/2011,536.00
Bath & North East Somerset Council,21102330,LM6,Nursing Care,C03,Adult Social Services & Housing,OAKFIELD,06/07/2011,536.00
Bath & North East Somerset Council,21102330,LM6,Nursing Care,C03,Adult Social Services & Housing,OAKFIELD,06/07/2011,536.00
Bath & North East Somerset Council,21102330,LM6,Nursing Care,C03,Adult Social Services & Housing,OAKFIELD,06/07/2011,536.00
Bath & North East Somerset Council,21102330,LM6,Nursing Care,C03,Adult Social Services & Housing,OAKFIELD,06/07/2011,536.00
Bath & North East Somerset Council,21102330,LM6,Nursing Care,C03,Adult Social Services & Housing,OAKFIELD,06/07/2011,536.00
Bath & North East Somerset Council,21102330,LM6,Nursing Care,C03,Adult Social Services & Housing,OAKFIELD,06/07/2011,536.00
Bath & North East Somerset Council,21102330,LM6,Nursing Care,C03,Adult Social Services & Housing,OAKFIELD,06/07/2011,536.00
Bath & North East Somerset Council,21102330,LM6,Nursing Care,C03,Adult Social Services & Housing,OAKFIELD,06/07/2011,536.00
Bath & North East Somerset Council,21102330,LM6,Nursing Care,C03,Adult Social Services & Housing,OAKFIELD,06/07/2011,536.00
Bath & North East Somerset Council,21102330,LM6,Nursing Care,C03,Adult Social Services & Housing,OAKFIELD,06/07/2011,536.00
Bath & North East Somerset Council,21102330,LM6,Nursing Care,C03,Adult Social Services & Housing,OAKFIELD,06/07/2011,536.00
Bath & North East Somerset Council,21102330,LM6,Nursing Care,C03,Adult Social Services & Housing,OAKFIELD,06/07/2011,536.00
Bath & North East Somerset Council,21102330,LM6,Nursing Care,C03,Adult Social Services & Housing,OAKFIELD,06/07/2011,536.00
Bath & North East Somerset Council,21102330,LM6,Nursing Care,C03,Adult Social Services & Housing,OAKFIELD,06/07/2011,536.00
Bath & North East Somerset Council,21102330,LM6,Nursing Care,C03,Adult Social Services & Housing,OAKFIELD,06/07/2011,536.00
Bath & North East Somerset Council,21102336,LM6,Nursing Care,C03,Adult Social Services & Housing,LARKHALL SPRINGS NURSING HOME,06/07/2011,536.00
Bath & North East Somerset Council,21102336,LM6,Nursing Care,C03,Adult Social Services & Housing,LARKHALL SPRINGS NURSING HOME,06/07/2011,536.00
Bath & North East Somerset Council,21102336,LM6,Nursing Care,C03,Adult Social Services & Housing,LARKHALL SPRINGS NURSING HOME,06/07/2011,536.00
Bath & North East Somerset Council,21102336,LM6,Nursing Care,C03,Adult Social Services & Housing,LARKHALL SPRINGS NURSING HOME,06/07/2011,536.00
Bath & North East Somerset Council,21102336,LM6,Nursing Care,C03,Adult Social Services & Housing,LARKHALL SPRINGS NURSING HOME,06/07/2011,536.00
Bath & North East Somerset Council,21102336,LM6,Nursing Care,C03,Adult Social Services & Housing,LARKHALL SPRINGS NURSING HOME,06/07/2011,536.00
Bath & North East Somerset Council,21102336,LM6,Nursing Care,C03,Adult Social Services & Housing,LARKHALL SPRINGS NURSING HOME,06/07/2011,536.00
Bath & North East Somerset Council,21102336,LM6,Nursing Care,C03,Adult Social Services & Housing,LARKHALL SPRINGS NURSING HOME,06/07/2011,536.00
Bath & North East Somerset Council,21102336,LM6,Nursing Care,C03,Adult Social Services & Housing,LARKHALL SPRINGS NURSING HOME,06/07/2011,536.00
Bath & North East Somerset Council,21102336,LM6,Nursing Care,C03,Adult Social Services & Housing,LARKHALL SPRINGS NURSING HOME,06/07/2011,536.00
Bath & North East Somerset Council,21102336,LM6,Nursing Care,C03,Adult Social Services & Housing,LARKHALL SPRINGS NURSING HOME,06/07/2011,536.00
Bath & North East Somerset Council,21102336,LM6,Nursing Care,C03,Adult Social Services & Housing,LARKHALL SPRINGS NURSING HOME,06/07/2011,536.00
Bath & North East Somerset Council,21102336,LM6,Nursing Care,C03,Adult Social Services & Housing,LARKHALL SPRINGS NURSING HOME,06/07/2011,536.00
Bath & North East Somerset Council,21102336,LM6,Nursing Care,C03,Adult Social Services & Housing,LARKHALL SPRINGS NURSING HOME,06/07/2011,536.00
Bath & North East Somerset Council,21102336,LM6,Nursing Care,C03,Adult Social Services & Housing,LARKHALL SPRINGS NURSING HOME,06/07/2011,536.00
Bath & North East Somerset Council,21102336,LM6,Nursing Care,C03,Adult Social Services & Housing,LARKHALL SPRINGS NURSING HOME,06/07/2011,536.00
Bath & North East Somerset Council,21102341,LM6,Nursing Care,C03,Adult Social Services & Housing,MIMOSA HEALTHCARE,06/07/2011,536.00
Bath & North East Somerset Council,21102341,LM6,Nursing Care,C03,Adult Social Services & Housing,MIMOSA HEALTHCARE,06/07/2011,536.00
Bath & North East Somerset Council,21102341,LM6,Nursing Care,C03,Adult Social Services & Housing,MIMOSA HEALTHCARE,06/07/2011,536.00
Bath & North East Somerset Council,21102341,LM6,Nursing Care,C03,Adult Social Services & Housing,MIMOSA HEALTHCARE,06/07/2011,536.00
Bath & North East Somerset Council,21102341,LM6,Nursing Care,C03,Adult Social Services & Housing,MIMOSA HEALTHCARE,06/07/2011,536.00
Bath & North East Somerset Council,21102341,LM6,Nursing Care,C03,Adult Social Services & Housing,MIMOSA HEALTHCARE,06/07/2011,536.00
Bath & North East Somerset Council,21102341,LM6,Nursing Care,C03,Adult Social Services & Housing,MIMOSA HEALTHCARE,06/07/2011,536.00
Bath & North East Somerset Council,21102341,LM6,Nursing Care,C03,Adult Social Services & Housing,MIMOSA HEALTHCARE,06/07/2011,536.00
Bath & North East Somerset Council,21102341,LM6,Nursing Care,C03,Adult Social Services & Housing,MIMOSA HEALTHCARE,06/07/2011,536.00
Bath & North East Somerset Council,21102341,LM6,Nursing Care,C03,Adult Social Services & Housing,MIMOSA HEALTHCARE,06/07/2011,536.00
Bath & North East Somerset Council,21102341,LM6,Nursing Care,C03,Adult Social Services & Housing,MIMOSA HEALTHCARE,06/07/2011,536.00
Bath & North East Somerset Council,21102341,LM6,Nursing Care,C03,Adult Social Services & Housing,MIMOSA HEALTHCARE,06/07/2011,536.00
Bath & North East Somerset Council,21102341,LM6,Nursing Care,C03,Adult Social Services & Housing,MIMOSA HEALTHCARE,06/07/2011,536.00
Bath & North East Somerset Council,21102440,LM6,Nursing Care,C03,Adult Social Services & Housing,T C CAREHOME LTD,06/07/2011,536.00
Bath & North East Somerset Council,21102440,LM6,Nursing Care,C03,Adult Social Services & Housing,T C CAREHOME LTD,06/07/2011,536.00
Bath & North East Somerset Council,21102440,LM6,Nursing Care,C03,Adult Social Services & Housing,T C CAREHOME LTD,06/07/2011,536.00
Bath & North East Somerset Council,21102440,LM6,Nursing Care,C03,Adult Social Services & Housing,T C CAREHOME LTD,06/07/2011,536.00
Bath & North East Somerset Council,21102440,LM6,Nursing Care,C03,Adult Social Services & Housing,T C CAREHOME LTD,06/07/2011,536.00
Bath & North East Somerset Council,21102440,LM6,Nursing Care,C03,Adult Social Services & Housing,T C CAREHOME LTD,06/07/2011,536.00
Bath & North East Somerset Council,21102440,LM6,Nursing Care,C03,Adult Social Services & Housing,T C CAREHOME LTD,06/07/2011,536.00
Bath & North East Somerset Council,21102440,LM6,Nursing Care,C03,Adult Social Services & Housing,T C CAREHOME LTD,06/07/2011,536.00
Bath & North East Somerset Council,21102440,LM6,Nursing Care,C03,Adult Social Services & Housing,T C CAREHOME LTD,06/07/2011,536.00
Bath & North East Somerset Council,21102440,LM6,Nursing Care,C03,Adult Social Services & Housing,T C CAREHOME LTD,06/07/2011,536.00
Bath & North East Somerset Council,21102440,LM6,Nursing Care,C03,Adult Social Services & Housing,T C CAREHOME LTD,06/07/2011,536.00
Bath & North East Somerset Council,21102440,LM6,Nursing Care,C03,Adult Social Services & Housing,T C CAREHOME LTD,06/07/2011,536.00
Bath & North East Somerset Council,21102440,LM6,Nursing Care,C03,Adult Social Services & Housing,T C CAREHOME LTD,06/07/2011,536.00
Bath & North East Somerset Council,21102440,LM6,Nursing Care,C03,Adult Social Services & Housing,T C CAREHOME LTD,06/07/2011,536.00
Bath & North East Somerset Council,21102440,LM6,Nursing Care,C03,Adult Social Services & Housing,T C CAREHOME LTD,06/07/2011,536.00
Bath & North East Somerset Council,21102440,LM6,Nursing Care,C03,Adult Social Services & Housing,T C CAREHOME LTD,06/07/2011,536.00
Bath & North East Somerset Council,21102440,LM6,Nursing Care,C03,Adult Social Services & Housing,T C CAREHOME LTD,06/07/2011,536.00
Bath & North East Somerset Council,21102440,LM6,Nursing Care,C03,Adult Social Services & Housing,T C CAREHOME LTD,06/07/2011,536.00
Bath & North East Somerset Council,21102440,LM6,Nursing Care,C03,Adult Social Services & Housing,T C CAREHOME LTD,06/07/2011,536.00
Bath & North East Somerset Council,21102440,LM6,Nursing Care,C03,Adult Social Services & Housing,T C CAREHOME LTD,06/07/2011,536.00
Bath & North East Somerset Council,21102440,LM6,Nursing Care,C03,Adult Social Services & Housing,T C CAREHOME LTD,06/07/2011,536.00
Bath & North East Somerset Council,21102454,LM6,Nursing Care,C03,Adult Social Services & Housing,CARESTREAM LTD,06/07/2011,536.00
Bath & North East Somerset Council,21102454,LM6,Nursing Care,C03,Adult Social Services & Housing,CARESTREAM LTD,06/07/2011,536.00
Bath & North East Somerset Council,21102455,LM6,Nursing Care,C03,Adult Social Services & Housing,BUPA CARE SERVICES BACS RECEIPTS,06/07/2011,536.00
Bath & North East Somerset Council,21102455,LM6,Nursing Care,C03,Adult Social Services & Housing,BUPA CARE SERVICES BACS RECEIPTS,06/07/2011,536.00
Bath & North East Somerset Council,10616717,PB4,Payments to Private Contractors,C06,Service Delivery,SHIELD ENVIRONMENTAL SERVICES LTD,06/07/2011,540.00
Bath & North East Somerset Council,10617948,LA7,Purchases for Resale,C06,Service Delivery,AWNHILL LTD,06/07/2011,541.56
Bath & North East Somerset Council,21104180,PG1,Rent Allowances,C02,Resources,REDACTED,06/07/2011,543.12
Bath & North East Somerset Council,10617356,LA5,Materials,C06,Service Delivery,KEY INDUSTRIAL EQUIPMENT LTD,06/07/2011,546.50
Bath & North East Somerset Council,21102627,PG1,Rent Allowances,C02,Resources,THE BATH PROPERTY SHOP,06/07/2011,549.24
Bath & North East Somerset Council,21102435,LM3,Residential Care,C03,Adult Social Services & Housing,BELMONT VILLA RESIDENTIAL NURSING HOME LTD,06/07/2011,550.00
Bath & North East Somerset Council,21102435,LM3,Residential Care,C03,Adult Social Services & Housing,BELMONT VILLA RESIDENTIAL NURSING HOME LTD,06/07/2011,550.00
Bath & North East Somerset Council,21105124,PG1,Rent Allowances,C02,Resources,REDACTED,06/07/2011,552.00
Bath & North East Somerset Council,10619215,LJ4,Contracts,C06,Service Delivery,ANDREWS COACHES,06/07/2011,553.92
Bath & North East Somerset Council,10619171,LJ2,Legal Fees,C05,Children's Services,REDACTED,06/07/2011,558.13
Bath & North East Somerset Council,10619334,DB1,Agency Staff,C06,Service Delivery,MR M ANALTS,06/07/2011,560.00
Bath & North East Somerset Council,10617640,LA7,Purchases for Resale,C06,Service Delivery,HOT TOMATO LTD,06/07/2011,560.95
Bath & North East Somerset Council,10619280,KA2,Running Costs,C02,Resources,REDACTED,06/07/2011,565.00
Bath & North East Somerset Council,21102473,LM6,Nursing Care,C03,Adult Social Services & Housing,BUPACARE SERVICE BACS RECEIPTS,06/07/2011,565.80
Bath & North East Somerset Council,21102473,LM6,Nursing Care,C03,Adult Social Services & Housing,BUPACARE SERVICE BACS RECEIPTS,06/07/2011,565.80
Bath & North East Somerset Council,10616882,LF2,Photocopying,Z98,West of England Partnership,DE LAGE LANDEN LTD,06/07/2011,567.13
Bath & North East Somerset Council,21102499,LM6,Nursing Care,C03,Adult Social Services & Housing,SOUTHERN CROSS HEALTHCARE,06/07/2011,568.70
Bath & North East Somerset Council,21102499,LM6,Nursing Care,C03,Adult Social Services & Housing,SOUTHERN CROSS HEALTHCARE,06/07/2011,568.70
Bath & North East Somerset Council,21102330,LM6,Nursing Care,C03,Adult Social Services & Housing,OAKFIELD,06/07/2011,569.00
Bath & North East Somerset Council,21102330,LM6,Nursing Care,C03,Adult Social Services & Housing,OAKFIELD,06/07/2011,569.00
Bath & North East Somerset Council,21102336,LM6,Nursing Care,C03,Adult Social Services & Housing,LARKHALL SPRINGS NURSING HOME,06/07/2011,569.00
Bath & North East Somerset Council,21102336,LM6,Nursing Care,C03,Adult Social Services & Housing,LARKHALL SPRINGS NURSING HOME,06/07/2011,569.00
Bath & North East Somerset Council,21102336,LM6,Nursing Care,C03,Adult Social Services & Housing,LARKHALL SPRINGS NURSING HOME,06/07/2011,569.00
Bath & North East Somerset Council,21102336,LM6,Nursing Care,C03,Adult Social Services & Housing,LARKHALL SPRINGS NURSING HOME,06/07/2011,569.00
Bath & North East Somerset Council,21102336,LM6,Nursing Care,C03,Adult Social Services & Housing,LARKHALL SPRINGS NURSING HOME,06/07/2011,569.00
Bath & North East Somerset Council,21102336,LM6,Nursing Care,C03,Adult Social Services & Housing,LARKHALL SPRINGS NURSING HOME,06/07/2011,569.00
Bath & North East Somerset Council,21102339,LM3,Residential Care,C03,Adult Social Services & Housing,FERFOOT LTD,06/07/2011,569.00
Bath & North East Somerset Council,21102339,LM3,Residential Care,C03,Adult Social Services & Housing,FERFOOT LTD,06/07/2011,569.00
Bath & North East Somerset Council,21102341,LM6,Nursing Care,C03,Adult Social Services & Housing,MIMOSA HEALTHCARE,06/07/2011,569.00
Bath & North East Somerset Council,21102341,LM6,Nursing Care,C03,Adult Social Services & Housing,MIMOSA HEALTHCARE,06/07/2011,569.00
Bath & North East Somerset Council,21102341,LM6,Nursing Care,C03,Adult Social Services & Housing,MIMOSA HEALTHCARE,06/07/2011,569.00
Bath & North East Somerset Council,21102341,LM6,Nursing Care,C03,Adult Social Services & Housing,MIMOSA HEALTHCARE,06/07/2011,569.00
Bath & North East Somerset Council,21102363,LM6,Nursing Care,C03,Adult Social Services & Housing,SHAW HOMES HOUSING ASSOC LTD,06/07/2011,569.00
Bath & North East Somerset Council,21102363,LM6,Nursing Care,C03,Adult Social Services & Housing,SHAW HOMES HOUSING ASSOC LTD,06/07/2011,569.00
Bath & North East Somerset Council,21102378,LM6,Nursing Care,C03,Adult Social Services & Housing,SOUTHERN CROSS (REDACTED),06/07/2011,569.00
Bath & North East Somerset Council,21102378,LM6,Nursing Care,C03,Adult Social Services & Housing,SOUTHERN CROSS (REDACTED),06/07/2011,569.00
Bath & North East Somerset Council,21102440,LM6,Nursing Care,C03,Adult Social Services & Housing,T C CAREHOME LTD,06/07/2011,569.00
Bath & North East Somerset Council,21102440,LM6,Nursing Care,C03,Adult Social Services & Housing,T C CAREHOME LTD,06/07/2011,569.00
Bath & North East Somerset Council,21102458,LL3,Supported Living,C03,Adult Social Services & Housing,OPTIONS FOR LIVING LTD,06/07/2011,569.30
Bath & North East Somerset Council,21102458,LL3,Supported Living,C03,Adult Social Services & Housing,OPTIONS FOR LIVING LTD,06/07/2011,569.30
Bath & North East Somerset Council,21103490,PG1,Rent Allowances,C02,Resources,REDACTED,06/07/2011,570.00
Bath & North East Somerset Council,21103779,PG1,Rent Allowances,C02,Resources,REDACTED,06/07/2011,570.00
Bath & North East Somerset Council,10619341,HK1,Highway Maintenance,C06,Service Delivery,E R HEMMINGS (BUILDING) LTD,06/07/2011,572.00
Bath & North East Somerset Council,10617039,HN1,Electricity,C06,Service Delivery,SOUTHERN ELECTRIC PLC,06/07/2011,572.45
Bath & North East Somerset Council,10616384,LL1,Services to Clients,C05,Children's Services,RED RIDGE CENTRE,06/07/2011,574.00
Bath & North East Somerset Council,10618863,DB1,Agency Staff,C06,Service Delivery,SOMERSET TRANSPORT SERVICES LTD,06/07/2011,581.00
Bath & North East Somerset Council,10618504,LJ4,Contracts,C06,Service Delivery,BATHEASTON PARISH COUNCIL,06/07/2011,585.17
Bath & North East Somerset Council,21102496,LM6,Nursing Care,C03,Adult Social Services & Housing,STOCKS HALL CARE HOMES LTD,06/07/2011,588.00
Bath & North East Somerset Council,21102496,LM6,Nursing Care,C03,Adult Social Services & Housing,STOCKS HALL CARE HOMES LTD,06/07/2011,588.00
Bath & North East Somerset Council,21102433,LM3,Residential Care,C03,Adult Social Services & Housing,TREVI,06/07/2011,589.29
Bath & North East Somerset Council,21102475,LM6,Nursing Care,C03,Adult Social Services & Housing,BUPACARE SERVICES BACS RECEIPTS,06/07/2011,591.00
Bath & North East Somerset Council,21102475,LM6,Nursing Care,C03,Adult Social Services & Housing,BUPACARE SERVICES BACS RECEIPTS,06/07/2011,591.00
Bath & North East Somerset Council,21102336,LM6,Nursing Care,C03,Adult Social Services & Housing,LARKHALL SPRINGS NURSING HOME,06/07/2011,593.00
Bath & North East Somerset Council,21102336,LM6,Nursing Care,C03,Adult Social Services & Housing,LARKHALL SPRINGS NURSING HOME,06/07/2011,593.00
Bath & North East Somerset Council,21102390,LL3,Supported Living,C03,Adult Social Services & Housing,HOME FARM TRUST,06/07/2011,593.30
Bath & North East Somerset Council,21102390,LL3,Supported Living,C03,Adult Social Services & Housing,HOME FARM TRUST,06/07/2011,593.30
Bath & North East Somerset Council,21102336,LM6,Nursing Care,C03,Adult Social Services & Housing,LARKHALL SPRINGS NURSING HOME,06/07/2011,594.00
Bath & North East Somerset Council,21102336,LM6,Nursing Care,C03,Adult Social Services & Housing,LARKHALL SPRINGS NURSING HOME,06/07/2011,594.00
Bath & North East Somerset Council,21102424,LM3,Residential Care,C03,Adult Social Services & Housing,DEVON SHELTERED HOMES TRUST - REDACTED,06/07/2011,594.35
Bath & North East Somerset Council,21102424,LM3,Residential Care,C03,Adult Social Services & Housing,DEVON SHELTERED HOMES TRUST - REDACTED,06/07/2011,594.35
Bath & North East Somerset Council,21103087,PG1,Rent Allowances,C02,Resources,REDACTED,06/07/2011,596.19
Bath & North East Somerset Council,21102465,LM6,Nursing Care,C03,Adult Social Services & Housing,LIFESTYLE CARE (2005) PLC,06/07/2011,597.40
Bath & North East Somerset Council,21102465,LM6,Nursing Care,C03,Adult Social Services & Housing,LIFESTYLE CARE (2005) PLC,06/07/2011,597.40
Bath & North East Somerset Council,10618196,3N7,PCB Misc. Costs,C02,Resources,MACE LIMITED,06/07/2011,600.00
Bath & North East Somerset Council,10618563,KA2,Running Costs,C06,Service Delivery,YOUR-PACE DRIVER TRAINING,06/07/2011,600.00
Bath & North East Somerset Council,10618688,LJ3,Other Services to the Council,C06,Service Delivery,COMPLETE WEED CONTROL NORTH WE,06/07/2011,600.00
Bath & North East Somerset Council,10619161,3F7,PCB External Fees,C05,Children's Services,CONSTRUCTION PLANNING ASSOCIATES,06/07/2011,600.00
Bath & North East Somerset Council,21102336,LM6,Nursing Care,C03,Adult Social Services & Housing,LARKHALL SPRINGS NURSING HOME,06/07/2011,600.00
Bath & North East Somerset Council,21102336,LM6,Nursing Care,C03,Adult Social Services & Housing,LARKHALL SPRINGS NURSING HOME,06/07/2011,600.00
Bath & North East Somerset Council,21102444,LM3,Residential Care,C03,Adult Social Services & Housing,GROVE CARE LTD T/A ORIEL LODGE,06/07/2011,600.00
Bath & North East Somerset Council,21102444,LM3,Residential Care,C03,Adult Social Services & Housing,GROVE CARE LTD T/A ORIEL LODGE,06/07/2011,600.00
Bath & North East Somerset Council,21102444,LM3,Residential Care,C03,Adult Social Services & Housing,GROVE CARE LTD T/A ORIEL LODGE,06/07/2011,600.00
Bath & North East Somerset Council,21102444,LM3,Residential Care,C03,Adult Social Services & Housing,GROVE CARE LTD T/A ORIEL LODGE,06/07/2011,600.00
Bath & North East Somerset Council,21102444,LM3,Residential Care,C03,Adult Social Services & Housing,GROVE CARE LTD T/A ORIEL LODGE,06/07/2011,600.00
Bath & North East Somerset Council,21102444,LM3,Residential Care,C03,Adult Social Services & Housing,GROVE CARE LTD T/A ORIEL LODGE,06/07/2011,600.00
Bath & North East Somerset Council,21102444,LM3,Residential Care,C03,Adult Social Services & Housing,GROVE CARE LTD T/A ORIEL LODGE,06/07/2011,600.00
Bath & North East Somerset Council,21102444,LM3,Residential Care,C03,Adult Social Services & Housing,GROVE CARE LTD T/A ORIEL LODGE,06/07/2011,600.00
Bath & North East Somerset Council,21102444,LM3,Residential Care,C03,Adult Social Services & Housing,GROVE CARE LTD T/A ORIEL LODGE,06/07/2011,600.00
Bath & North East Somerset Council,21102498,LM3,Residential Care,C03,Adult Social Services & Housing,LYNDALE CARE LTD,06/07/2011,600.00
Bath & North East Somerset Council,21102498,LM3,Residential Care,C03,Adult Social Services & Housing,LYNDALE CARE LTD,06/07/2011,600.00
Bath & North East Somerset Council,10616592,LF4,Stationery,C06,Service Delivery,GLASDON UK LIMITED,06/07/2011,605.44
Bath & North East Somerset Council,21096544,LM6,Nursing Care,C03,Adult Social Services & Housing,RAVENSCROFT,06/07/2011,608.00
Bath & North East Somerset Council,21096544,LM6,Nursing Care,C03,Adult Social Services & Housing,RAVENSCROFT,06/07/2011,608.00
Bath & North East Somerset Council,21102329,LM6,Nursing Care,C03,Adult Social Services & Housing,RAVENSCROFT,06/07/2011,608.00
Bath & North East Somerset Council,21102329,LM6,Nursing Care,C03,Adult Social Services & Housing,RAVENSCROFT,06/07/2011,608.00
Bath & North East Somerset Council,10619123,LK1,Fees,C06,Service Delivery,MRS NIKKI BONNER,06/07/2011,610.00
Bath & North East Somerset Council,10619025,LX1,Educational Activity,C05,Children's Services,REDACTED,06/07/2011,612.00
Bath & North East Somerset Council,21102465,LM6,Nursing Care,C03,Adult Social Services & Housing,LIFESTYLE CARE (2005) PLC,06/07/2011,618.00
Bath & North East Somerset Council,21102465,LM6,Nursing Care,C03,Adult Social Services & Housing,LIFESTYLE CARE (2005) PLC,06/07/2011,618.00
Bath & North East Somerset Council,10617856,LA7,Purchases for Resale,C06,Service Delivery,COTSWOLD LAVENDER,06/07/2011,618.24
Bath & North East Somerset Council,10615885,LK1,Fees,C02,Resources,FIRST AID TRAINING (BATH) LIMITED,06/07/2011,620.00
Bath & North East Somerset Council,10618881,HA4,Responsive Maintenance PCB,C02,Resources,TPM (SOUTH WEST) LTD,06/07/2011,620.00
Bath & North East Somerset Council,10617632,LA7,Purchases for Resale,C06,Service Delivery,BRITISH FOSSILS,06/07/2011,623.34
Bath & North East Somerset Council,21102506,LM6,Nursing Care,C03,Adult Social Services & Housing,DELPHINE HOME CARE,06/07/2011,624.40
Bath & North East Somerset Council,21102506,LM6,Nursing Care,C03,Adult Social Services & Housing,DELPHINE HOME CARE,06/07/2011,624.40
Bath & North East Somerset Council,21102486,LM3,Residential Care,C03,Adult Social Services & Housing,REDACTED,06/07/2011,630.00
Bath & North East Somerset Council,21102486,LM3,Residential Care,C03,Adult Social Services & Housing,REDACTED,06/07/2011,630.00
Bath & North East Somerset Council,10617884,LA7,Purchases for Resale,C06,Service Delivery,WESTAIR REPRODUCTIONS LIMITED,06/07/2011,632.95
Bath & North East Somerset Council,10618883,HA4,Responsive Maintenance PCB,C02,Resources,TPM (SOUTH WEST) LTD,06/07/2011,639.25
Bath & North East Somerset Council,21102364,LM3,Residential Care,C03,Adult Social Services & Housing,BATH MIND,06/07/2011,639.79
Bath & North East Somerset Council,21102364,LM3,Residential Care,C03,Adult Social Services & Housing,BATH MIND,06/07/2011,639.79
Bath & North East Somerset Council,21102364,LM3,Residential Care,C03,Adult Social Services & Housing,BATH MIND,06/07/2011,639.79
Bath & North East Somerset Council,21102364,LM3,Residential Care,C03,Adult Social Services & Housing,BATH MIND,06/07/2011,639.79
Bath & North East Somerset Council,21102364,LM3,Residential Care,C03,Adult Social Services & Housing,BATH MIND,06/07/2011,639.79
Bath & North East Somerset Council,21102364,LM3,Residential Care,C03,Adult Social Services & Housing,BATH MIND,06/07/2011,639.79
Bath & North East Somerset Council,21102364,LM3,Residential Care,C03,Adult Social Services & Housing,BATH MIND,06/07/2011,639.79
Bath & North East Somerset Council,21102364,LM3,Residential Care,C03,Adult Social Services & Housing,BATH MIND,06/07/2011,639.79
Bath & North East Somerset Council,21102364,LM3,Residential Care,C03,Adult Social Services & Housing,BATH MIND,06/07/2011,639.79
Bath & North East Somerset Council,21102364,LM3,Residential Care,C03,Adult Social Services & Housing,BATH MIND,06/07/2011,639.79
Bath & North East Somerset Council,21102364,LM3,Residential Care,C03,Adult Social Services & Housing,BATH MIND,06/07/2011,639.79
Bath & North East Somerset Council,21102364,LM3,Residential Care,C03,Adult Social Services & Housing,BATH MIND,06/07/2011,639.79
Bath & North East Somerset Council,21102364,LM3,Residential Care,C03,Adult Social Services & Housing,BATH MIND,06/07/2011,639.79
Bath & North East Somerset Council,21102364,LM3,Residential Care,C03,Adult Social Services & Housing,BATH MIND,06/07/2011,639.79
Bath & North East Somerset Council,10617155,EA1,Training,C02,Resources,PETER TAYLOR,06/07/2011,640.00
Bath & North East Somerset Council,10619128,HA3,Planned Maintenance,C06,Service Delivery,WESSEX WATER ENTERPRISES,06/07/2011,647.47
Bath & North East Somerset Council,21101401,LM8,Home Care,C03,Adult Social Services & Housing,SAFE & SOUND HOMECARE SERVICES,06/07/2011,650.00
Bath & North East Somerset Council,21101401,LM8,Home Care,C03,Adult Social Services & Housing,SAFE & SOUND HOMECARE SERVICES,06/07/2011,650.00
Bath & North East Somerset Council,21101401,LM8,Home Care,C03,Adult Social Services & Housing,SAFE & SOUND HOMECARE SERVICES,06/07/2011,650.00
Bath & North East Somerset Council,21101401,LM8,Home Care,C03,Adult Social Services & Housing,SAFE & SOUND HOMECARE SERVICES,06/07/2011,650.00
Bath & North East Somerset Council,21102480,LM6,Nursing Care,C03,Adult Social Services & Housing,FLOLLIE INVESTMENTS LTD T/A STANTON NURSING HOME,06/07/2011,650.00
Bath & North East Somerset Council,21102480,LM6,Nursing Care,C03,Adult Social Services & Housing,FLOLLIE INVESTMENTS LTD T/A STANTON NURSING HOME,06/07/2011,650.00
Bath & North East Somerset Council,10618519,LX4,Parish Sweepers,C06,Service Delivery,PAULTON PARISH COUNCIL,06/07/2011,653.26
Bath & North East Somerset Council,10616620,LA7,Purchases for Resale,C06,Service Delivery,BUILDING BLOCKS,06/07/2011,664.30
Bath & North East Somerset Council,21104321,PG1,Rent Allowances,C02,Resources,REDACTED,06/07/2011,669.63
Bath & North East Somerset Council,21102330,LM6,Nursing Care,C03,Adult Social Services & Housing,OAKFIELD,06/07/2011,675.99
Bath & North East Somerset Council,21102330,LM6,Nursing Care,C03,Adult Social Services & Housing,OAKFIELD,06/07/2011,675.99
Bath & North East Somerset Council,21102417,LM3,Residential Care,C03,Adult Social Services & Housing,LEONARD CHESHIRE FOUNDATION,06/07/2011,681.44
Bath & North East Somerset Council,21102417,LM3,Residential Care,C03,Adult Social Services & Housing,LEONARD CHESHIRE FOUNDATION,06/07/2011,681.44
Bath & North East Somerset Council,10617111,LA5,Materials,C06,Service Delivery,LANDSCAPE SUPPLY COMPANY,06/07/2011,690.00
Bath & North East Somerset Council,10615833,HA4,Responsive Maintenance PCB,C02,Resources,MANNINGS FACILITIES MANAGEMENT LTD,06/07/2011,694.78
Bath & North East Somerset Council,10619180,HA4,Responsive Maintenance PCB,C02,Resources,ERIKS INDUSTRIAL SERVICES LTD,06/07/2011,695.00
Bath & North East Somerset Council,10616462,LH1,Liability Insurance,C06,Service Delivery,ART WORKS,06/07/2011,700.00
Bath & North East Somerset Council,21102400,LM6,Nursing Care,C03,Adult Social Services & Housing,BARCHESTER HEALTHCARE,06/07/2011,700.00
Bath & North East Somerset Council,21102400,LM6,Nursing Care,C03,Adult Social Services & Housing,BARCHESTER HEALTHCARE,06/07/2011,700.00
Bath & North East Somerset Council,21102437,LM3,Residential Care,C03,Adult Social Services & Housing,ALPINE VILLA CARE HOME LTD,06/07/2011,700.00
Bath & North East Somerset Council,21102437,LM3,Residential Care,C03,Adult Social Services & Housing,ALPINE VILLA CARE HOME LTD,06/07/2011,700.00
Bath & North East Somerset Council,10616241,LC1,Provisions,C02,Resources,APETITO LTD,06/07/2011,704.11
Bath & North East Somerset Council,21103384,PG1,Rent Allowances,C02,Resources,REDACTED,06/07/2011,708.70
Bath & North East Somerset Council,10619329,LK4,Nursery/Childcare Vouchers,C05,Children's Services,TWERTON INFANT SCHOOL,06/07/2011,711.75
Bath & North East Somerset Council,10617240,KX9,Other Transport Related,C06,Service Delivery,RICHARD STRAFFEN MOTORS,06/07/2011,720.00
Bath & North East Somerset Council,10615627,LK6,Photography/Artworks/Graphics,C06,Service Delivery,THE LIGHT BULB COMPANY,06/07/2011,721.25
Bath & North East Somerset Council,21102428,LM3,Residential Care,C03,Adult Social Services & Housing,BOLE ALLER HOUSE LTD,06/07/2011,721.42
Bath & North East Somerset Council,21102428,LM3,Residential Care,C03,Adult Social Services & Housing,BOLE ALLER HOUSE LTD,06/07/2011,721.42
Bath & North East Somerset Council,21102491,LM6,Nursing Care,C03,Adult Social Services & Housing,ASHBOURNE HOMES LTD RIVERSIDE CARE CENTRE,06/07/2011,732.95
Bath & North East Somerset Council,21102491,LM6,Nursing Care,C03,Adult Social Services & Housing,ASHBOURNE HOMES LTD RIVERSIDE CARE CENTRE,06/07/2011,732.95
Bath & North East Somerset Council,21102330,LM6,Nursing Care,C03,Adult Social Services & Housing,OAKFIELD,06/07/2011,733.00
Bath & North East Somerset Council,21102330,LM6,Nursing Care,C03,Adult Social Services & Housing,OAKFIELD,06/07/2011,733.00
Bath & North East Somerset Council,21102417,LM3,Residential Care,C03,Adult Social Services & Housing,LEONARD CHESHIRE FOUNDATION,06/07/2011,735.57
Bath & North East Somerset Council,21102417,LM3,Residential Care,C03,Adult Social Services & Housing,LEONARD CHESHIRE FOUNDATION,06/07/2011,735.57
Bath & North East Somerset Council,10615620,HA3,Planned Maintenance,C06,Service Delivery,SYSCO AV LTD,06/07/2011,750.00
Bath & North East Somerset Council,10616331,LK1,Fees,C06,Service Delivery,CYCLEMAGIC LTD,06/07/2011,750.00
Bath & North East Somerset Council,10619161,3F7,PCB External Fees,C05,Children's Services,CONSTRUCTION PLANNING ASSOCIATES,06/07/2011,750.00
Bath & North East Somerset Council,21102400,LM6,Nursing Care,C03,Adult Social Services & Housing,BARCHESTER HEALTHCARE,06/07/2011,750.00
Bath & North East Somerset Council,21102400,LM6,Nursing Care,C03,Adult Social Services & Housing,BARCHESTER HEALTHCARE,06/07/2011,750.00
Bath & North East Somerset Council,21103913,PG1,Rent Allowances,C02,Resources,REDACTED,06/07/2011,757.29
Bath & North East Somerset Council,10617432,HP3,Room Hire Charges,C05,Children's Services,ST MARTINS GARDEN PRIMARY SCHOOL,06/07/2011,757.69
Bath & North East Somerset Council,10618846,LJ4,Contracts,C06,Service Delivery,ABBEY TAXIS LIMITED,06/07/2011,760.00
Bath & North East Somerset Council,10617433,HP3,Room Hire Charges,C05,Children's Services,ST MARTINS GARDEN PRIMARY SCHOOL,06/07/2011,760.65
Bath & North East Somerset Council,10618006,LA1,Equipment Purchase,C03,Adult Social Services & Housing,SUNRISE MEDICAL LTD,06/07/2011,770.56
Bath & North East Somerset Council,10618730,LA3,Equipment Maintenance,C06,Service Delivery,ABW ENGINEERING SERVICES [SW] LTD,06/07/2011,774.00
Bath & North East Somerset Council,10619214,LJ4,Contracts,C06,Service Delivery,ABBEY TAXIS LIMITED,06/07/2011,774.43
Bath & North East Somerset Council,21102447,LM3,Residential Care,C03,Adult Social Services & Housing,VILLAGE HOMES (SOMERSET) LTD,06/07/2011,777.07
Bath & North East Somerset Council,21102447,LM3,Residential Care,C03,Adult Social Services & Housing,VILLAGE HOMES (SOMERSET) LTD,06/07/2011,777.07
Bath & North East Somerset Council,10618984,LH2,Advertising,C06,Service Delivery,NORTHCLIFFE MEDIA LTD,06/07/2011,782.90
Bath & North East Somerset Council,10618985,LH2,Advertising,C06,Service Delivery,NORTHCLIFFE MEDIA LTD,06/07/2011,782.90
Bath & North East Somerset Council,10615630,LA1,Equipment Purchase,C06,Service Delivery,PANEL SYSTEMS,06/07/2011,789.71
Bath & North East Somerset Council,10618791,LL1,Services to Clients,C03,Adult Social Services & Housing,ALLEN RESIDENTIAL,06/07/2011,795.00
Bath & North East Somerset Council,10616902,3K2,PCB Security,C05,Children's Services,ASGUK SECURITY & SAFETY SYSTEMS,06/07/2011,795.73
Bath & North East Somerset Council,21102395,LM3,Residential Care,C03,Adult Social Services & Housing,MANOR COMMUNITY CARE HOME,06/07/2011,798.00
Bath & North East Somerset Council,21102395,LM3,Residential Care,C03,Adult Social Services & Housing,MANOR COMMUNITY CARE HOME,06/07/2011,798.00
Bath & North East Somerset Council,10616760,LJ2,Legal Fees,C06,Service Delivery,MISS LISA BUSCH,06/07/2011,800.00
Bath & North East Somerset Council,21102625,PG1,Rent Allowances,C02,Resources,BATH & DISTRICT LIFE CARE,06/07/2011,800.27
Bath & North East Somerset Council,10615544,LC1,Provisions,C02,Resources,APETITO LTD,06/07/2011,820.05
Bath & North East Somerset Council,21102458,LL3,Supported Living,C03,Adult Social Services & Housing,OPTIONS FOR LIVING LTD,06/07/2011,823.82
Bath & North East Somerset Council,21102458,LL3,Supported Living,C03,Adult Social Services & Housing,OPTIONS FOR LIVING LTD,06/07/2011,823.82
Bath & North East Somerset Council,21103421,PG1,Rent Allowances,C02,Resources,REDACTED,06/07/2011,824.94
Bath & North East Somerset Council,21102433,LM3,Residential Care,C03,Adult Social Services & Housing,TREVI,06/07/2011,825.00
Bath & North East Somerset Council,21102433,LM3,Residential Care,C03,Adult Social Services & Housing,TREVI,06/07/2011,825.00
Bath & North East Somerset Council,21102433,LM3,Residential Care,C03,Adult Social Services & Housing,TREVI,06/07/2011,825.00
Bath & North East Somerset Council,21102433,LM3,Residential Care,C03,Adult Social Services & Housing,TREVI,06/07/2011,825.00
Bath & North East Somerset Council,21102433,LM3,Residential Care,C03,Adult Social Services & Housing,TREVI,06/07/2011,825.00
Bath & North East Somerset Council,21102433,LM3,Residential Care,C03,Adult Social Services & Housing,TREVI,06/07/2011,825.00
Bath & North East Somerset Council,21102433,LM3,Residential Care,C03,Adult Social Services & Housing,TREVI,06/07/2011,825.00
Bath & North East Somerset Council,21102433,LM3,Residential Care,C03,Adult Social Services & Housing,TREVI,06/07/2011,825.00
Bath & North East Somerset Council,21102433,LM3,Residential Care,C03,Adult Social Services & Housing,TREVI,06/07/2011,825.00
Bath & North East Somerset Council,21102433,LM3,Residential Care,C03,Adult Social Services & Housing,TREVI,06/07/2011,825.00
Bath & North East Somerset Council,21102433,LM3,Residential Care,C03,Adult Social Services & Housing,TREVI,06/07/2011,825.00
Bath & North East Somerset Council,21102433,LM3,Residential Care,C03,Adult Social Services & Housing,TREVI,06/07/2011,825.00
Bath & North East Somerset Council,21102433,LM3,Residential Care,C03,Adult Social Services & Housing,TREVI,06/07/2011,825.00
Bath & North East Somerset Council,21102433,LM3,Residential Care,C03,Adult Social Services & Housing,TREVI,06/07/2011,825.00
Bath & North East Somerset Council,21102433,LM3,Residential Care,C03,Adult Social Services & Housing,TREVI,06/07/2011,825.00
Bath & North East Somerset Council,21102433,LM3,Residential Care,C03,Adult Social Services & Housing,TREVI,06/07/2011,825.00
Bath & North East Somerset Council,21102433,LM3,Residential Care,C03,Adult Social Services & Housing,TREVI,06/07/2011,825.00
Bath & North East Somerset Council,10618414,LA1,Equipment Purchase,C06,Service Delivery,PETERS LTD,06/07/2011,829.00
Bath & North East Somerset Council,10615377,LA1,Equipment Purchase,C03,Adult Social Services & Housing,AKW MEDI-CARE LIMITED,06/07/2011,830.10
Bath & North East Somerset Council,21102417,LM3,Residential Care,C03,Adult Social Services & Housing,LEONARD CHESHIRE FOUNDATION,06/07/2011,835.43
Bath & North East Somerset Council,21102417,LM3,Residential Care,C03,Adult Social Services & Housing,LEONARD CHESHIRE FOUNDATION,06/07/2011,835.43
Bath & North East Somerset Council,21102422,LM3,Residential Care,C03,Adult Social Services & Housing,HOME FARM TRUST LTD,06/07/2011,835.87
Bath & North East Somerset Council,21102422,LM3,Residential Care,C03,Adult Social Services & Housing,HOME FARM TRUST LTD,06/07/2011,835.87
Bath & North East Somerset Council,10617349,LC1,Provisions,C02,Resources,APETITO LTD,06/07/2011,839.94
Bath & North East Somerset Council,10616476,LH5,Marketing,C06,Service Delivery,26 MARKETING,06/07/2011,840.00
Bath & North East Somerset Council,21102474,LM3,Residential Care,C03,Adult Social Services & Housing,CAMPHILL DEVON COMMUNITY LTD,06/07/2011,841.50
Bath & North East Somerset Council,21102474,LM3,Residential Care,C03,Adult Social Services & Housing,CAMPHILL DEVON COMMUNITY LTD,06/07/2011,841.50
Bath & North East Somerset Council,10617883,LA7,Purchases for Resale,C06,Service Delivery,CALBOURNE WATER MILL,06/07/2011,843.50
Bath & North East Somerset Council,21102417,LM6,Nursing Care,C03,Adult Social Services & Housing,LEONARD CHESHIRE FOUNDATION,06/07/2011,848.50
Bath & North East Somerset Council,21102417,LM6,Nursing Care,C03,Adult Social Services & Housing,LEONARD CHESHIRE FOUNDATION,06/07/2011,848.50
Bath & North East Somerset Council,10615198,LJ3,Other Services to the Council,C06,Service Delivery,TOM LEDBURY,06/07/2011,850.00
Bath & North East Somerset Council,10619133,3F7,PCB External Fees,C05,Children's Services,SOUTH WEST DESIGN LTD,06/07/2011,850.00
Bath & North East Somerset Council,10618591,LA1,Equipment Purchase,C06,Service Delivery,LISTER WILDER,06/07/2011,870.00
Bath & North East Somerset Council,21101406,LM8,Home Care,C03,Adult Social Services & Housing,ROBERT SAGE LTD T/A PRESTIGE NURSING PAYROLL,06/07/2011,871.56
Bath & North East Somerset Council,10616425,DB1,Agency Staff,C06,Service Delivery,MITIE SECURITY LTD,06/07/2011,872.60
Bath & North East Somerset Council,10619342,HK1,Highway Maintenance,C06,Service Delivery,E R HEMMINGS (BUILDING) LTD,06/07/2011,873.00
Bath & North East Somerset Council,10615593,LC1,Provisions,C02,Resources,APETITO LTD,06/07/2011,874.91
Bath & North East Somerset Council,10615407,LK1,Fees,C05,Children's Services,TWERTON INFANT SCHOOL,06/07/2011,877.50
Bath & North East Somerset Council,21105230,PG1,Rent Allowances,C02,Resources,KNIGHTSTONE HOUSING ASSOCIATION,06/07/2011,885.54
Bath & North East Somerset Council,21102362,LM3,Residential Care,C03,Adult Social Services & Housing,ASPECTS & MILESTONES TRUST,06/07/2011,886.06
Bath & North East Somerset Council,21102362,LM3,Residential Care,C03,Adult Social Services & Housing,ASPECTS & MILESTONES TRUST,06/07/2011,886.06
Bath & North East Somerset Council,10616491,HA4,Responsive Maintenance PCB,C02,Resources,N K S CONTRACTS LTD,06/07/2011,889.00
Bath & North East Somerset Council,10619161,3F7,PCB External Fees,C04,Development & Major Projects,CONSTRUCTION PLANNING ASSOCIATES,06/07/2011,900.00
Bath & North East Somerset Council,10619169,LJ2,Legal Fees,C05,Children's Services,MISS TANYA ZABIHI,06/07/2011,900.00
Bath & North East Somerset Council,10618570,LV1,Grants to Voluntary Bodies,C06,Service Delivery,WELLOW COMMUNITY BUS GROUP,06/07/2011,904.00
Bath & North East Somerset Council,10619276,LX6,Bus Revenue Support,C06,Service Delivery,FARESAVER,06/07/2011,906.35
Bath & North East Somerset Council,10618670,KA3,Fuel,C06,Service Delivery,FORD FUELS LTD,06/07/2011,906.53
Bath & North East Somerset Council,21102484,LM6,Nursing Care,C03,Adult Social Services & Housing,LEONARD CHESHIRE DISABILITY,06/07/2011,913.53
Bath & North East Somerset Council,21102484,LM6,Nursing Care,C03,Adult Social Services & Housing,LEONARD CHESHIRE DISABILITY,06/07/2011,913.53
Bath & North East Somerset Council,10619167,3F7,PCB External Fees,C04,Development & Major Projects,FW DESIGN LTD,06/07/2011,920.00
Bath & North East Somerset Council,10618881,HA4,Responsive Maintenance PCB,C02,Resources,TPM (SOUTH WEST) LTD,06/07/2011,930.00
Bath & North East Somerset Council,21102417,LM6,Nursing Care,C03,Adult Social Services & Housing,LEONARD CHESHIRE FOUNDATION,06/07/2011,943.09
Bath & North East Somerset Council,21102417,LM6,Nursing Care,C03,Adult Social Services & Housing,LEONARD CHESHIRE FOUNDATION,06/07/2011,943.09
Bath & North East Somerset Council,10618567,LV1,Grants to Voluntary Bodies,C06,Service Delivery,CHEW VALLEY COMMUNITY TRANSPORT,06/07/2011,948.00
Bath & North East Somerset Council,10618845,LJ4,Contracts,C06,Service Delivery,ABBEY TAXIS LIMITED,06/07/2011,949.71
Bath & North East Somerset Council,10617092,LA7,Purchases for Resale,C06,Service Delivery,WESTAIR REPRODUCTIONS LIMITED,06/07/2011,951.24
Bath & North East Somerset Council,10616392,LW9,Other Expenses,C05,Children's Services,E MARTINS,06/07/2011,969.70
Bath & North East Somerset Council,10617083,LA7,Purchases for Resale,C06,Service Delivery,J & N PRODUCTSTS,06/07/2011,972.00
Bath & North East Somerset Council,21102343,LM3,Residential Care,C03,Adult Social Services & Housing,COCKLEBURY FARMHOUSE,06/07/2011,975.54
Bath & North East Somerset Council,21102343,LM3,Residential Care,C03,Adult Social Services & Housing,COCKLEBURY FARMHOUSE,06/07/2011,975.54
Bath & North East Somerset Council,21102303,LL3,Supported Living,C03,Adult Social Services & Housing,SWALLOW LTD,06/07/2011,977.46
Bath & North East Somerset Council,21102303,LL3,Supported Living,C03,Adult Social Services & Housing,SWALLOW LTD,06/07/2011,977.46
Bath & North East Somerset Council,10618624,LK1,Fees,C06,Service Delivery,MRS NIKKI BONNER,06/07/2011,1000.00
Bath & North East Somerset Council,10619311,7P8,Cash Related,,,BANES RE HERITAGE SERVICES,06/07/2011,1000.00
Bath & North East Somerset Council,21102417,LM3,Residential Care,C03,Adult Social Services & Housing,LEONARD CHESHIRE FOUNDATION,06/07/2011,1003.80
Bath & North East Somerset Council,21102417,LM3,Residential Care,C03,Adult Social Services & Housing,LEONARD CHESHIRE FOUNDATION,06/07/2011,1003.80
Bath & North East Somerset Council,10615782,LA5,Materials,C06,Service Delivery,TOWN & COUNTRY MEMORIALS LTD,06/07/2011,1008.00
Bath & North East Somerset Council,10617949,LA7,Purchases for Resale,C06,Service Delivery,RHODAWN LIMITED T/A BOOKSPEED,06/07/2011,1015.85
Bath & North East Somerset Council,21102417,LM3,Residential Care,C03,Adult Social Services & Housing,LEONARD CHESHIRE FOUNDATION,06/07/2011,1027.52
Bath & North East Somerset Council,21102417,LM3,Residential Care,C03,Adult Social Services & Housing,LEONARD CHESHIRE FOUNDATION,06/07/2011,1027.52
Bath & North East Somerset Council,10616878,HP3,Room Hire Charges,C05,Children's Services,FARRINGTON GURNEY MEMORIAL HALL,06/07/2011,1031.25
Bath & North East Somerset Council,21102405,LM3,Residential Care,C03,Adult Social Services & Housing,CORNERSTONES UK LTD,06/07/2011,1037.80
Bath & North East Somerset Council,21102405,LM3,Residential Care,C03,Adult Social Services & Housing,CORNERSTONES UK LTD,06/07/2011,1037.80
Bath & North East Somerset Council,10618862,LJ4,Contracts,C06,Service Delivery,SOMERSET TRANSPORT SERVICES LTD,06/07/2011,1042.00
Bath & North East Somerset Council,10618665,LJ3,Other Services to the Council,C02,Resources,SEARCY TANSLEY & CO LTD,06/07/2011,1043.20
Bath & North East Somerset Council,21102417,LM3,Residential Care,C03,Adult Social Services & Housing,LEONARD CHESHIRE FOUNDATION,06/07/2011,1055.29
Bath & North East Somerset Council,21102417,LM3,Residential Care,C03,Adult Social Services & Housing,LEONARD CHESHIRE FOUNDATION,06/07/2011,1055.29
Bath & North East Somerset Council,10619216,LJ4,Contracts,C06,Service Delivery,BATH TAXIS (UK) LTD,06/07/2011,1060.00
Bath & North East Somerset Council,10616391,LH4,Consultation,C05,Children's Services,VOICE,06/07/2011,1067.75
Bath & North East Somerset Council,10616127,LA1,Equipment Purchase,C03,Adult Social Services & Housing,HARVEST HEALTHCARE,06/07/2011,1125.00
Bath & North East Somerset Council,10618382,LA1,Equipment Purchase,C06,Service Delivery,S.A. SECURE LTD,06/07/2011,1147.95
Bath & North East Somerset Council,10619002,DB1,Agency Staff,C06,Service Delivery,M WIDDOWSON LTD,06/07/2011,1150.28
Bath & North East Somerset Council,21102382,LM3,Residential Care,C03,Adult Social Services & Housing,REDACTED,06/07/2011,1153.00
Bath & North East Somerset Council,21102382,LM3,Residential Care,C03,Adult Social Services & Housing,REDACTED,06/07/2011,1153.00
Bath & North East Somerset Council,21102421,LM3,Residential Care,C03,Adult Social Services & Housing,THE DISABILITIES TRUST,06/07/2011,1155.07
Bath & North East Somerset Council,21102421,LM3,Residential Care,C03,Adult Social Services & Housing,THE DISABILITIES TRUST,06/07/2011,1155.07
Bath & North East Somerset Council,21102371,LM3,Residential Care,C03,Adult Social Services & Housing,DIMENSIONS (UK) LTD,06/07/2011,1168.91
Bath & North East Somerset Council,21102371,LM3,Residential Care,C03,Adult Social Services & Housing,DIMENSIONS (UK) LTD,06/07/2011,1168.91
Bath & North East Somerset Council,21102382,LM3,Residential Care,C03,Adult Social Services & Housing,REDACTED,06/07/2011,1180.30
Bath & North East Somerset Council,21102382,LM3,Residential Care,C03,Adult Social Services & Housing,REDACTED,06/07/2011,1180.30
Bath & North East Somerset Council,21102382,LM3,Residential Care,C03,Adult Social Services & Housing,REDACTED,06/07/2011,1181.35
Bath & North East Somerset Council,21102382,LM3,Residential Care,C03,Adult Social Services & Housing,REDACTED,06/07/2011,1181.35
Bath & North East Somerset Council,10618791,LL1,Services to Clients,C03,Adult Social Services & Housing,ALLEN RESIDENTIAL,06/07/2011,1192.50
Bath & North East Somerset Council,10615741,LA4,Equipment Hire/Rent,C06,Service Delivery,T H WHITE LTD,06/07/2011,1200.00
Bath & North East Somerset Council,10616334,LK1,Fees,C06,Service Delivery,GET OUT THERE MTB,06/07/2011,1200.00
Bath & North East Somerset Council,21102482,LL3,Supported Living,C03,Adult Social Services & Housing,KCARE NURSING AGENCY LTD,06/07/2011,1200.00
Bath & North East Somerset Council,21102482,LL3,Supported Living,C03,Adult Social Services & Housing,KCARE NURSING AGENCY LTD,06/07/2011,1200.00
Bath & North East Somerset Council,21102353,LM6,Nursing Care,C03,Adult Social Services & Housing,RNID  (REDACTED),06/07/2011,1207.25
Bath & North East Somerset Council,21102353,LM6,Nursing Care,C03,Adult Social Services & Housing,RNID  (REDACTED),06/07/2011,1207.25
Bath & North East Somerset Council,10619152,LJ8,PCB External Fees,C04,Development & Major Projects,SEARCY TANSLEY & CO LTD,06/07/2011,1208.43
Bath & North East Somerset Council,10617868,LA7,Purchases for Resale,C06,Service Delivery,HARPER COLLINS PUBLISHERS,06/07/2011,1211.47
Bath & North East Somerset Council,10619068,DB1,Agency Staff,C06,Service Delivery,C R DAWSON LTD,06/07/2011,1218.00
Bath & North East Somerset Council,10619254,LJ1,Consultants Fees,C02,Resources,NEWLANDS SPECIAL PROJECTS LTD,06/07/2011,1237.50
Bath & North East Somerset Council,10618568,LV1,Grants to Voluntary Bodies,C06,Service Delivery,ST PHILLIPS COMMUNITY MINIBUS,06/07/2011,1248.75
Bath & North East Somerset Council,10617072,LA7,Purchases for Resale,C06,Service Delivery,CRAWFORD HENDERSON LIMITED,06/07/2011,1280.00
Bath & North East Somerset Council,21102398,LM3,Residential Care,C03,Adult Social Services & Housing,AUTISM SPECIALISED CARE HOMES LTD,06/07/2011,1284.26
Bath & North East Somerset Council,21102398,LM3,Residential Care,C03,Adult Social Services & Housing,AUTISM SPECIALISED CARE HOMES LTD,06/07/2011,1284.26
Bath & North East Somerset Council,10619040,3F7,PCB External Fees,C06,Service Delivery,MOTT MACDONALD LIMITED,06/07/2011,1297.74
Bath & North East Somerset Council,10616492,HA4,Responsive Maintenance PCB,C02,Resources,ALFRED BAGNALL & SONS LTD,06/07/2011,1300.00
Bath & North East Somerset Council,21101416,LM8,Home Care,C03,Adult Social Services & Housing,ACTIVE ASSISTANCE,06/07/2011,1300.00
Bath & North East Somerset Council,21102353,LM3,Residential Care,C03,Adult Social Services & Housing,RNID  (REDACTED),06/07/2011,1313.66
Bath & North East Somerset Council,21102353,LM3,Residential Care,C03,Adult Social Services & Housing,RNID  (REDACTED),06/07/2011,1313.66
Bath & North East Somerset Council,21102431,LM6,Nursing Care,C03,Adult Social Services & Housing,GLENSIDE MANOR HEALTHCARE SERVICES LTD,06/07/2011,1321.00
Bath & North East Somerset Council,21102431,LM6,Nursing Care,C03,Adult Social Services & Housing,GLENSIDE MANOR HEALTHCARE SERVICES LTD,06/07/2011,1321.00
Bath & North East Somerset Council,21105228,PG1,Rent Allowances,C02,Resources,GUINNESS HOUSING ASSOCIATION,06/07/2011,1332.63
Bath & North East Somerset Council,10618897,DB1,Agency Staff,C06,Service Delivery,IAYAZ CONSULTING ENGINEERS LTD,06/07/2011,1337.58
Bath & North East Somerset Council,10616564,HK2,Street Lighting Maintenance,C06,Service Delivery,WESTERN POWER DISTRIBUTION (SO,06/07/2011,1394.03
Bath & North East Somerset Council,10619014,EG1,Recruitment Expenses,C05,Children's Services,TMP (UK) LTD,06/07/2011,1417.00
Bath & North East Somerset Council,10618402,DB1,Agency Staff,C06,Service Delivery,RS SECURITY LTD,06/07/2011,1418.00
Bath & North East Somerset Council,10618499,LK1,Fees,C06,Service Delivery,JULIE MILNE,06/07/2011,1423.00
Bath & North East Somerset Council,10618500,LK1,Fees,C06,Service Delivery,E GAIL ANDREWS,06/07/2011,1423.00
Bath & North East Somerset Council,10619213,LJ4,Contracts,C06,Service Delivery,ABBEY TAXIS LIMITED,06/07/2011,1436.63
Bath & North East Somerset Council,10619165,3F7,PCB External Fees,C04,Development & Major Projects,FW DESIGN LTD,06/07/2011,1440.00
Bath & North East Somerset Council,21102146,LK4,Nursery/Childcare Vouchers,C05,Children's Services,WELTON SCHOOL PLAYGROUP/PRESCH,06/07/2011,1441.30
Bath & North East Somerset Council,21102367,LM3,Residential Care,C03,Adult Social Services & Housing,TRACS LTD,06/07/2011,1442.82
Bath & North East Somerset Council,21102367,LM3,Residential Care,C03,Adult Social Services & Housing,TRACS LTD,06/07/2011,1442.82
Bath & North East Somerset Council,10618960,LJ1,Consultants Fees,C06,Service Delivery,M EDWARDS,06/07/2011,1445.43
Bath & North East Somerset Council,21102340,LM6,Nursing Care,C03,Adult Social Services & Housing,PROKARE LTD,06/07/2011,1470.84
Bath & North East Somerset Council,21102340,LM6,Nursing Care,C03,Adult Social Services & Housing,PROKARE LTD,06/07/2011,1470.84
Bath & North East Somerset Council,10617469,HK2,Street Lighting Maintenance,C06,Service Delivery,WESTERN POWER DISTRIBUTION (SO,06/07/2011,1485.85
Bath & North East Somerset Council,10615739,LA4,Equipment Hire/Rent,C06,Service Delivery,T H WHITE LTD,06/07/2011,1500.00
Bath & North East Somerset Council,10618380,LH5,Marketing,C06,Service Delivery,SO DESIGN CONSULTANTS,06/07/2011,1500.00
Bath & North East Somerset Council,10619020,LJ2,Legal Fees,C06,Service Delivery,IAN DOVE Q C,06/07/2011,1500.00
Bath & North East Somerset Council,21102449,LM3,Residential Care,C03,Adult Social Services & Housing,CRAEGMOOR FACILITIES COMPANY LIMITED,06/07/2011,1501.63
Bath & North East Somerset Council,21102449,LM3,Residential Care,C03,Adult Social Services & Housing,CRAEGMOOR FACILITIES COMPANY LIMITED,06/07/2011,1501.63
Bath & North East Somerset Council,10618565,LV1,Grants to Voluntary Bodies,C06,Service Delivery,AGE CONCERN BATH & N E SOMERSE,06/07/2011,1511.00
Bath & North East Somerset Council,21102395,LM3,Residential Care,C03,Adult Social Services & Housing,MANOR COMMUNITY CARE HOME,06/07/2011,1519.15
Bath & North East Somerset Council,21102395,LM3,Residential Care,C03,Adult Social Services & Housing,MANOR COMMUNITY CARE HOME,06/07/2011,1519.15
Bath & North East Somerset Council,21102436,LM3,Residential Care,C03,Adult Social Services & Housing,CREAM I LTD,06/07/2011,1522.64
Bath & North East Somerset Council,21102436,LM3,Residential Care,C03,Adult Social Services & Housing,CREAM I LTD,06/07/2011,1522.64
Bath & North East Somerset Council,21102385,LM3,Residential Care,C03,Adult Social Services & Housing,REDACTED,06/07/2011,1537.14
Bath & North East Somerset Council,21102385,LM3,Residential Care,C03,Adult Social Services & Housing,REDACTED,06/07/2011,1537.14
Bath & North East Somerset Council,10618666,KD1,Employees Public Transport,C02,Resources,N WASHBOURNE PERSONAL DRIVER,06/07/2011,1540.00
Bath & North East Somerset Council,10619232,LA7,Purchases for Resale,C06,Service Delivery,REDACTED,06/07/2011,1540.00
Bath & North East Somerset Council,21103525,PG1,Rent Allowances,C02,Resources,REDACTED,06/07/2011,1569.25
Bath & North East Somerset Council,10618399,HA3,Planned Maintenance,C06,Service Delivery,ASHTON AIR CONDITIONING SERVICES LIMITED,06/07/2011,1584.00
Bath & North East Somerset Council,21105231,PG1,Rent Allowances,C02,Resources,REDLAND HOUSING ASSOCIATION LTD,06/07/2011,1598.44
Bath & North East Somerset Council,21102404,LM3,Residential Care,C03,Adult Social Services & Housing,DRAFTCREATE LTD,06/07/2011,1610.84
Bath & North East Somerset Council,21102404,LM3,Residential Care,C03,Adult Social Services & Housing,DRAFTCREATE LTD,06/07/2011,1610.84
Bath & North East Somerset Council,10618305,EA1,Training,C03,Adult Social Services & Housing,HEALTHCARE TRAINING & CONSULTANCY,06/07/2011,1620.00
Bath & North East Somerset Council,10619252,LJ1,Consultants Fees,C02,Resources,STEVE ASH,06/07/2011,1625.25
Bath & North East Somerset Council,10617970,3J2,PCB Consultants,C06,Service Delivery,HANSON QUARRY PRODUCTS EUROPE LTD,06/07/2011,1647.00
Bath & North East Somerset Council,10619219,LJ4,Contracts,C06,Service Delivery,REDACTED,06/07/2011,1655.77
Bath & North East Somerset Council,21102371,LM3,Residential Care,C03,Adult Social Services & Housing,DIMENSIONS (UK) LTD,06/07/2011,1670.02
Bath & North East Somerset Council,21102371,LM3,Residential Care,C03,Adult Social Services & Housing,DIMENSIONS (UK) LTD,06/07/2011,1670.02
Bath & North East Somerset Council,21102333,LM3,Residential Care,C03,Adult Social Services & Housing,PRIORY  THE,06/07/2011,1715.00
Bath & North East Somerset Council,21102333,LM3,Residential Care,C03,Adult Social Services & Housing,PRIORY  THE,06/07/2011,1715.00
Bath & North East Somerset Council,21102460,LM3,Residential Care,C03,Adult Social Services & Housing,BARCHESTER HEALTHCARE HOMES LTD,06/07/2011,1735.00
Bath & North East Somerset Council,21102460,LM3,Residential Care,C03,Adult Social Services & Housing,BARCHESTER HEALTHCARE HOMES LTD,06/07/2011,1735.00
Bath & North East Somerset Council,10618134,HA3,Planned Maintenance,C06,Service Delivery,TRISH MOHAN,06/07/2011,1750.00
Bath & North East Somerset Council,21102409,LM3,Residential Care,C03,Adult Social Services & Housing,THELMA TURNER HOMES LIMITED,06/07/2011,1770.00
Bath & North East Somerset Council,21102409,LM3,Residential Care,C03,Adult Social Services & Housing,THELMA TURNER HOMES LIMITED,06/07/2011,1770.00
Bath & North East Somerset Council,21102425,LL3,Supported Living,C03,Adult Social Services & Housing,COMMUNITY OF ST ANTONY & ST ELIAS & REV FR BGPR &,06/07/2011,1780.00
Bath & North East Somerset Council,21102425,LL3,Supported Living,C03,Adult Social Services & Housing,COMMUNITY OF ST ANTONY & ST ELIAS & REV FR BGPR &,06/07/2011,1780.00
Bath & North East Somerset Council,21102308,LM3,Residential Care,C03,Adult Social Services & Housing,WINSLOW COURT,06/07/2011,1818.75
Bath & North East Somerset Council,21102308,LM3,Residential Care,C03,Adult Social Services & Housing,WINSLOW COURT,06/07/2011,1818.75
Bath & North East Somerset Council,10619216,LJ4,Contracts,C06,Service Delivery,BATH TAXIS (UK) LTD,06/07/2011,1824.10
Bath & North East Somerset Council,10619340,HK1,Highway Maintenance,C06,Service Delivery,E R HEMMINGS (BUILDING) LTD,06/07/2011,1840.00
Bath & North East Somerset Council,21102360,LM3,Residential Care,C03,Adult Social Services & Housing,ASPECTS & MILESTONES TRUST,06/07/2011,1858.66
Bath & North East Somerset Council,21102360,LM3,Residential Care,C03,Adult Social Services & Housing,ASPECTS & MILESTONES TRUST,06/07/2011,1858.66
Bath & North East Somerset Council,10616622,LA7,Purchases for Resale,C06,Service Delivery,TEMPLE ISLAND COLLECTION,06/07/2011,1889.50
Bath & North East Somerset Council,10617616,HA3,Planned Maintenance,C06,Service Delivery,SYSCO AV LTD,06/07/2011,1905.00
Bath & North East Somerset Council,21102467,LM3,Residential Care,C03,Adult Social Services & Housing,CONSENSUS SUPPORT SERVICES LTD,06/07/2011,1937.50
Bath & North East Somerset Council,21102467,LM3,Residential Care,C03,Adult Social Services & Housing,CONSENSUS SUPPORT SERVICES LTD,06/07/2011,1937.50
Bath & North East Somerset Council,21102467,LM3,Residential Care,C03,Adult Social Services & Housing,CONSENSUS SUPPORT SERVICES LTD,06/07/2011,1976.25
Bath & North East Somerset Council,21102467,LM3,Residential Care,C03,Adult Social Services & Housing,CONSENSUS SUPPORT SERVICES LTD,06/07/2011,1976.25
Bath & North East Somerset Council,21102467,LM3,Residential Care,C03,Adult Social Services & Housing,CONSENSUS SUPPORT SERVICES LTD,06/07/2011,1976.25
Bath & North East Somerset Council,21102467,LM3,Residential Care,C03,Adult Social Services & Housing,CONSENSUS SUPPORT SERVICES LTD,06/07/2011,1976.25
Bath & North East Somerset Council,21102393,LM3,Residential Care,C03,Adult Social Services & Housing,ORCHARD END LTD,06/07/2011,2000.00
Bath & North East Somerset Council,21102393,LM3,Residential Care,C03,Adult Social Services & Housing,ORCHARD END LTD,06/07/2011,2000.00
Bath & North East Somerset Council,10618558,LF4,Stationery,C06,Service Delivery,HARVEM,06/07/2011,2012.89
Bath & North East Somerset Council,21102429,LL3,Supported Living,C03,Adult Social Services & Housing,FARLEIGH SCHOOLS LIMITED,06/07/2011,2027.13
Bath & North East Somerset Council,21102429,LL3,Supported Living,C03,Adult Social Services & Housing,FARLEIGH SCHOOLS LIMITED,06/07/2011,2027.13
Bath & North East Somerset Council,21102423,LM3,Residential Care,C03,Adult Social Services & Housing,CHOICE LTD,06/07/2011,2053.97
Bath & North East Somerset Council,21102423,LM3,Residential Care,C03,Adult Social Services & Housing,CHOICE LTD,06/07/2011,2053.97
Bath & North East Somerset Council,10617090,LA7,Purchases for Resale,C06,Service Delivery,UNEX DESIGNS LTD,06/07/2011,2073.72
Bath & North East Somerset Council,10615740,LA4,Equipment Hire/Rent,C06,Service Delivery,T H WHITE LTD,06/07/2011,2136.00
Bath & North East Somerset Council,10617357,LA3,Equipment Maintenance,C06,Service Delivery,2CL COMMUNICATIONS LTD,06/07/2011,2136.00
Bath & North East Somerset Council,10619051,DB1,Agency Staff,C06,Service Delivery,BROOKLANDS EXECUTIVES LTD,06/07/2011,2170.00
Bath & North East Somerset Council,21102361,LM3,Residential Care,C03,Adult Social Services & Housing,ASPECTS & MILESTONES TRUST,06/07/2011,2180.67
Bath & North East Somerset Council,21102361,LM3,Residential Care,C03,Adult Social Services & Housing,ASPECTS & MILESTONES TRUST,06/07/2011,2180.67
Bath & North East Somerset Council,21102394,LM6,Nursing Care,C03,Adult Social Services & Housing,ORCHARD END LTD,06/07/2011,2202.19
Bath & North East Somerset Council,21102394,LM6,Nursing Care,C03,Adult Social Services & Housing,ORCHARD END LTD,06/07/2011,2202.19
Bath & North East Somerset Council,21102466,LM3,Residential Care,C03,Adult Social Services & Housing,SCOPE FEES COLLECTION UK,06/07/2011,2222.74
Bath & North East Somerset Council,21102466,LM3,Residential Care,C03,Adult Social Services & Housing,SCOPE FEES COLLECTION UK,06/07/2011,2222.74
Bath & North East Somerset Council,10618910,3C4,PCB Building Works,C02,Resources,E R HEMMINGS (BUILDING) LTD,06/07/2011,2270.51
Bath & North East Somerset Council,10619197,3G1,Grants/Advances,C03,Adult Social Services & Housing,A J & M L SPRATLING,06/07/2011,2280.00
Bath & North East Somerset Council,10617958,LJ1,Consultants Fees,C06,Service Delivery,PETER ROCK,06/07/2011,2310.00
Bath & North East Somerset Council,10618891,KA3,Fuel,C06,Service Delivery,ARVAL UK LTD PAYMENTS,06/07/2011,2312.83
Bath & North East Somerset Council,21102385,LM3,Residential Care,C03,Adult Social Services & Housing,REDACTED,06/07/2011,2317.93
Bath & North East Somerset Council,21102385,LM3,Residential Care,C03,Adult Social Services & Housing,REDACTED,06/07/2011,2317.93
Bath & North East Somerset Council,21102385,LM3,Residential Care,C03,Adult Social Services & Housing,REDACTED,06/07/2011,2335.93
Bath & North East Somerset Council,21102385,LM3,Residential Care,C03,Adult Social Services & Housing,REDACTED,06/07/2011,2335.93
Bath & North East Somerset Council,10618861,LJ4,Contracts,C06,Service Delivery,SOMERSET TRANSPORT SERVICES LTD,06/07/2011,2373.41
Bath & North East Somerset Council,21102490,LM3,Residential Care,C03,Adult Social Services & Housing,PHILLIPS G.A. T/A COLOUR-LIT VIEW,06/07/2011,2389.85
Bath & North East Somerset Council,21102490,LM3,Residential Care,C03,Adult Social Services & Housing,PHILLIPS G.A. T/A COLOUR-LIT VIEW,06/07/2011,2389.85
Bath & North East Somerset Council,10618847,LJ4,Contracts,C06,Service Delivery,BATH TAXIS (UK) LTD,06/07/2011,2450.51
Bath & North East Somerset Council,21102361,LM3,Residential Care,C03,Adult Social Services & Housing,ASPECTS & MILESTONES TRUST,06/07/2011,2452.45
Bath & North East Somerset Council,21102361,LM3,Residential Care,C03,Adult Social Services & Housing,ASPECTS & MILESTONES TRUST,06/07/2011,2452.45
Bath & North East Somerset Council,10619156,LJ8,PCB External Fees,C04,Development & Major Projects,LOW CARBON SOUTH WEST CIC,06/07/2011,2500.00
Bath & North East Somerset Council,10618859,LJ4,Contracts,C06,Service Delivery,SOMERBUS LTD,06/07/2011,2533.20
Bath & North East Somerset Council,21102429,LL3,Supported Living,C03,Adult Social Services & Housing,FARLEIGH SCHOOLS LIMITED,06/07/2011,2601.69
Bath & North East Somerset Council,21102429,LL3,Supported Living,C03,Adult Social Services & Housing,FARLEIGH SCHOOLS LIMITED,06/07/2011,2601.69
Bath & North East Somerset Council,10619010,LJ1,Consultants Fees,C06,Service Delivery,URBAN AND RURAL PLANNING ASSOCIATES LTD,06/07/2011,2623.00
Bath & North East Somerset Council,21102334,LL3,Supported Living,C03,Adult Social Services & Housing,WILLOWBANK CARE,06/07/2011,2705.82
Bath & North East Somerset Council,21102334,LL3,Supported Living,C03,Adult Social Services & Housing,WILLOWBANK CARE,06/07/2011,2705.82
Bath & North East Somerset Council,10618789,3G1,Grants/Advances,C03,Adult Social Services & Housing,H SEAMAN & SON,06/07/2011,2707.00
Bath & North East Somerset Council,10618779,3G1,Grants/Advances,C03,Adult Social Services & Housing,A & R MILES LTD,06/07/2011,2740.00
Bath & North East Somerset Council,21102446,LL3,Supported Living,C03,Adult Social Services & Housing,ROBERT SAGE LTD T/A PRESTIGE NURSING PAYROLL,06/07/2011,2790.05
Bath & North East Somerset Council,21102446,LL3,Supported Living,C03,Adult Social Services & Housing,ROBERT SAGE LTD T/A PRESTIGE NURSING PAYROLL,06/07/2011,2790.05
Bath & North East Somerset Council,10619179,HA5,Service Contract PCB,C02,Resources,UNINTERRUPTIBLE POWER SUPPLIES LTD,06/07/2011,2819.62
Bath & North East Somerset Council,10619166,3F7,PCB External Fees,C04,Development & Major Projects,FW DESIGN LTD,06/07/2011,2845.00
Bath & North East Somerset Council,10616585,KA3,Fuel,C06,Service Delivery,FORD FUELS LTD,06/07/2011,2850.00
Bath & North East Somerset Council,10617202,LM1,Volunt Homes Placements Top/Up,C05,Children's Services,AMICUS FOSTER CARE LIMITED,06/07/2011,2872.59
Bath & North East Somerset Council,10615728,DB1,Agency Staff,C06,Service Delivery,S P WATKINS,06/07/2011,2900.00
Bath & North East Somerset Council,10618588,LA7,Purchases for Resale,C06,Service Delivery,TEMPLE ISLAND COLLECTION,06/07/2011,2945.50
Bath & North East Somerset Council,10618381,LH5,Marketing,C06,Service Delivery,SO DESIGN CONSULTANTS,06/07/2011,3000.00
Bath & North East Somerset Council,10618721,LK1,Fees,C06,Service Delivery,JO GRAHAM LEARNING UNLIMITED,06/07/2011,3000.00
Bath & North East Somerset Council,10616417,LM2,Foster Carer Allowances,C05,Children's Services,AMICUS FOSTER CARE LIMITED,06/07/2011,3045.00
Bath & North East Somerset Council,10618790,3G1,Grants/Advances,C03,Adult Social Services & Housing,H SEAMAN & SON,06/07/2011,3053.00
Bath & North East Somerset Council,10619193,HA5,Service Contract PCB,C02,Resources,SOUTHERN ELECTRIC CONTRACTING LTD,06/07/2011,3092.70
Bath & North East Somerset Council,10619217,LJ4,Contracts,C06,Service Delivery,JASON KING LTD,06/07/2011,3164.50
Bath & North East Somerset Council,10619343,HK1,Highway Maintenance,C06,Service Delivery,E R HEMMINGS (BUILDING) LTD,06/07/2011,3286.75
Bath & North East Somerset Council,10618781,3G1,Grants/Advances,C03,Adult Social Services & Housing,H SEAMAN & SON,06/07/2011,3289.00
Bath & North East Somerset Council,10616415,LM2,Foster Carer Allowances,C05,Children's Services,AMICUS FOSTER CARE LIMITED,06/07/2011,3297.01
Bath & North East Somerset Council,10619337,DB1,Agency Staff,C06,Service Delivery,LYNNE LOCKER,06/07/2011,3300.00
Bath & North East Somerset Council,10619339,HK1,Highway Maintenance,C06,Service Delivery,E R HEMMINGS (BUILDING) LTD,06/07/2011,3308.00
Bath & North East Somerset Council,10617201,LM1,Volunt Homes Placements Top/Up,C05,Children's Services,NEW HORIZON CENTRE LTD,06/07/2011,3325.00
Bath & North East Somerset Council,10618780,3G1,Grants/Advances,C03,Adult Social Services & Housing,MARK NASH LTD,06/07/2011,3330.00
Bath & North East Somerset Council,10616418,LM2,Foster Carer Allowances,C05,Children's Services,AMICUS FOSTER CARE LIMITED,06/07/2011,3364.29
Bath & North East Somerset Council,10618569,LV1,Grants to Voluntary Bodies,C06,Service Delivery,SWAN ADVICE NETWORK,06/07/2011,3450.25
Bath & North East Somerset Council,10619035,3J2,PCB Consultants,C02,Resources,EDWARD DAVIS LTD,06/07/2011,3500.00
Bath & North East Somerset Council,10619044,3F7,PCB External Fees,C06,Service Delivery,CLARKE WILMOTT,06/07/2011,3575.35
Bath & North East Somerset Council,10619369,LW9,Other Expenses,C05,Children's Services,BATH & NORTH EAST SOMERSET COUNCIL - OFFICE SERVIC,06/07/2011,3613.41
Bath & North East Somerset Council,10619277,LX6,Bus Revenue Support,C06,Service Delivery,FARESAVER,06/07/2011,3668.61
Bath & North East Somerset Council,10619003,DB1,Agency Staff,C06,Service Delivery,S W PERRY LTD,06/07/2011,3721.70
Bath & North East Somerset Council,10619163,3F7,PCB External Fees,C04,Development & Major Projects,FW DESIGN LTD,06/07/2011,3730.00
Bath & North East Somerset Council,10618329,LK1,Fees,C05,Children's Services,COLLIERS INTERNATIONAL UK PLC,06/07/2011,3738.00
Bath & North East Somerset Council,10618315,LJ4,Contracts,C05,Children's Services,IAP UK LTD,06/07/2011,3750.00
Bath & North East Somerset Council,10616546,LX6,Bus Revenue Support,C06,Service Delivery,NORTH SOMERSET COUNCIL,06/07/2011,3792.00
Bath & North East Somerset Council,10618885,LJ1,Consultants Fees,C06,Service Delivery,WYG ENVIRONMENT PLANNING TRANSPORT LTD,06/07/2011,3811.35
Bath & North East Somerset Council,21102467,LM3,Residential Care,C03,Adult Social Services & Housing,CONSENSUS SUPPORT SERVICES LTD,06/07/2011,3883.00
Bath & North East Somerset Council,21102467,LM3,Residential Care,C03,Adult Social Services & Housing,CONSENSUS SUPPORT SERVICES LTD,06/07/2011,3883.00
Bath & North East Somerset Council,10618689,LJ3,Other Services to the Council,C06,Service Delivery,COMPLETE WEED CONTROL NORTH WE,06/07/2011,3900.00
Bath & North East Somerset Council,10615496,LJ4,Contracts,C05,Children's Services,RECONSTRUCT LIMITED,06/07/2011,3957.00
Bath & North East Somerset Council,10618860,LJ4,Contracts,C06,Service Delivery,SOMERBUS LTD,06/07/2011,3964.50
Bath & North East Somerset Council,10617494,LJ9,PCB Consultants Fees,C02,Resources,EDWARD DAVIS LTD,06/07/2011,3970.00
Bath & North East Somerset Council,10616587,KA3,Fuel,C06,Service Delivery,FORD FUELS LTD,06/07/2011,3990.00
Bath & North East Somerset Council,10619370,LC1,Provisions,C02,Resources,NEWTON FARM FOODS LIMITED,06/07/2011,4099.08
Bath & North East Somerset Council,10618886,KA3,Fuel,C06,Service Delivery,ARVAL UK LTD PAYMENTS,06/07/2011,4210.36
